{"text_format":"1","workbook":"xlsx","n_sheets":20,"sheets":["エラー表示","入力説明","添付資料","表紙","英文名称入力","基本情報入力","試験区分入力","試験規格入力","認定試験実施設備入力","リンク生成シート","AccessImport_0","AccessImport_1","AccessImport_2","AccessImport_3","AccessImport","設定_試験項目","設定_試験区分","設定_試験規格","事務局用メニュー","【テンプレート】新規格入力"],"not_rendered":{"charts":0,"images":9,"macros":1,"external_links":3,"defined_names":143,"comments":3,"pivot_tables":0},"unopened":[],"bounds":{"document_bytes":16777216,"sheet_cells":100000,"rows_first":2000,"rows_last":500,"rows_between":2000,"halvings":0,"cell_chars":16384,"cell_head_chars":4096},"cells_cut":0,"cells_raw":0,"read":"whole","date_system":"1900"}

{"sheet":"エラー表示","index":0,"n_rows":1,"n_cols":1,"rows_kept":1,"cut":false,"hidden":false,"merged":[]}
["エラー表示"]

{"sheet":"入力説明","index":1,"n_rows":115,"n_cols":63,"rows_kept":115,"cut":false,"hidden":false,"merged":[[106,15,106,22],[106,23,106,35],[106,36,106,43],[105,15,105,22],[105,36,105,43],[105,2,105,14],[105,23,105,35],[71,2,71,14],[71,15,71,22],[71,23,71,35],[71,36,71,43],[75,2,75,14],[75,15,75,22],[75,23,75,35],[75,36,75,43],[52,44,52,45],[53,2,53,14],[53,15,53,22],[53,23,53,35],[53,36,53,43],[53,44,53,45],[56,2,56,14],[56,15,56,22],[56,23,56,35],[56,36,56,43],[14,8,14,12],[14,14,14,18],[17,8,17,12],[17,14,17,18],[19,27,19,31],[19,8,19,12],[19,14,19,18],[55,2,55,14],[55,15,55,22],[55,23,55,35],[19,33,19,37],[51,2,51,22],[51,23,51,43],[54,2,54,14],[54,15,54,22],[54,23,54,35],[54,36,54,43],[107,2,107,14],[107,15,107,22],[107,23,107,35],[107,36,107,43],[55,36,55,43],[66,2,66,14],[66,15,66,22],[66,23,66,35],[66,36,66,43],[74,2,74,14],[74,15,74,22],[74,23,74,35],[74,36,74,43],[76,2,76,14],[76,15,76,22],[76,23,76,35],[76,36,76,43],[106,2,106,14],[73,2,73,14],[73,15,73,22],[73,23,73,35],[73,36,73,43],[65,2,65,14],[65,15,65,22],[65,23,65,35],[65,36,65,43],[72,2,72,14],[72,15,72,22],[72,23,72,35],[72,36,72,43],[70,2,70,14],[70,15,70,22],[70,23,70,35],[70,36,70,43],[69,2,69,14],[69,15,69,22],[69,23,69,35],[69,36,69,43],[67,2,67,14],[67,15,67,22],[67,23,67,35],[67,36,67,43],[68,2,68,14],[68,15,68,22],[68,23,68,35],[68,36,68,43],[72,44,72,45],[73,44,73,45],[74,44,74,45],[76,44,76,45],[54,44,54,45],[55,44,55,45],[56,44,56,45],[68,44,68,45],[65,44,65,45],[66,44,66,45],[70,44,70,45],[71,44,71,45],[69,44,69,45],[67,44,67,45],[63,44,63,45],[75,44,75,45],[62,2,62,14],[62,15,62,22],[62,23,62,35],[62,36,62,43],[62,44,62,45],[61,2,61,14],[61,15,61,22],[61,23,61,35],[61,44,61,45],[57,2,57,14],[57,15,57,22],[57,23,57,35],[57,36,57,43],[57,44,57,45],[61,36,61,43],[60,2,60,14],[60,15,60,22],[60,23,60,35],[60,36,60,43],[60,44,60,45],[59,2,59,14],[59,15,59,22],[59,23,59,35],[59,36,59,43],[59,44,59,45],[58,2,58,14],[58,15,58,22],[58,23,58,35],[58,36,58,43],[58,44,58,45],[64,2,64,14],[64,15,64,22],[64,23,64,35],[64,36,64,43],[64,44,64,45],[63,2,63,14],[63,15,63,22],[63,23,63,35],[63,36,63,43]]}
[null,"VLAC-VF100：2024 r23　　発行年月日：2024年02月15日"]
[]
[null,"・試験場が複数ある場合（枝番を有する場合）はVF100は枝番単位で作成します。「表紙」シートは同じ記述になります。"]
[null,"　従試験場が単独で拡大申請を行う場合は、表紙は主試験場と当該従試験場を併記します。"]
[null,"・更新審査時は認定拡大を同時に申請できます。従前規格と拡大規格は「試験規格入力」シート内のプルダウンメニューで区別します。"]
[null,"　認定拡大審査が終了するより前に、更新審査を申請する場合は、更新VF100は拡大VF100の内容を含めて作成します。"]
[null,"・サーベイランスと同時期に認定拡大（MODを含む）を希望する場合は、拡大申請書をサーベイランス申請書とは別に提出して下さい。"]
[null,"・サーベイランス審査時に認定済規格と「技術的に同等規格(IDT)」を追加する場合は表紙shtの「変更審査」も申請します。"]
[null,"・本シートは「試験区分入力」「試験規格入力」の各シートに記入する際の注意事項を記述しています。"]
[null,"　規格番号の誤記は本Bookではエラー抽出できません。十分に点検して下さい。（受付できない場合があります。）"]
[null,"・さいごに表紙シートの申請内容チェックボタンを押して下さい。エラー表示があると受付できません。"]
[]
["試験区分入力説明"]
[null,"下記のような測定周波数の記入欄は、下限、上限を記入すること。",null,null,null,null,null,null,null,null,null,null,null,null,null,null,null,null,null,null,null,null,null,null,null,"単位（Hz，kHz, MHz, GHz）を入力する。"]
[null,null,"測定周波数範囲：",null,null,null,null,null,null,null,null,null,null,"～",null,null,null,null,null,null,null,null,null,null,null,"数字と単位の間は半角ブランクを入れる。",null,null,null,null,null,null,null,null,null,null,null,null,null,null,null,null,null,null,null,null,null,null,8,5,4,false,null,"エミ_放射_エンク_妨害電界_基準_車載機器_測定周波数範囲",{"$f":"$M$50","v":0},{"$f":"$R$50","v":0}]
[]
[null,"＜記入例＞"]
[null,null,"測定周波数範囲：",null,null,null,null,null,"30 MHz",null,null,null,null,"～","1 GHz",null,null,null,null,null,null,null,null,null,null,null,null,null,null,null,null,null,null,null,null,null,null,null,null,null,null,null,null,null,null,null,null,null,8,5,4,false,null,"エミ_放射_エンク_妨害電界_基準_車載機器_測定周波数範囲",{"$f":"$M$50","v":0},{"$f":"$R$50","v":0}]
[]
[null,null,"測定周波数範囲：",null,null,null,null,null,"DC",null,null,null,null,"～","80 MHz",null,null,null,null,null,null,"測定周波数範囲：",null,null,null,null,null,"150 kHz",null,null,null,null,"～","230 MHz",null,null,null,null,null,null,null,null,null,null,null,null,null,null,8,5,4,false,null,"エミ_放射_エンク_妨害電界_基準_車載機器_測定周波数範囲",{"$f":"$M$50","v":0},{"$f":"$R$50","v":0}]
[]
[null,"＜留意点＞"]
[null,"・","5.1．放射妨害波 （エンクロージャーポート）",null,null,null,null,null,null,null,null,null,null,null,null,null,null,null,null,null,null,null,null,null,null,null,null,null,null,null,null,null,null,null,null,null,null,null,null,null,null,null,null,null,null,null,null,null,null,null,null,null,null,null,null,true]
[null,null,"放射妨害波電界強度試験（基準大地面上）の上限周波数は、ANSI C63.4-2014条件では 1 GHz にできます。"]
[null,"・","認定拡大を単独で申請する場合は、拡大に係る試験区分は申請範囲(新規設備＋継続設備)を漏れなくチェックして下さい。"]
[null,null,"例えば、試験区分「自動車・車載機器」は、試験区分「エミッション」「イミュニティ」が係わります。"]
[null,"・","改訂r18（2021年2月15日）より下記変更を加えました。"]
[null,null,"- ","「放送受信機」専用区分を削除：新分類（IT→MMU）に対応し、エミッション,イミュニティに含むものとします。"]
[null,null,"- ","「防衛･宇宙･航空」を追加：MIL-STD-461系をカバーします。"]
[null,null,"- ","「環境試験」を追加：船級試験は関連する試験区分（エミッション、イミュニティ、環境試験）をチェックして下さい。"]
[null,"・","改訂r23（2024年2月15日）より下記様式を追加しました。",null,null,null,null,null,null,null,null,null,null,null,null,null,null,null,null,null,null,null,null,null,null,null,null,null,null,null,null,null,null,null,null,null,null,null,null,null,null,null,null,null,null,null,"(r23) 追記"]
[null,null,"VF100に添えて提出して下さい。これは自動車・車載機器の試験方法を集約・分類しており、VF100試験区分入力shtを補完します。"]
[null,null,"- ","「VF100別紙（車載試験区分）」"]
[]
["試験規格入力説明"]
[null,"下記に記載された試験区分の中で認定の対象となる規格を入力してください。",null,null,null,null,null,null,null,null,null,null,null,null,null,null,null,null,null,null,null,null,null,null,null,null,null,null,null,null,null,null,null,null,null,null,null,null,null,null,null,null,null,null,null,null,null,null,null,null,null,null,"項番","階層","表示タイプ","チェック内容","枝番設定","試験規格コード","(新規格用)試験規格名称","(新規格用)試験規格名称英語","(新規格用)親試験規格名称","枝番内容","下位試験規格コード"]
[null,"入力箇所は原則、各試験区分ごとに自由記述方式で統一しています。（チェックBox（☑）を選べるのは一部のみです。）"]
[null,"・申請する規格の「版/発行年」をご記入下さい。"]
[null,"　シリーズ規格を記載する場合や製品安全規格を申請する場合は必要に応じて別紙を提出して下さい。"]
[null,"　上記以外の試験規格も別紙利用は可能ですが、できるだけVF100試験規格入力shtに直接入力して下さい。"]
[null,"　これらの版数／年次が申請時に最新版か否かを確認して下さい。（最新時は”最新”列は「○」を選ぶ。）"]
[null,"　認定証は規格版数が最新版の場合は記載を省くことがありますが、「版/発行年」の記述をその確証とします。"]
[null,"　<注１> 申請受付後に「版／発行年」の記載漏れや誤記が判明した場合は、後日、VF100へ追記、または別紙を提示して下さい。"]
[null,"　<注2> 現地審査期間中に申請規格に変更があった場合も、VF100へ追記、または別紙を提示して下さい。"]
[null,"　<注3> サーベイランスVF100に記載する「版/発行年」は、サーベイランス申請時ではなく、発行済み認定証の記載内容を転記して下さい。"]
[null,null,null,null,"”最新”列はサーベイランス申請時点を記入する。旧版から最新版へUPしたい場合は拡大申請をご検討下さい。"]
[null,"　<注4> 試験規格入力shtのセルをコピーではなく切り取りで移動さた場合は、元のセルが削除されたのと同じ挙動をします。"]
[null,null,null,null,"その場合はエラーチェック時に「参照先がない」為のエラーが生じます。ご注意ください。"]
[null,"・除外事項や限定事項があれば、規格番号に併記するか、試験規格入力shtの備考欄に記述して下さい。"]
[null,null,"以下は No.14 ～ No.25 の記述例です。尚、表中の（＊Ｎ）は本sht向けの注記です。"]
[null,null,"行の高さは必要に応じて拡大して下さい。（セルにカーソルを置き右クリック⇒「行の高さを変更」）"]
[null,null,"-----------------  認定証（和文）表記  ---------------",null,null,null,null,null,null,null,null,null,null,null,null,null,null,null,null,null,null,null,null,"-----------------  認定証（英文）表記  ---------------"]
[null,null,null,"規格番号",null,null,null,null,null,null,null,null,null,null,null,null,"版/発行年",null,null,null,null,null,null,null,"規格番号",null,null,null,null,null,null,null,null,null,null,null,null,"版/発行年",null,null,null,null,null,null,"最新"]
[null,null,"VCCI-CISPR 32",null,null,null,null,null,null,null,null,null,null,null,null,2016,null,null,null,null,null,null,null,"VCCI-CISPR 32",null,null,null,null,null,null,null,null,null,null,null,null,2016,null,null,null,null,null,null,null,"○"]
[null,null,"CISPR 32",null,null,null,null,null,null,null,null,null,null,null,null,"2015+AMD1:2019",null,null,null,null,null,null,null,"CISPR 32",null,null,null,null,null,null,null,null,null,null,null,null,"2015+AMD1:2019",null,null,null,null,null,null,null,"○"]
[null,null,"CISPR 32",null,null,null,null,null,null,null,null,null,null,null,null,2015,null,null,null,null,null,null,null,"CISPR 32",null,null,null,null,null,null,null,null,null,null,null,null,2015]
[null,null,"CISPR 11",null,null,null,null,null,null,null,null,null,null,null,null,"2015+AMD1:2016+AMD2:2019",null,null,null,null,null,null,null,"CISPR 11",null,null,null,null,null,null,null,null,null,null,null,null,"2015+AMD1:2016+AMD2:2019",null,null,null,null,null,null,null,"○"]
[null,null,"CISPR 14-1(不連続雑音試験を除く)",null,null,null,null,null,null,null,null,null,null,null,null,2020,null,null,null,null,null,null,null,"CISPR 14-1(Except for Discontinuous noise test)",null,null,null,null,null,null,null,null,null,null,null,null,2020,null,null,null,null,null,null,null,"○"]
[null,null,"IEC 61000-4-3",null,null,null,null,null,null,null,null,null,null,null,null,2020,null,null,null,null,null,null,null,"IEC 61000-4-3",null,null,null,null,null,null,null,null,null,null,null,null,2020,null,null,null,null,null,null,null,"○"]
[null,null,"IEC 61000-4-3",null,null,null,null,null,null,null,null,null,null,null,null,"2006+AMD1:2007+AMD2:2010",null,null,null,null,null,null,null,"IEC 61000-4-3",null,null,null,null,null,null,null,null,null,null,null,null,"2006+AMD1:2007+AMD2:2010"]
[null,null,"IEC 61000-4-4",null,null,null,null,null,null,null,null,null,null,null,null,2012,null,null,null,null,null,null,null,"IEC 61000-4-4",null,null,null,null,null,null,null,null,null,null,null,null,2012,null,null,null,null,null,null,null,"○"]
[null,null,"IEC 61000-4-4",null,null,null,null,null,null,null,null,null,null,null,null,"2004+AMD1:2010\n（＊６）",null,null,null,null,null,null,null,"IEC 61000-4-4",null,null,null,null,null,null,null,null,null,null,null,null,"2004+AMD1:2010\n（＊６）"]
[null,null,"EN 55035",null,null,null,null,null,null,null,null,null,null,null,null,"2017+A11:2020",null,null,null,null,null,null,null,"EN 55035",null,null,null,null,null,null,null,null,null,null,null,null,"2017+A11:2020",null,null,null,null,null,null,null,"○"]
[null,null,"EN IEC 61000-4-3",null,null,null,null,null,null,null,null,null,null,null,null,2020,null,null,null,null,null,null,null,"EN IEC 61000-4-3",null,null,null,null,null,null,null,null,null,null,null,null,2020,null,null,null,null,null,null,null,"○"]
[null,null,"EN 61000-4-3",null,null,null,null,null,null,null,null,null,null,null,null,"2006+A1:2007+A2:2010",null,null,null,null,null,null,null,"EN 61000-4-3",null,null,null,null,null,null,null,null,null,null,null,null,"2006+A1:2007+A2:2010"]
[null,null,"ETSI EN 300 330(Class1, 13.56MHzのみ)",null,null,null,null,null,null,null,null,null,null,null,null,"V2.1.1 (2017-02)",null,null,null,null,null,null,null,"ETSI EN 300 330(Class 1, 13.56MHz Only)",null,null,null,null,null,null,null,null,null,null,null,null,"V2.1.1 (2017-02)",null,null,null,null,null,null,null,"○"]
[null,null,"ISO 10605",null,null,null,null,null,null,null,null,null,null,null,null,"2008/Amd.1:2014",null,null,null,null,null,null,null,"ISO 10605",null,null,null,null,null,null,null,null,null,null,null,null,"2008/Amd.1:2014",null,null,null,null,null,null,null,"○"]
[null,null,"Intentional Radiators(FCC Part 15 Subpart C): ANSI C63.10-2013",null,null,null,null,null,null,null,null,null,null,null,null,"（＊２）",null,null,null,null,null,null,null,"Intentional Radiators(FCC Part 15 Subpart C): ANSI C63.10-2013",null,null,null,null,null,null,null,null,null,null,null,null,"（＊２）",null,null,null,null,null,null,null,"○"]
[null,null,"FCC 47 CFR Part 15 Subpart B : ANSI C63.4a-2017",null,null,null,null,null,null,null,null,null,null,null,null,"（＊５）",null,null,null,null,null,null,null,"FCC 47 CFR Part 15 Subpart B : ANSI C63.4a-2017",null,null,null,null,null,null,null,null,null,null,null,null,"（＊５）",null,null,null,null,null,null,null,"○"]
[null,null,"電気用品の雑音の強さ測定法(2章/3章/4章/5章/6章/7章/8章/9章)",null,null,null,null,null,null,null,null,null,null,null,null,"（＊３）",null,null,null,null,null,null,null,"Technical requirements under the Electrical Appliances and Materials safety Act appendix 10 Capter2/3/4/5/6/7/8/9",null,null,null,null,null,null,null,null,null,null,null,null,"（＊３）",null,null,null,null,null,null,null,"○"]
[null,null,"Wi-SUN PHY Interoperability Test Specification",null,null,null,null,null,null,null,null,null,null,null,null,"（＊３）",null,null,null,null,null,null,null,"Wi-SUN PHY Interoperability Test Specification",null,null,null,null,null,null,null,null,null,null,null,null,"（＊３）",null,null,null,null,null,null,null,"○"]
[null,null,"JIS T 0601-1-2",null,null,null,null,null,null,null,null,null,null,null,null,2018,null,null,null,null,null,null,null,"JIS T 0601-1-2",null,null,null,null,null,null,null,null,null,null,null,null,2018,null,null,null,null,null,null,null,"○"]
[null,null,"JIS T 0601-2-XX （XXは別紙を添付する）",null,null,null,null,null,null,null,null,null,null,null,null,"別紙参照\n（＊４）",null,null,null,null,null,null,null,"JIS T 0601-2-XX (XX : Refer to Appendix Sheet)",null,null,null,null,null,null,null,null,null,null,null,null,"Refer to Appendix Sheet\n（＊４）",null,null,null,null,null,null,null,"○"]
[null,null,"IEC 61326-2-1/-2-2/-2-3/-2-5 ",null,null,null,null,null,null,null,null,null,null,null,null,"別紙参照\n（＊４）",null,null,null,null,null,null,null,"IEC 61326-2-1/-2-2/-2-3/-2-5 ",null,null,null,null,null,null,null,null,null,null,null,null,"Refer to Appendix Sheet\n（＊５）",null,null,null,null,null,null,null,"○"]
[null,null,"IEC 61000-4-2/-4-3/-4-4/-4-5/4-6/-4-8/-4/11",null,null,null,null,null,null,null,null,null,null,null,null,"別紙参照",null,null,null,null,null,null,null,"IEC 61000-4-2/-4-3/-4-4/-4-5/4-6/-4-8/-4/11",null,null,null,null,null,null,null,null,null,null,null,null,"Refer to Appendix Sheet"]
[null,null,"CISPR 11 (項10を除く)",null,null,null,null,null,null,null,null,null,null,null,null,"2015+A1:2016+A2:2019",null,null,null,null,null,null,null,"CISPR 11 (Except for clause 10)",null,null,null,null,null,null,null,null,null,null,null,null,"2015+A1:2016+A2:2019",null,null,null,null,null,null,null,"○"]
[]
[null,null,"（＊１）和文認定証_規格番号、英文認定証_規格番号",null,null,null,null,null,null,null,null,null,null,null,null,null,null,null,null,null,null,null,null,null,null,null,null,null,null,null,null,null,null,null,null,null,null,"※最大文字数：255／各セル"]
[null,null,null,null,"規格番号が英数字の場合は、和文認定証_規格番号と英文認定証_規格番号は同じ記述になります。"]
[null,null,null,null,"和文認定証_規格番号が漢字ひらがなを含む場合は、英文認定証_規格番号は英訳を記載します。"]
[null,null,null,null,"規格番号は正確に入力して下さい。"]
[null,null,null,null,null,"例）","正解：VCCI-CISPR 32、J55032、AS/NZS CISPR 32、EN 55032",null,null,null,null,null,null,null,null,null,null,null,null,null,null,null,null,null,null,null,null,null,"正解：IEC 61000-4-27/-34、EN 61000-4-27/-4-34"]
[null,null,null,null,null,null,"誤記：VCCI-CISPR32、J 55032、AS/NZS CISPR32、EN55032",null,null,null,null,null,null,null,null,null,null,null,null,null,null,null,null,null,null,null,null,null,"誤記：IEC/EN 61000-4-27/-4-34"]
[null,null,null,null,"規格番号を条件付きで運用する場合は（除外事項がある場合は）、その内容も記述して下さい。"]
[null,null,null,null,null,"例）","CISPR 11 (項10を除く)",null,null,null,null,null,null,null,null,null,"これは現場試験を除外する場合の記入例です。",null,null,null,null,null,null,null,null,null,null,null,null,null,null,null,null,null,null,null,null,null,null,null,null,null,null,null,null,null,"(r23) 追記"]
[null,null,null,null,"例えば、下記規格は除外事項の記載がなければ、"]
[null,null,null,null,null,null,"CISPR 32(EN 55032)は、衛星室外機を含む放送受信機能を含みます。"]
[null,null,null,null,null,null,"CISPR 35(EN 55035)は、Annex A～Annex H を全て含みます。"]
[null,null,null,null,"特に認定更新時に従前の試験規格を継続申請する場合は、規格番号の廃止/失効の有無をご確認下さい。"]
[null,null,null,null,null,"例）","CISPR 22、EN 55022、J55001、J55013、J55022、JIS C 1806-1"]
[null,null,"（＊２）FCC認定試験所登録の場合は、KDB974614 APPENDIX A Table A1の該当するFCC Accredited Laboratory ScopeとTest Method(s)"]
[null,null,null,null,"を記載する。尚、これらに係る規格の「版/発行年」は記載不要です。"]
[null,null,"（＊３）電安法や電波法などは法令で規制する為「版/発行年」は記載不要です。"]
[null,null,null,null,"Wi-SUN試験もWi-SUN認証を受けていれば「版/発行年」は規制当局側が決めているので、記載不要です。"]
[null,null,"（＊４）IEC 60601-2-xx 等のシリーズ規格は具体的に(版/発行年を含めて)記載して下さい。別紙提示も可です。"]
[null,null,null,null,"特に医用電気機器や制御機器・計測機器は、認定証に記載する試験規格の記述を別紙でご提示ください。"]
[null,null,null,null,"更新申請時（または拡大申請時）は、これら別紙も規格番号のBefore/Afterが判るようにご留意ください。"]
[null,null,"（＊５）Amendmentでも規格番号と表題が付けられ、個別に発行されている場合は規格と同等に扱います。"]
[null,null,null,null,"例えば、「ANSI C63.4a-2017」と「ANSI C63.4-2014」は別規格として扱います。"]
[null,null,"（＊６）例示した「2004+AMD1:2010」は「2004+Cor.1:2006+AMD1:2010」と同義です。AMD1:2010はCor.1:2006を含む為。"]
[null,null,null,null,"「IEC 61000-4-4:2004+A1:2010」は、2004、2004+A1:2010の両方を認定範囲に含みます。"]
[]
[null,"対象となる製品カテゴリはプログラム毎にご記入ください。"]
[null,null,"以下は、No.23 の記述例です。"]
[null,null,null,"国際エネルギースタープログラム運用細則"]
[null,null,"和文認定証_製品カテゴリ",null,null,null,null,null,null,null,null,null,null,null,null,"備考",null,null,null,null,null,null,null,"英文認定証_製品カテゴリ",null,null,null,null,null,null,null,null,null,null,null,null,"備考"]
[null,null,"画像機器類",null,null,null,null,null,null,null,null,null,null,null,null,null,null,null,null,null,null,null,null,"Imaging Equipment"]
[]
[]
[]
["備考"]
[null,"・","参照規格を認定範囲に含めた場合は、それら単独で試験報告書に認定シンボルを付与できるケースは限られます。"]
[null,null,"その他、注意事項は「VF100 付録3」を参照願います。"]
[null,"・","製品規格が要求する参照規格は旧版だが、顧客要求により当該参照規格に最新版を適用する場合があります。"]
[null,null,"製品規格と参照規格(最新版)を認定範囲に含む場合に限り、上記対応に対する認定シンボル付与は有効です。"]

{"sheet":"添付資料","index":2,"n_rows":130,"n_cols":15,"rows_kept":130,"cut":false,"hidden":false,"merged":[]}
["VLAC-VF100：2024 r23"]
["発行年月日：2024年02月15日"]
[]
["添付資料"]
[null,"・","認定申請書、添付資料および付属書は事前連絡の上、弊社Fileサービス「Box」にアップロードしてください。"]
[null,null,"Boxが利用できない場合は別のFileサービスを使うか、申請資料をDVDに記録して提出して下さい。"]
[null,null,"＜付記＞本シートB列「□」をセルフチェックして、提出資料に不足がないか確認して下さい。"]
[null,"・","電子ファイルのファイル名は「項番＋文書名」を付けて下さい。（例）「①認定申請書（VLAC-VF100）」"]
[null,"・","添付書類の様式は記載例を示すものであり、申請者が所有する様式の活用を妨げるものではありません。"]
[null,"・","書類審査では記載内容を確認します。例えば校正報告書は表紙だけの提出は不可です。",null,null,null,null,null,null,null,null,null,null,null,"(r23) 追記"]
[]
["【ISO/IEC 17025：2017年版】"]
[null,"新規認定・認定更新・認定拡大・認定変更"]
[null,"・","新規・更新の申請時は資料①～⑳を提出して下さい。更新申請時に拡大を含む場合は資料㉑も提出して下さい。"]
[null,"・","拡大・変更の申請時は関連する資料①～⑤、⑦～㉑を提出して下さい"]
[null,null,"①　認定申請書　（VLAC-VF100）"]
[null,null,null,"IEC 60601-1 シリーズ等の規格シリーズは申請規格を別紙で示してもよいです。"]
[null,null,null,"自動車・車載機器は「VF100別紙（車載試験区分）」も提出して下さい。",null,null,null,null,null,null,null,null,null,null,"(r23) 追記"]
[null,null,"②　認定取決め事項の同意書　（VLAC-VF108）"]
[null,null,"③　マネジメントシステム文書"]
[null,null,null,"従来の品質マニュアルに該当するもの。どのような表題でもよい。"]
[null,null,null,"ISO/IEC 17025:2017の項番とマネジメントシステムの項番が異なる場合はその読替表も添える。"]
[null,null,"③-1","試験所マネジメントシステムチェックシート（VF106-2）："]
[null,null,null,"ISO/IEC 17025の要求事項に対応する貴試験所の文書番号/記録/所見を記入して下さい。"]
[null,null,"④　公平性に関するリスクの特定とリスクを排除又は最小化した記録"]
[null,null,"⑤　リスク及び機会への取組みの記録"]
[null,null,null,"苦情・異議申し立てを受けた場合はそれを処置した記録を含む。"]
[null,null,"⑥　法人登記簿のコピー"]
[null,null,null,"新規申請時は事業概要書を付けて下さい。"]
[null,null,"⑦　ラボラトリ組織図"]
[null,null,null,"ラボラトリが大きな組織の一部である場合は、他の部署との関係を示す組織図も含む。対象範囲を明記する。"]
[null,null,"⑧　要員のリスト"]
[null,null,null,"試験・校正要員以外にもマネジメントシステムを適用する要員を含む。"]
[null,null,"⑨　ラボラトリが管理している文書のリスト"]
[null,null,"⑩　設備及びソフトウェアのリスト"]
[null,null,null,"ISO/IEC 17025:2017 6.4.13項を参照。リストは複数でもよい（一つにまとめなくてもよい）。"]
[null,null,"⑪　試験・測定の系統図（ブロックダイヤグラム）"]
[null,null,"⑫　設備の適合性検証記録"]
[null,null,null,"認定を取得している（取得する）範囲に関連するものだけで良い。本項はVE107の2.2項記載の特定要求事項に該当する。"]
[null,null,null,"試験区分シートに記述した「付属書」は旧VFxxx様式ではなく、試験所が保有する様式を使って下さい。"]
[null,null,"・放射妨害波測定設備（サイトアッテネーション、Site-VSWR、放射妨害波測定系ノイズフロア）"]
[null,null,"・伝導妨害波測定設備（伝導妨害波測定系ノイズフロア）"]
[null,null,"・放射電磁界イミュニティ試験設備（放射電磁界均一性）"]
[null,null,"・通信機性能試験設備（周囲電磁環境、試験場の検証データ）"]
[null,null,"・騒音試験設備（無響特性）"]
[null,null,"・電気安全試験設備（試験用供給電源の歪）"]
[null,null,"・その他、申請した試験区分に特有の試験設備"]
[null,null,"⑬　内部校正に関する記録"]
[null,null,"・内部校正項目確認シート（VLAC-VF150）"]
[null,null,"・ラボラトリ自身で行った校正の校正報告書（校正証明書）各一通",null,null,null,null,null,null,"※ラボラトリ自身で校正を行わない場合は不要。"]
[null,null,"⑭　技能試験又は試験所間比較の結果と考察"]
[null,null,null,"過去の履歴も記録してあると良い。"]
[null,null,"⑮　認定を受けている、拡大する、並びに変更する規格の試験報告書各一通"]
[null,null,null,"更新申請：認定シンボル付きの試験報告書、新規/拡大：認定範囲の試験報告書（認定シンボルなし）"]
[null,null,null,"同等規格又は類似規格（例:CISPR 32、EN 55032、CISPR J32）はその中の代表的な規格でよい。"]
[null,null,null,"顧客の報告書をコピーする場合は機密保持に注意する。"]
[null,null,null,"現場試験に対して 認定シンボル付き試験報告書を発行する場合は、",null,null,null,null,null,null,null,null,null,null,"(r23) 追記"]
[null,null,null,"・当該試験報告書に加えて、VLAC審査に供する為のテストプランも提出する。"]
[null,null,null,"・現場試験の初回認定審査は必ず拡大申請を行って下さい。認定取得以降は更新申請に含めてよいです。"]
[null,null,null,"（注）現場試験の初回認定審査は拡大申請を行って下さい。2回目以降は更新申請に含めてよいです。"]
[null,null,"⑯　最新の内部監査の記録"]
[null,null,null,"現場試験に対して認定シンボル付き試験報告書を発行する場合は、現場試験専用の内部監査記録を提出する。",null,null,null,null,null,null,null,null,null,null,"(r23) 追記"]
[null,null,"⑰　最新のマネジメントレビューの記録"]
[null,null,"⑱　前回サーベイランス時の観察事項に対する対応記録"]
[null,null,"⑲　過去１年の規格別の試験報告書発行実績"]
[null,null,null,"VLAC認定シンボル付きの発行件数を把握するのが目的です。"]
[null,null,"⑳　FCC関連資料"]
[null,null,"⑳-1","FCC登録規格と周波数（VF100_付録2）：認定範囲に対応する測定上限周波数を記入して下さい。"]
[null,null,"⑳-2","FCCチェックリスト：FCCサイト登録を希望する場合は全項目確認の上、チェックを入れて提出して下さい。"]
[null,null,null,"（書式）","853844 Accredited Testing Laboratory Checklist"]
[null,null,"㉑　拡大・変更時に必要な資料"]
[null,null,null,"ラボラトリのマネジメントシステムに従って、拡大及び変更を実施した記録。"]
[null,null,null,"（例:要員の教育記録、試験が適切に実施できることを検証した記録、リスクアセスメント記録など）"]
[null,null,null,"他の認定機関からVLACに移行する場合も拡大として取り扱う。資料⑫等を提出する。"]
[]
[null,"サーベイランス"]
[null,null,"①　認定申請書　（VLAC-VF100）"]
[null,null,"②　認定取決め事項の同意書　（VLAC-VF108）"]
[null,null,"③　マネジメントシステム文書"]
[null,null,null,"ISO/IEC 17025:2017の項番とマネジメントシステムの項番が異なる場合はその読替表も添える。"]
[null,null,"③-1","試験所マネジメントシステムチェックシート（VF106-2）："]
[null,null,null,"ISO/IEC 17025の要求事項に対応する貴試験所の文書番号/記録/所見を記入して下さい。"]
[null,null,"④　公平性に関するリスクの特定とリスクを排除又は最小化した記録"]
[null,null,null,"前回の更新審査以降の変更有無に関わらず提出する。"]
[null,null,"⑤　リスク及び機会への取組みの記録"]
[null,null,null,"苦情・異議申し立てを受けた場合はそれを処置した記録を含む。"]
[null,null,"⑥　事業概要書または定款"]
[null,null,null,"法人登記簿のコピーで代用してもよい。"]
[null,null,"⑦　ラボラトリ組織図"]
[null,null,null,"前回の更新審査以降の変更有無に関わらず提出する。"]
[null,null,null,"ラボラトリが大きな組織の一部である場合は、他の部署との関係を示す組織図も含む。対象範囲を明記する。"]
[null,null,"⑧　要員のリスト"]
[null,null,null,"試験・校正要員以外にもマネジメントシステムを適用する要員を含む。"]
[null,null,"⑨　ラボラトリが管理している文書のリスト"]
[null,null,null,"前回の更新審査以降の変更有無に関わらず提出する。"]
[null,null,"⑩　設備及びソフトウェアのリスト"]
[null,null,null,"ISO/IEC 17025:2017 6.4.13項を参照。リストは複数でもよい（一つにまとめなくてもよい）。"]
[null,null,"⑪　（欠番）"]
[null,null,"⑫　設備の適合性検証記録"]
[null,null,null,"前回更新審査以降に実施した記録を提出する。"]
[null,null,"⑫-1","測定設備の変更・改修履歴"]
[null,null,null,"測定設備の特性・性能に影響を与える大幅な変更・改修などを行った場合、"]
[null,null,null,"変更・改修後の特性・性能確認資料（図、表、データ、写真）を添付する。"]
[null,null,"⑬　内部校正に関する記録"]
[null,null,"・内部校正項目確認シート（VLAC-VF150）"]
[null,null,"・ラボラトリ自身で行った校正の校正報告書（校正証明書）各一通",null,null,null,null,null,null,"※ラボラトリ自身で校正を行わない場合は不要。"]
[null,null,"⑭　技能試験又は試験所間比較の結果と考察"]
[null,null,null,"過去の履歴も記録してあると良い。"]
[null,null,"⑮　認定を受けている規格の試験報告書各一通"]
[null,null,null,"同等規格又は類似規格（例:CISPR 32、EN 55032、CISPR J32）はその中の代表的な規格でよい。"]
[null,null,null,"顧客の報告書をコピーする場合は機密保持に注意する。"]
[null,null,null,"（注）試験内容が同じでも特別試験条件がある場合は試験報告書を提出する。（例）EN 301 489-系"]
[null,null,null,"現場試験に対して認定シンボル付き試験報告書を発行する場合は、テストプランも提出する。",null,null,null,null,null,null,null,null,null,null,"(r23) 追記"]
[null,null,null,"・当該試験報告書に加えて、VLAC審査に供する為のテストプランも提出する。"]
[null,null,"⑯　最新の内部監査の記録"]
[null,null,null,"現場試験に対して認定シンボル付き試験報告書を発行する場合は、現場試験専用の内部監査記録を提出する。",null,null,null,null,null,null,null,null,null,null,"(r23) 追記"]
[null,null,"⑰　最新のマネジメントレビューの記録"]
[null,null,"⑱　前回更新審査時の観察事項に対する対応記録"]
[null,null,"⑲　過去１年の規格別の試験報告書発行実績"]
[null,null,null,"VLAC認定シンボル付きの発行件数を把握するのが目的です。"]
[]
[]
[]
[null,"認定変更 ［注１］"]
[null,"・","「VLAC-VR100A:2022 試験所の認定に関する規定」の9.1章を参照。"]
[null,null,"［注１］現認定証に技術的に同等な試験規格（IDT）を追記するケースに限定する。"]
[null,null,"［注2］技術的に同等である確証がとれない場合は、「認定拡大申請」を行って頂きます。"]
[null,null,"［注3］サーベイランス申請書（＋認定変更申請書）により申請することもできます。"]
[null,null,"①　認定申請書　（VLAC-VF100）",null,null,null,"※「試験規格入力sht」は従前規格(○印)と追加規格(●印)を交互に記述する。"]
[null,null,"㉑　拡大・変更時に必要な資料",null,null,null,"※従前規格と追加規格が技術的に同一であることを示す確証を提出する。"]

{"sheet":"表紙","index":3,"n_rows":127,"n_cols":38,"rows_kept":127,"cut":false,"hidden":false,"merged":[[40,10,40,32],[99,4,99,23],[99,26,99,28],[104,4,104,29],[102,4,102,5],[102,7,102,9],[91,4,91,23],[91,26,91,28],[94,4,94,5],[94,7,94,9],[96,4,96,29],[83,4,83,23],[83,26,83,28],[86,4,86,5],[86,7,86,9],[88,4,88,29],[107,4,107,23],[110,4,110,5],[110,7,110,9],[107,26,107,28],[112,4,112,29],[80,4,80,29],[62,4,62,5],[62,7,62,9],[64,4,64,29],[67,4,67,23],[67,26,67,28],[70,4,70,5],[70,7,70,9],[72,4,72,29],[75,4,75,23],[75,26,75,28],[78,4,78,5],[78,7,78,9],[1,27,1,28],[1,30,1,31],[1,22,1,25],[10,8,10,14],[10,15,10,18],[10,19,10,26],[6,30,7,37],[14,8,14,14],[59,4,59,23],[59,26,59,28],[14,15,14,18],[14,19,14,26],[16,8,16,14],[16,15,16,18],[16,19,16,29],[18,19,18,29],[32,11,32,12],[32,14,32,16],[51,4,51,23],[51,26,51,28],[54,4,54,5],[54,7,54,9],[56,4,56,29],[12,19,12,26],[12,8,12,14],[18,8,18,14],[42,10,42,32],[24,10,24,32],[28,10,28,32],[30,10,30,32],[34,10,34,32],[36,10,36,32],[38,10,38,32],[26,11,26,12],[26,14,26,16],[26,18,26,32],[32,18,32,32],[12,15,12,18],[18,15,18,18],[115,4,115,23],[115,26,115,28],[118,4,118,5],[118,7,118,9],[120,4,120,29],[123,4,123,23],[123,26,123,28],[126,4,126,5],[126,7,126,9],[128,4,128,29]]}
["VLAC-VF100：2024 r23"]
["発行年月日：2024年02月15日",null,null,null,null,null,null,null,null,null,null,null,null,null,null,null,null,null,null,null,null,"西暦",null,null,null,null,"年",null,null,"月",null,null,"日"]
[]
[null,"株式会社　電磁環境試験所認定センター　殿"]
["試験所認定・サーベイランス審査申請"]
["新規認定・認定更新・認定拡大・認定変更申請書"]
["初回サーベイランス・サーベイランス申請書",null,null,null,null,null,null,null,null,null,null,null,null,null,null,null,null,null,null,null,null,null,null,null,null,null,null,null,null,null,"未チェック"]
[]
[null,null,"（申請種別）",null,null,null,null,null,"新規認定審査",null,null,null,null,null,null,null,null,null,null,null,null,null,null,null,null,null,null,null,null,null,null,null,null,null,null,null,null,"（<注>ボタンを押してエラー有無を確認して下さい。↑）"]
[]
[null,null,null,null,null,null,null,null,"認定番号　第ＶＬＡＣ－",null,null,null,null,null,null,null,null,null,null,"号の認定の更新審査(*1)"]
[]
[null,null,null,null,null,null,null,null,"認定番号　第ＶＬＡＣ－",null,null,null,null,null,null,null,null,null,null,"号の認定拡大(*1)"]
[]
[null,null,null,null,null,null,null,null,"認定番号　第ＶＬＡＣ－",null,null,null,null,null,null,null,null,null,null,"号の変更審査(*1)"]
[]
[null,null,null,null,null,null,null,null,"認定番号　第ＶＬＡＣ－",null,null,null,null,null,null,null,null,null,null,"号の初回サーベイランス審査(*1)"]
[]
[null,null,null,null,null,null,null,null,"認定番号　第ＶＬＡＣ－",null,null,null,null,null,null,null,null,null,null,"号のサーベイランス審査(*1)"]
[]
[null,null,null,null,null,null,null,null,null,null,null,null,null,null,null,null,null,null,null,null,null,null,null,null,null,null,null,null,null,null,null,null,null,null,null,null,null,"(*1)認定番号の枝番は記入不要です。枝番は下記の試験場名称記入欄の（　）に入力してください。"]
[]
["審査費用は貴社の請求書に従い指定金融機関に振り込みます。"]
[]
[null,null,null,null,null,null,null,null,"試験所名（申請者/法人名）","："]
[]
[null,null,null,null,null,null,null,null,"所在地","：","〒",null,null,"－"]
[]
[null,null,null,null,null,null,null,null,"代表者の所属","："]
[]
[null,null,null,null,null,null,null,null,"氏名","："]
[]
[null,null,"連絡担当者",null,null,null,null,null,"住所","：","〒",null,null,"－"]
[]
[null,null,null,null,null,null,null,null,"所属","："]
[]
[null,null,null,null,null,null,null,null,"氏名","："]
[]
[null,null,null,null,null,null,null,null,"電話番号","："]
[]
[null,null,null,null,null,null,null,null,"FAX番号","："]
[]
[null,null,null,null,null,null,null,null,"E-mail","："]
[]
[]
[]
[null,"１．試験場名称"]
[null,null,"申請する試験場を全てご記入下さい。VR100A第6条に従った主試験場には□にチェックを入れて下さい。"]
[null,null,"１枝番/１住所で記入します。（ISO/IEC 17011:2017 要求により適合性評価活動を住所単位で管理するため）"]
[null,null,"新規申請の場合で複数試験場を有する場合も枝番1,2,3･･･を記入します。1試験所/1試験場の場合は枝番記入は不要です。"]
[null,null,null,"試験場名称",null,null,null,null,null,null,null,null,null,null,null,null,null,null,null,null,null,null,null,null,null,"枝番号"]
[null,null,null,null,null,null,null,null,null,null,null,null,null,null,null,null,null,null,null,null,null,null,null,null,null,"（",null,null,null,"）"]
[]
[null,null,null,"住所"]
[null,null,null,"〒",null,null,"－"]
[]
[]
[]
[null,null,null,"試験場名称",null,null,null,null,null,null,null,null,null,null,null,null,null,null,null,null,null,null,null,null,null,"枝番号"]
[null,null,null,null,null,null,null,null,null,null,null,null,null,null,null,null,null,null,null,null,null,null,null,null,null,"（",null,null,null,"）"]
[]
[null,null,null,"住所"]
[null,null,null,"〒",null,null,"－"]
[]
[]
[]
[null,null,null,"試験場名称",null,null,null,null,null,null,null,null,null,null,null,null,null,null,null,null,null,null,null,null,null,"枝番号"]
[null,null,null,null,null,null,null,null,null,null,null,null,null,null,null,null,null,null,null,null,null,null,null,null,null,"（",null,null,null,"）"]
[]
[null,null,null,"住所"]
[null,null,null,"〒",null,null,"－"]
[]
[]
[]
[null,null,null,"試験場名称",null,null,null,null,null,null,null,null,null,null,null,null,null,null,null,null,null,null,null,null,null,"枝番号"]
[null,null,null,null,null,null,null,null,null,null,null,null,null,null,null,null,null,null,null,null,null,null,null,null,null,"（",null,null,null,"）"]
[]
[null,null,null,"住所"]
[null,null,null,"〒",null,null,"－"]
[]
[]
[]
[null,null,null,"試験場名称",null,null,null,null,null,null,null,null,null,null,null,null,null,null,null,null,null,null,null,null,null,"枝番号"]
[null,null,null,null,null,null,null,null,null,null,null,null,null,null,null,null,null,null,null,null,null,null,null,null,null,"（",null,null,null,"）"]
[]
[null,null,null,"住所"]
[null,null,null,"〒",null,null,"－"]
[]
[]
[]
[null,null,null,"試験場名称",null,null,null,null,null,null,null,null,null,null,null,null,null,null,null,null,null,null,null,null,null,"枝番号"]
[null,null,null,null,null,null,null,null,null,null,null,null,null,null,null,null,null,null,null,null,null,null,null,null,null,"（",null,null,null,"）"]
[]
[null,null,null,"住所"]
[null,null,null,"〒",null,null,"－"]
[]
[]
[]
[null,null,null,"試験場名称",null,null,null,null,null,null,null,null,null,null,null,null,null,null,null,null,null,null,null,null,null,"枝番号"]
[null,null,null,null,null,null,null,null,null,null,null,null,null,null,null,null,null,null,null,null,null,null,null,null,null,"（",null,null,null,"）"]
[]
[null,null,null,"住所"]
[null,null,null,"〒",null,null,"－"]
[]
[]
[]
[null,null,null,"試験場名称",null,null,null,null,null,null,null,null,null,null,null,null,null,null,null,null,null,null,null,null,null,"枝番号"]
[null,null,null,null,null,null,null,null,null,null,null,null,null,null,null,null,null,null,null,null,null,null,null,null,null,"（",null,null,null,"）"]
[]
[null,null,null,"住所"]
[null,null,null,"〒",null,null,"－"]
[]
[]
[]
[null,null,null,"試験場名称",null,null,null,null,null,null,null,null,null,null,null,null,null,null,null,null,null,null,null,null,null,"枝番号"]
[null,null,null,null,null,null,null,null,null,null,null,null,null,null,null,null,null,null,null,null,null,null,null,null,null,"（",null,null,null,"）"]
[]
[null,null,null,"住所"]
[null,null,null,"〒",null,null,"－"]
[]
[]
[]
[null,null,null,"試験場名称",null,null,null,null,null,null,null,null,null,null,null,null,null,null,null,null,null,null,null,null,null,"枝番号"]
[null,null,null,null,null,null,null,null,null,null,null,null,null,null,null,null,null,null,null,null,null,null,null,null,null,"（",null,null,null,"）"]
[]
[null,null,null,"住所"]
[null,null,null,"〒",null,null,"－"]

{"sheet":"英文名称入力","index":4,"n_rows":30,"n_cols":2,"rows_kept":30,"cut":false,"hidden":false,"merged":[]}
[]
[null,"英文ホームページ情報（入力必須）"]
[]
[null,"英文試験所名称"]
[]
[]
[null,"英文試験所所在地"]
[]
[]
[null,"英文試験場名称"]
[]
[]
[null,"英文試験場所在地"]
[]
[]
[null,"英文試験所責任者名(Contact Person)"]
[]
[null,"    　　　　 "]
[null,"英文試験所責任者職責タイトル"]
[]
[null,"    　　　　 "]
[null,"試験所責任者メールアドレス"]
[]
[]
[null,"外部への試験業務サービス"]
[]
[]
[null,"FCC試験所登録を希望する"]
[]
[null,"FCC試験所登録では、Scope、Test Methodは共に一部除外を認めていません。\n（例）Scope「FCC Part 15, Subpart B」のTest Method「ANSI C63.4-2014」ではカバーする試験全てを認定範囲とする必要あり。その為、放送受信機試験の除外はできません。"]

{"sheet":"基本情報入力","index":5,"n_rows":71,"n_cols":58,"rows_kept":71,"cut":false,"hidden":false,"merged":[[70,22,70,25],[65,1,70,3],[65,4,66,8],[65,9,66,12],[65,13,66,15],[65,16,66,18],[70,4,70,7],[70,14,70,17],[67,4,69,8],[67,9,69,12],[67,13,69,15],[67,16,69,18],[68,25,68,28],[69,25,69,28],[2,2,2,21],[2,24,2,26],[5,2,5,3],[5,5,5,7],[6,2,6,27],[65,30,66,34],[67,22,69,24],[67,30,69,34],[67,19,69,21],[65,19,66,21],[65,22,66,24],[65,25,66,29],[67,25,67,29]]}
[null,"2．試験場名称"]
[null,null,null,null,null,null,null,null,null,null,null,null,null,null,null,null,null,null,null,null,null,null,null,"枝番号"]
[null,null,null,null,null,null,null,null,null,null,null,null,null,null,null,null,null,null,null,null,null,null,null,"（",null,null,null,"）"]
[]
[null,"住所"]
[null,"〒",null,null,"－"]
[]
[]
[]
[null,"3．申請試験項目（申請する試験項目にチェックしてください。）",null,null,null,null,null,null,null,null,null,null,null,null,null,null,null,null,null,null,null,null,null,null,null,null,null,null,null,null,null,null,null,null,null,null,null,null,null,null,null,null,null,null,null,null,null,null,null,null,null,null,"項番","階層","表示タイプ","チェック内容","枝番設定","試験項目コード"]
[null,null,"エミッション",null,null,null,null,null,null,null,null,null,null,null,null,null,null,null,null,null,null,null,null,null,null,null,null,null,null,null,null,null,null,null,null,null,null,null,null,null,null,null,null,null,null,null,null,null,null,null,null,null,1,1,0,null,null,"項目_エミ"]
[null,null,null,"放射妨害波（FCC、CISPR11関連規格の1 GHz超試験を含む）",null,null,null,null,null,null,null,null,null,null,null,null,null,null,null,null,null,null,null,null,null,null,null,null,null,null,null,null,null,null,null,null,null,null,null,null,null,null,null,null,null,null,null,null,null,null,null,null,2,2,0,null,null,"項目_エミ_放射妨害波"]
[null,null,null,"伝導妨害波",null,null,null,null,null,null,null,null,null,null,null,null,null,null,null,null,null,null,null,null,null,null,null,null,null,null,null,null,null,null,null,null,null,null,null,null,null,null,null,null,null,null,null,null,null,null,null,null,3,2,0,null,null,"項目_エミ_伝導妨害波"]
[null,null,"イミュニティ",null,null,null,null,null,null,null,null,null,null,null,null,null,null,null,null,null,null,null,null,null,null,null,null,null,null,null,null,null,null,null,null,null,null,null,null,null,null,null,null,null,null,null,null,null,null,null,null,null,4,1,0,null,null,"項目_イミ"]
[null,null,null,"静電気",null,null,null,null,null,null,null,null,null,null,null,null,null,null,null,null,null,null,null,null,null,null,null,null,null,null,null,null,null,null,null,null,null,null,null,null,null,null,null,null,null,null,null,null,null,null,null,null,5,2,0,null,null,"項目_イミ_静電気"]
[null,null,null,"放射電磁界",null,null,null,null,null,null,null,null,null,null,null,null,null,null,null,null,null,null,null,null,null,null,null,null,null,null,null,null,null,null,null,null,null,null,null,null,null,null,null,null,null,null,null,null,null,null,null,null,6,2,0,null,null,"項目_イミ_放射電磁界"]
[null,null,null,"電気的過度バースト",null,null,null,null,null,null,null,null,null,null,null,null,null,null,null,null,null,null,null,null,null,null,null,null,null,null,null,null,null,null,null,null,null,null,null,null,null,null,null,null,null,null,null,null,null,null,null,null,7,2,0,null,null,"項目_イミ_電気的過渡バースト"]
[null,null,null,"サージ",null,null,null,null,null,null,null,null,null,null,null,null,null,null,null,null,null,null,null,null,null,null,null,null,null,null,null,null,null,null,null,null,null,null,null,null,null,null,null,null,null,null,null,null,null,null,null,null,8,2,0,null,null,"項目_イミ_サージ"]
[null,null,null,"無線周波伝導妨害波",null,null,null,null,null,null,null,null,null,null,null,null,null,null,null,null,null,null,null,null,null,null,null,null,null,null,null,null,null,null,null,null,null,null,null,null,null,null,null,null,null,null,null,null,null,null,null,null,9,2,0,null,null,"項目_イミ_無線周波伝導妨害"]
[null,null,null,"放射磁界",null,null,null,null,null,null,null,null,null,null,null,null,null,null,null,null,null,null,null,null,null,null,null,null,null,null,null,null,null,null,null,null,null,null,null,null,null,null,null,null,null,null,null,null,null,null,null,null,10,2,0,null,null,"項目_イミ_放射磁界"]
[null,null,null,"電源電圧変動",null,null,null,null,null,null,null,null,null,null,null,null,null,null,null,null,null,null,null,null,null,null,null,null,null,null,null,null,null,null,null,null,null,null,null,null,null,null,null,null,null,null,null,null,null,null,null,null,11,2,0,null,null,"項目_イミ_電源電圧変動"]
[null,null,"1 GHz超放射妨害波エミッション(CISPR32関連規格, VCCI技術基準による1 GHz超の試験）",null,null,null,null,null,null,null,null,null,null,null,null,null,null,null,null,null,null,null,null,null,null,null,null,null,null,null,null,null,null,null,null,null,null,null,null,null,null,null,null,null,null,null,null,null,null,null,null,null,12,1,0,null,null,"項目_1GHz超放射妨害波エミ"]
[null,null,"電力送電機器イミュニティ",null,null,null,null,null,null,null,null,null,null,null,null,null,null,null,null,null,null,null,null,null,null,null,null,null,null,null,null,null,null,null,null,null,null,"※試験区分入力シートの6.8項を参照　(r22)",null,null,null,null,null,null,null,null,null,null,null,null,null,null,20,1,0,null,null,"項目_電力送電機器イミ"]
[null,null,"電源高調波",null,null,null,null,null,null,null,null,null,null,null,null,null,null,null,null,null,null,null,null,null,null,null,null,null,null,null,null,null,null,null,null,null,null,null,null,null,null,null,null,null,null,null,null,null,null,null,null,null,24,1,0,null,null,"項目_電源高調波"]
[null,null,null,"高調波電流",null,null,null,null,null,null,null,null,null,null,null,null,null,null,null,null,null,null,null,null,null,null,null,null,null,null,null,null,null,null,null,null,null,null,null,null,null,null,null,null,null,null,null,null,null,null,null,null,25,2,0,null,null,"項目_電源高調波_高調波電流"]
[null,null,null,"電源電圧動揺",null,null,null,null,null,null,null,null,null,null,null,null,null,null,null,null,null,null,null,null,null,null,null,null,null,null,null,null,null,null,null,null,null,null,null,null,null,null,null,null,null,null,null,null,null,null,null,null,26,2,0,null,null,"項目_電源高調波_電源電圧動揺"]
[null,null,"音響(空気伝搬騒音)",null,null,null,null,null,null,null,null,null,null,null,null,null,null,null,null,null,null,null,null,null,null,null,null,null,null,null,null,null,null,null,null,null,null,null,null,null,null,null,null,null,null,null,null,null,null,null,null,null,27,1,0,null,null,"項目_空気伝搬騒音"]
[null,null,"通信機器性能１",null,null,null,null,null,null,null,null,null,null,null,null,null,null,null,null,null,null,null,null,null,null,null,null,null,null,null,null,null,null,null,null,null,null,null,null,null,null,null,null,null,null,null,null,null,null,null,null,null,28,1,0,null,null,"項目_通信機器1"]
[null,null,null,"FCC",null,null,null,null,null,null,null,null,null,null,null,null,null,null,null,null,null,null,null,null,null,null,null,null,null,null,null,null,null,null,null,null,null,null,null,null,null,null,null,null,null,null,null,null,null,null,null,null,29,2,0,null,null,"項目_通信機器1_FCC"]
[null,null,null,"カナダ",null,null,null,null,null,null,null,null,null,null,null,null,null,null,null,null,null,null,null,null,null,null,null,null,null,null,null,null,null,null,null,null,null,null,null,null,null,null,null,null,null,null,null,null,null,null,null,null,30,2,0,null,null,"項目_通信機器1_カナダ"]
[null,null,null,"欧州",null,null,null,null,null,null,null,null,null,null,null,null,null,null,null,null,null,null,null,null,null,null,null,null,null,null,null,null,null,null,null,null,null,null,null,null,null,null,null,null,null,null,null,null,null,null,null,null,31,2,0,null,null,"項目_通信機器1_欧州"]
[null,null,null,"電波法",null,null,null,null,null,null,null,null,null,null,null,null,null,null,null,null,null,null,null,null,null,null,null,null,null,null,null,null,null,null,null,null,null,null,null,null,null,null,null,null,null,null,null,null,null,null,null,null,32,2,0,null,null,"項目_通信機器1_電波法"]
[null,null,null,"その他",null,null,null,null,null,null,null,null,null,null,null,null,null,null,null,null,null,null,null,null,null,null,null,null,null,null,null,null,null,null,null,null,null,null,null,null,null,null,null,null,null,null,null,null,null,null,null,null,33,2,0,null,null,"項目_通信機器1_その他"]
[null,null,"通信機器性能2",null,null,null,null,null,null,null,null,null,null,null,null,null,null,null,null,null,null,null,null,null,null,null,null,null,null,null,null,null,null,null,null,null,null,null,null,null,null,null,null,null,null,null,null,null,null,null,null,null,34,1,0,null,null,"項目_通信機器2"]
[null,null,null,"電磁界ばく露(局所比吸収率)",null,null,null,null,null,null,null,null,null,null,null,null,null,null,null,null,null,null,null,null,null,null,null,null,null,null,null,null,null,null,null,null,null,null,null,null,null,null,null,null,null,null,null,null,null,null,null,null,35,2,0,null,null,"項目_通信機器2_電磁界ばく露_局所比吸収率"]
[null,null,null,"電磁界ばく露(磁界強度)",null,null,null,null,null,null,null,null,null,null,null,null,null,null,null,null,null,null,null,null,null,null,null,null,null,null,null,null,null,null,null,null,null,null,null,null,null,null,null,null,null,null,null,null,null,null,null,null,36,2,0,null,null,"項目_通信機器2_電磁界ばく露_磁界強度"]
[null,null,"通信機器性能3",null,null,null,null,null,null,null,null,null,null,null,null,null,null,null,null,null,null,null,null,null,null,null,null,null,null,null,null,null,null,null,null,null,null,null,null,null,null,null,null,null,null,null,null,null,null,null,null,null,37,1,0,null,null,"項目_通信機器3"]
[null,null,null,"公衆回線接続通信端末機器試験",null,null,null,null,null,null,null,null,null,null,null,null,null,null,null,null,null,null,null,null,null,null,null,null,null,null,null,null,null,null,null,null,null,null,null,null,null,null,null,null,null,null,null,null,null,null,null,null,38,2,0,null,null,"項目_通信機器3_有線通信機器"]
[null,null,"製品安全",null,null,null,null,null,null,null,null,null,null,null,null,null,null,null,null,null,null,null,null,null,null,null,null,null,null,null,null,null,null,null,null,null,null,null,null,null,null,null,null,null,null,null,null,null,null,null,null,null,39,1,0,null,null,"項目_製品安全"]
[null,null,null,"家電製品",null,null,null,null,null,null,null,null,null,null,null,null,null,null,null,null,null,null,null,null,null,null,null,null,null,null,null,null,null,null,null,null,null,null,null,null,null,null,null,null,null,null,null,null,null,null,null,null,40,2,0,null,null,"項目_製品安全_家電製品"]
[null,null,null,"マルチメディア",null,null,null,null,null,null,null,null,null,null,null,null,null,null,null,null,null,null,null,null,null,null,null,null,null,null,null,null,null,null,null,null,null,null,null,null,null,null,null,null,null,null,null,null,null,null,null,null,41,2,0,null,null,"項目_製品安全_IT機器"]
[null,null,null,"医用電気機器",null,null,null,null,null,null,null,null,null,null,null,null,null,null,null,null,null,null,null,null,null,null,null,null,null,null,null,null,null,null,null,null,null,null,null,null,null,null,null,null,null,null,null,null,null,null,null,null,42,2,0,null,null,"項目_製品安全_医用電気機器"]
[null,null,null,"制御機器・計測機器",null,null,null,null,null,null,null,null,null,null,null,null,null,null,null,null,null,null,null,null,null,null,null,null,null,null,null,null,null,null,null,null,null,null,null,null,null,null,null,null,null,null,null,null,null,null,null,null,43,2,0,null,null,"項目_製品安全_制御機器計測機器"]
[null,null,"環境（消費電力）",null,null,null,null,null,null,null,null,null,null,null,null,null,null,null,null,null,null,null,null,null,null,null,null,null,null,null,null,null,null,null,null,null,null,null,null,null,null,null,null,null,null,null,null,null,null,null,null,null,44,1,0,null,null,"項目_環境"]
[null,null,null,"国際エネルギースタープログラム",null,null,null,null,null,null,null,null,null,null,null,null,null,null,null,null,null,null,null,null,null,null,null,null,null,null,null,null,null,null,null,null,null,null,null,null,null,null,null,null,null,null,null,null,null,null,null,null,45,2,0,null,null,"項目_環境_国際エネルギースタープログラム"]
[null,null,null,"米国エネルギースタープログラム",null,null,null,null,null,null,null,null,null,null,null,null,null,null,null,null,null,null,null,null,null,null,null,null,null,null,null,null,null,null,null,null,null,null,null,null,null,null,null,null,null,null,null,null,null,null,null,null,46,2,0,null,null,"項目_環境_米国エネルギースタープログラム"]
[null,null,null,"消費電力",null,null,null,null,null,null,null,null,null,null,null,null,null,null,null,null,null,null,null,null,null,null,null,null,null,null,null,null,null,null,null,null,null,null,null,null,null,null,null,null,null,null,null,null,null,null,null,null,47,2,0,null,null,"項目_環境_消費電力"]
[null,null,"環境（環境試験）",null,null,null,null,null,null,null,null,null,null,null,null,null,null,null,null,null,null,null,null,null,null,null,null,null,null,null,null,null,null,null,null,null,null,null,null,null,null,null,null,null,null,null,null,null,null,null,null,null,48,1,0,null,null,"項目_環境-環境試験"]
[null,null,null,"船級試験",null,null,null,null,null,null,null,null,null,null,null,null,null,null,null,null,null,null,null,null,null,null,null,null,null,null,null,null,null,null,null,null,null,null,null,null,null,null,null,null,null,null,null,null,null,null,null,null,49,2,0,null,null,"項目_環境-環境試験_船級試験"]
[null,null,"自動車・車載機器",null,null,null,null,null,null,null,null,null,null,null,null,null,null,null,null,null,null,null,null,null,null,null,null,null,null,null,null,null,null,null,null,null,null,null,null,null,null,null,null,null,null,null,null,null,null,null,null,null,50,1,0,null,null,"項目_自動車車載機器"]
[null,null,null,"ESA(車載部品)イミュニティ",null,null,null,null,null,null,null,null,null,null,null,null,null,null,null,null,null,null,null,null,null,null,null,null,null,null,null,null,null,null,null,null,null,null,null,null,null,null,null,null,null,null,null,null,null,null,null,null,51,2,0,null,null,"項目_自動車車載機器_ESA(車載部品)イミュニティ"]
[null,null,null,"ESA(車載部品)エミッション",null,null,null,null,null,null,null,null,null,null,null,null,null,null,null,null,null,null,null,null,null,null,null,null,null,null,null,null,null,null,null,null,null,null,null,null,null,null,null,null,null,null,null,null,null,null,null,null,52,2,0,null,null,"項目_自動車車載機器_ESA(車載部品)エミッション"]
[null,null,null,"自動車イミュニティ",null,null,null,null,null,null,null,null,null,null,null,null,null,null,null,null,null,null,null,null,null,null,null,null,null,null,null,null,null,null,null,null,null,null,null,null,null,null,null,null,null,null,null,null,null,null,null,null,53,2,0,null,null,"項目_自動車車載機器_自動車イミュニティ"]
[null,null,null,"自動車エミッション",null,null,null,null,null,null,null,null,null,null,null,null,null,null,null,null,null,null,null,null,null,null,null,null,null,null,null,null,null,null,null,null,null,null,null,null,null,null,null,null,null,null,null,null,null,null,null,null,54,2,0,null,null,"項目_自動車車載機器_自動車エミッション"]
[null,null,"防衛・宇宙・航空",null,null,null,null,null,null,null,null,null,null,null,null,null,null,null,null,null,null,null,null,null,null,null,null,null,null,null,null,null,null,null,null,null,null,null,null,null,null,null,null,null,null,null,null,null,null,null,null,null,55,1,0,null,null,"項目_防衛・宇宙・航空"]
[null,null,null,"防衛・宇宙・航空イミュニティ",null,null,null,null,null,null,null,null,null,null,null,null,null,null,null,null,null,null,null,null,null,null,null,null,null,null,null,null,null,null,null,null,null,null,null,null,null,null,null,null,null,null,null,null,null,null,null,null,56,2,0,null,null,"項目_防衛・宇宙・航空_防衛・宇宙・航空イミュニティ"]
[null,null,null,"防衛・宇宙・航空エミッション",null,null,null,null,null,null,null,null,null,null,null,null,null,null,null,null,null,null,null,null,null,null,null,null,null,null,null,null,null,null,null,null,null,null,null,null,null,null,null,null,null,null,null,null,null,null,null,null,57,2,0,null,null,"項目_防衛・宇宙・航空_防衛・宇宙・航空エミッション"]
[null,null,"設置現場/製造現場での試験に対して認定シンボル付き試験報告書を発行する。",null,null,null,null,null,null,null,null,null,null,null,null,null,null,null,null,null,null,null,null,null,null,null,null,null,null,null,null,null,null,null,null,null,null,null,null,null,null,null,null,null,null,null,null,null,null,null,null,null,58,1,0,null,null,"項目_設置現場・製造現場での試験"]
[null,null,null,"エミッション",null,null,null,null,null,null,null,null,null,null,null,null,null,null,null,null,null,null,null,null,null,null,null,null,null,null,null,null,null,null,null,null,null,null,null,null,null,null,null,null,null,null,null,null,null,null,null,null,59,2,0,null,null,"項目_設置現場・製造現場での試験_エミ"]
[null,null,null,"イミュニティ",null,null,null,null,null,null,null,null,null,null,null,null,null,null,null,null,null,null,null,null,null,null,null,null,null,null,null,null,null,null,null,null,null,null,null,null,null,null,null,null,null,null,null,null,null,null,null,null,60,2,0,null,null,"項目_設置現場・製造現場での試験_イミ"]
[]
[null,null,null,null,null,null,null,null,null,null,null,null,null,null,null,null,null,null,null,"<注> 拡大審査を書類審査のみで行う場合は備考欄に理由記述。"]
[null,4,"英文認定証：",null,null,null,null,null,null,"要",null,null,null,"不要",null,null,null,null,null,"<注> サーベイランスは英文認定証「不要」になります。"]
[null,null,null,null,null,null,null,null,null,null,null,null,null,null,null,null,null,null,null,"<注> サーベイランス＆変更審査は英文認定証「要」を選択できます。"]
[null,null,null,null,null,null,null,null,null,null,null,null,null,null,null,null,null,null,null,"<注> 審査日数は従前審査と現場試験を分けて記述。"]
[null,"VLAC\n記入欄",null,null,"受付日",null,null,null,null,"受付番号",null,null,null,"管理費\n区分",null,null,"基本\n単位",null,null,"追加\n単位",null,null,"S追加\n口数",null,null,"審査日数\n(安全, 環境, In-Situ)",null,null,null,null,"備考"]
[]
[]
[null,null,null,null,null,null,null,null,null,null,null,null,null,null,null,null,null,null,null,null,null,null,null,null,null,null,null,null,null,"人"]
[null,null,null,null,null,null,null,null,null,null,null,null,null,null,null,null,null,null,null,null,null,null,null,null,null,null,null,null,null,"日"]
[null,null,null,null,"現地審査：",null,null,null,null,"有",null,null,"無",null,"審査員数：",null,null,null,null,"人",null,null,"審査日数：",null,null,null,null,"日",null,"変更審査：",null,null,null,null,"有"]

{"sheet":"試験区分入力","index":6,"n_rows":212,"n_cols":60,"rows_kept":212,"cut":false,"hidden":false,"merged":[[89,24,89,28],[89,30,89,34],[90,24,90,28],[90,30,90,34],[73,22,73,26],[73,28,73,32],[74,22,74,26],[95,30,95,34],[91,24,91,28],[91,30,91,34],[92,24,92,28],[92,30,92,34],[1,0,1,17],[18,18,18,22],[67,28,67,32],[74,28,74,32],[75,22,75,26],[75,28,75,32],[69,22,69,26],[69,28,69,32],[71,22,71,26],[71,28,71,32],[23,21,23,33],[201,2,201,43],[68,22,68,26],[68,28,68,32],[70,22,70,26],[70,28,70,32],[98,24,98,28],[98,30,98,34],[97,24,97,28],[97,30,97,34],[93,24,93,28],[93,30,93,34],[94,30,94,34],[94,24,94,28],[77,22,77,26],[77,28,77,32],[95,24,95,28],[1,42,1,44],[1,27,1,34],[1,35,1,41],[2,35,3,41],[1,18,1,26],[2,42,3,44],[2,27,3,34],[202,2,210,43],[2,0,3,17],[2,18,2,19],[3,18,3,19],[2,20,2,26],[3,20,3,26],[11,12,11,16],[11,18,11,22],[13,12,13,16],[13,18,13,22],[16,12,16,16],[16,18,16,22],[18,12,18,16],[66,22,66,26],[66,28,66,32],[67,22,67,26]]}
["複数の試験場がある場合はこのファイルを試験場毎に作成してください。"]
["試験場名称",null,null,null,null,null,null,null,null,null,null,null,null,null,null,null,null,null,"試験場管理責任者名/所属",null,null,null,null,null,null,null,null,"E-mail",null,null,null,null,null,null,null,"電話番号",null,null,null,null,null,null,"事務局記入",null,null,null,"AU列は事務局向け備忘録です。（試験区分、試験規格に関する解説）"]
[{"$f":"基本情報入力!C3","v":0},null,null,null,null,null,null,null,null,null,null,null,null,null,null,null,null,null,"名前"]
[null,null,null,null,null,null,null,null,null,null,null,null,null,null,null,null,null,null,"所属",null,null,null,null,null,null,null,null,null,null,null,null,null,null,null,null,null,null,null,null,null,null,null,null,null,null,null,"［2023.12.27～2024.2.9］青字加筆、［2024.2.15以降］赤字加筆"]
[null,"注１：下記に記載された試験区分の中で認定の対象となる区分を全てチェックしてください。",null,null,null,null,null,null,null,null,null,null,null,null,null,null,null,null,null,null,null,null,null,null,null,null,null,null,null,null,null,null,null,null,null,null,null,null,null,null,null,null,null,null,null,null,null,null,null,null,null,null,null,null,null,null,"不使用カラム"]
[null,"注２：「要付属書」の記載がある試験区分は、試験を実施する設備毎に該当する付属書を提出する。付属書の記載内容は「VE-107」を参照。",null,null,null,null,null,null,null,null,null,null,null,null,null,null,null,null,null,null,null,null,null,null,null,null,null,null,null,null,null,null,null,null,null,null,null,null,null,null,null,null,null,null,null,null,null,null,null,null,null,null,"項番","階層","表示タイプ",null,"枝番設定","試験区分コード","測定周波数範囲最小","測定周波数範囲最大"]
[null,null,"5．試験区分－電磁両立性 エミッション",null,null,null,null,null,null,null,null,null,null,null,null,null,null,null,null,null,null,null,null,null,null,null,null,null,null,null,null,null,null,null,null,null,null,null,null,null,null,null,null,null,null,null,null,null,null,null,null,null,1,1,0,null,null,"区分_エミ"]
[null,null,null,"5.1．放射妨害波 （エンクロージャーポート）",null,null,null,null,null,null,null,null,null,null,null,null,null,null,null,null,null,null,null,null,null,null,null,null,null,null,null,null,null,null,null,null,null,null,null,null,null,null,null,null,null,null,"(ﾒﾓ)周波数上限は、CISPR -18GHz, FCC -40GHz(SVSWRは18GHz迄)、",null,null,null,null,null,2,2,0,null,null,"区分_エミ_放射_エンク"]
[null,null,null,null,"放射妨害波電界強度試験",null,null,null,null,null,null,null,null,null,null,null,null,null,null,null,null,null,null,null,null,null,null,null,null,null,null,null,null,null,null,null,null,null,null,null,null,null,null,null,null,null,"CISPR 16-2-3, ANSI C63.4",null,null,null,null,null,3,3,0,null,null,"区分_エミ_放射_エンク_妨害電界"]
[null,null,null,null,null,"基準大地面上",null,null,null,null,null,null,"：（電波半無響室またはオープンサイト）",null,null,null,null,null,null,null,null,null,null,null,null,null,null,null,null,null,null,null,null,null,null,null,null,null,"◆車載含む",null,"要付属書",null,null,null,null,null,"（付属書VF102 or 103）",null,null,null,null,null,4,4,0,null,null,"区分_エミ_放射_エンク_妨害電界_基準"]
[null,null,null,null,null,"CISPR11関連の1 GHz超試験も含む",null,null,null,null,null,null,null,null,null,null,null,null,null,null,null,null,null,null,null,null,null,null,null,null,null,null,null,null,null,null,null,null,null,null,null,null,null,null,null,null,"(ﾒﾓ)CISPR11は磁界9kHz-30MHz,電界30MHz-1GHz、ETSI EN 302 608は9 kHz～が必要",null,null,null,null,null,5,5,1]
[null,null,null,null,null,null,"測定周波数範囲 ：",null,null,null,null,null,null,null,null,null,null,"～",null,null,null,null,null,null,null,null,null,null,null,null,null,null,null,null,null,null,null,null,null,null,null,null,null,null,null,null,"(ﾒﾓ)IEC60945は～2GHzの場合あり、[註]タイムドメイン(30MHz-1GHz)は上限出力が5dB下がる場合あり",null,null,null,null,null,6,5,4,null,null,"区分_エミ_放射_エンク_妨害電界_基準_測定周波数範囲",{"$f":" IF($M$12=\"\",\"\",$M$12)","v":""},{"$f":" IF($S$12=\"\",\"\",$S$12)","v":""}]
[null,null,null,null,null,"基準大地面上",null,null,null,null,null,null,"：車載機器試験(1m法)",null,null,null,null,null,null,null,null,null,null,null,null,null,null,null,null,null,null,null,null,null,null,null,null,null,"◆車載専用",null,"要付属書",null,null,null,null,null,"（付属書VF170）",null,null,null,null,null,7,4,0,null,null,"区分_エミ_放射_エンク_妨害電界_基準_車載機器"]
[null,null,null,null,null,null,"測定周波数範囲 ：",null,null,null,null,null,null,null,null,null,null,"～",null,null,null,null,null,null,null,null,null,null,null,null,null,null,null,null,null,null,null,null,null,null,null,null,null,null,null,null,"(ﾒﾓ)MIL規格も車載と同様の試験あり",null,null,null,null,null,8,5,4,null,null,"区分_エミ_放射_エンク_妨害電界_基準_車載機器_測定周波数範囲",{"$f":" IF($M$14=\"\",\"\",$M$14)","v":""},{"$f":" IF($S$14=\"\",\"\",$S$14)","v":""}]
[null,null,null,null,null,"準自由空間",null,null,null,null,null,null,"：（電波半無響室またはオープンサイト）",null,null,null,null,null,null,null,null,null,null,null,null,null,null,null,null,null,null,null,null,null,null,null,null,null,null,null,"要付属書",null,null,null,null,null,"（付属書VF152）",null,null,null,null,null,9,4,0,null,null,"区分_エミ_放射_エンク_妨害電界_準自由_VF152"]
[null,null,null,null,null,"VCCI-CISPR 32、CISPR 32関連規格、ANSI C63.4:2014/2017を含む場合に適用",null,null,null,null,null,null,null,null,null,null,null,null,null,null,null,null,null,null,null,null,null,null,null,null,null,null,null,null,null,null,null,null,null,null,null,null,null,null,null,null,"(ﾒﾓ)ANSI C63.4:2014 12項_ITE以外の装置、5.5.1項_1GHz超に試験設備、Annex D_NSA測定、",null,null,null,null,null,10,5,1]
[null,null,null,null,null,null,"測定周波数範囲 ：",null,null,null,null,null,null,null,null,null,null,"～",null,null,null,null,null,null,null,null,null,null,null,null,null,null,null,null,null,null,null,null,null,null,null,null,null,null,null,null,"(ﾒﾓ)ANSI C63.4:2014：衛星室外機を含む放送受信機能の測定は除く（⇒衛星室外機とFM受信機(＜1GHz)の両方を除く）",null,null,null,null,null,11,5,4,null,null,"区分_エミ_放射_エンク_妨害電界_準自由_VF152_1GHz",{"$f":" IF($M$17=\"\",\"\",$M$17)","v":""},{"$f":" IF($S$17=\"\",\"\",$S$17)","v":""}]
[null,null,null,null,null,"準自由空間",null,null,null,null,null,null,"：（全電波無響室）",null,null,null,null,null,null,null,null,null,null,null,null,null,null,null,null,null,null,null,null,null,null,null,null,null,null,null,"要付属書",null,null,null,null,null,"（付属書VF153）",null,null,null,null,null,12,4,0,null,null,"区分_エミ_放射_エンク_妨害電界_準自由_VF153"]
[null,null,null,null,null,null,"測定周波数範囲 ：",null,null,null,null,null,null,null,null,null,null,"～",null,null,null,null,null,null,null,null,null,null,null,null,null,null,null,null,null,null,null,null,null,null,null,null,null,null,null,null,null,null,null,null,null,null,13,5,4,null,null,"区分_エミ_放射_エンク_妨害電界_準自由_VF153_測定周波数範囲",{"$f":" IF($M$19=\"\",\"\",$M$19)","v":""},{"$f":" IF($S$19=\"\",\"\",$S$19)","v":""}]
[null,null,null,null,"放射妨害波磁界強度試験",null,null,null,null,null,null,null,null,null,null,null,null,null,null,null,null,null,null,null,null,null,null,null,null,null,null,null,null,null,null,null,null,null,null,null,null,null,null,null,null,null,null,null,null,null,null,null,14,3,0,null,null,"区分_エミ_放射_エンク_妨害磁界"]
[null,null,null,null,null,"ループアンテナ",null,null,null,null,null,null,null,null,null,null,null,null,null,null,null,null,null,null,null,null,null,null,null,null,null,null,null,null,null,null,null,null,null,null,null,null,null,null,null,null,null,null,null,null,null,null,15,4,0,null,null,"区分_エミ_放射_エンク_妨害磁界_ループアンテナ"]
[null,null,null,null,null,"3軸ループ（ラージループ）",null,null,null,null,null,null,null,null,null,null,null,null,null,null,null,null,null,null,null,null,null,null,null,null,null,null,null,null,null,null,null,null,null,null,null,null,null,null,null,null,null,null,null,null,null,null,16,4,0,null,null,"区分_エミ_放射_エンク_妨害磁界_3軸ループ"]
[null,null,null,null,null,"等方性プローブ",null,null,null,null,null,null,null,null,null,null,null,null,null,null,null,null,null,null,null,null,null,null,null,null,null,null,null,null,null,null,null,null,null,null,null,null,null,null,null,null,null,null,null,null,null,null,17,4,0,null,null,"区分_エミ_放射_エンク_妨害磁界_等方性プローブ"]
[null,null,null,null,"その他の放射妨害波試験",null,null,null,null,null,null,null,null,null,null,null,null,null,null,null,"試験名・周波数範囲：",null,null,null,null,null,null,null,null,null,null,null,null,null,null,null,null,null,"◆車載含む",null,"要付属書",null,null,null,null,null,"(ﾒﾓ)車載_CISPR 36(150kHz-30MHz)、防衛_???",null,null,null,null,null,18,3,0,null,null,"区分_エミ_放射_エンク_その他放射妨害波試験"]
[null,null,null,null,"妨害波電力試験（AC電源ポート）",null,null,null,null,null,null,null,null,null,null,null,null,null,null,null,null,null,null,null,null,null,null,null,null,null,null,null,null,null,null,null,null,null,null,null,null,null,null,null,null,null,"CISPR 16-2-2(→測定方法)、(英訳)Absorbing clamp（誤用：Absorption clamp）",null,null,null,null,null,19,3,0,null,null,"区分_エミ_放射_エンク_妨害電力"]
[null,null,null,null,null,"吸収クランプ",null,null,null,null,null,null,null,null,null,null,null,null,null,null,null,null,null,null,null,null,null,null,null,null,null,null,null,null,null,null,null,null,null,null,null,null,null,null,null,null,"(ﾒﾓ)CMAD：CISPR16-1-3はAbsorbing Clamp, 同16-1-4はコモンモードAbsorbing Clamp",null,null,null,null,null,20,4,0,null,null,"区分_エミ_放射_エンク_妨害電力_CMAD_クランプ"]
[null,null,null,"5.2．AC電源ポート伝導妨害波試験",null,null,null,null,null,null,null,null,null,null,null,null,null,null,null,null,null,null,null,null,null,null,null,null,null,null,null,null,null,null,null,null,null,null,null,null,"要付属書",null,null,null,null,null,"（付属書VF104）",null,null,null,null,null,21,2,0,null,null,"区分_エミ_伝導_AC電源"]
[null,null,null,null,"妨害波電圧試験",null,null,null,null,null,null,null,null,null,null,null,null,null,null,null,null,null,null,null,null,null,null,null,null,null,null,null,null,null,null,null,null,null,null,null,null,null,null,null,null,null,"CISPR 16-2-1, ANSI C63.4",null,null,null,null,null,22,3,0,null,null,"区分_エミ_伝導_AC電源_妨害電圧"]
[null,null,null,null,null,"AMN",null,null,null,null,null,null,null,null,null,null,null,null,null,null,null,null,null,null,null,null,null,null,null,null,null,null,null,null,null,null,null,null,null,null,null,null,null,null,null,null,"(ﾒﾓ)擬似電源回路網(Artifical Mains Network),LISＮとも呼ぶ",null,null,null,null,null,23,4,0,null,null,"区分_エミ_伝導_AC電源_妨害電圧_AMN"]
[null,null,null,null,null,"高インピーダンスプローブ",null,null,null,null,null,null,null,null,null,null,null,null,null,null,null,null,null,null,null,null,null,null,null,null,null,null,null,null,null,null,null,null,null,null,null,null,null,null,null,null,"(ﾒﾓ)High Impedanse Probeは電流が大きくてAMNが使えない場合に使う。",null,null,null,null,null,24,4,0,null,null,"区分_エミ_伝導_AC電源_妨害電圧_高インピーダンスプローブ"]
[null,null,null,"5.3．通信ポート伝導妨害波試験",null,null,null,null,null,null,null,null,null,null,null,null,null,null,null,null,null,null,null,null,null,null,null,null,null,null,null,null,null,null,null,null,null,null,null,null,"要付属書",null,null,null,null,null,"（付属書VF117）",null,null,null,null,null,25,2,0,null,null,"区分_エミ_伝導_通信"]
[null,null,null,null,"妨害波電圧試験",null,null,null,null,null,null,null,null,null,null,null,null,null,null,null,null,null,null,null,null,null,null,null,null,null,null,null,null,null,null,null,null,null,null,null,null,null,null,null,null,null,"↓(ﾒﾓ)CISPR22⇒AMN, ISN",null,null,null,null,null,26,3,0,null,null,"区分_エミ_伝導_通信_妨害電圧"]
[null,null,null,null,null,"AAN",null,null,null,null,null,null,null,null,null,null,null,null,null,null,null,null,null,null,null,null,null,null,null,null,null,null,null,null,null,null,null,null,null,null,null,null,null,null,null,null,"(ﾒﾓ)CISPR32⇒不平衡擬似回路網(Asymmetric Artifical Network),擬似通信回路網(ISN)",null,null,null,null,null,27,4,0,null,null,"区分_エミ_伝導_通信_妨害電圧_AAN"]
[null,null,null,null,null,"容量性電圧プローブ",null,null,null,null,null,null,null,null,null,null,null,null,null,null,null,null,null,null,null,null,null,null,null,null,null,null,null,null,null,null,null,null,null,null,null,null,null,null,null,null,"(ﾒﾓ)容量性電圧プローブは最近は使わない",null,null,null,null,null,28,4,0,null,null,"区分_エミ_伝導_通信_妨害電圧_容量性電圧プローブ"]
[null,null,null,null,"妨害波電流試験",null,null,null,null,null,null,null,null,null,null,null,null,null,null,null,null,null,null,null,null,null,null,null,null,null,null,null,null,null,null,null,null,null,null,null,null,null,null,null,null,null,null,null,null,null,null,null,29,3,0,null,null,"区分_エミ_伝導_通信_妨害電流"]
[null,null,null,null,null,"電流プローブ",null,null,null,null,null,null,null,null,null,null,null,null,null,null,null,null,null,null,null,null,null,null,null,null,null,null,null,null,null,null,null,null,null,null,null,null,null,null,null,null,null,null,null,null,null,null,30,4,0,null,null,"区分_エミ_伝導_通信_妨害電流_電流プローブ"]
[null,null,null,"5.4．DC電源ポート伝導妨害波試験 ",null,null,null,null,null,null,null,null,null,null,null,null,null,null,null,null,null,null,null,null,null,null,null,null,null,null,null,null,null,null,null,null,null,null,null,null,"要付属書",null,null,null,null,null,"（付属書VF171）CISPR11は要求あり、CISPR14-1は要求なし",null,null,null,null,null,31,2,0,null,null,"区分_エミ_伝導_DC電源"]
[null,null,null,null,"妨害波電圧試験",null,null,null,null,null,null,null,null,null,null,null,null,null,null,null,null,null,null,null,null,null,null,null,null,null,null,null,null,null,null,null,null,null,null,null,null,null,null,null,null,null,"CISPR 16-2-1",null,null,null,null,null,32,3,0,null,null,"区分_エミ_伝導_DC電源_妨害電圧"]
[null,null,null,null,null,"AMN",null,null,null,null,null,null,null,null,null,null,null,null,null,null,null,null,null,null,null,null,null,null,null,null,null,null,null,null,null,null,null,null,null,null,null,null,null,null,null,null,null,null,null,null,null,null,33,4,0,null,null,"区分_エミ_伝導_DC電源_妨害電圧_AMN"]
[null,null,null,null,null,"高インピーダンスプローブ",null,null,null,null,null,null,null,null,null,null,null,null,null,null,null,null,null,null,null,null,null,null,null,null,null,null,null,null,null,null,null,null,null,null,null,null,null,null,null,null,null,null,null,null,null,null,34,4,0,null,null,"区分_エミ_伝導_DC電源_妨害電圧_高インピーダンスプローブ"]
[null,null,null,null,"車載機器伝導妨害波試験",null,null,null,null,null,null,null,null,null,null,null,null,null,null,null,null,null,null,null,null,null,null,null,null,null,null,null,null,null,null,null,null,null,"◆車載専用",null,null,null,null,null,null,null,"ISO 7637-2 （CDN）、(英訳)Conductive interference test against in-vehicle equipment ",null,null,null,null,null,35,3,0,null,null,"区分_エミ_伝導_DC電源_車載機器"]
[null,null,null,null,"電源線上の過渡妨害のエミッション",null,null,null,null,null,null,null,null,null,null,null,null,null,null,null,null,null,null,null,null,null,null,null,null,null,null,null,null,null,null,null,null,null,"◆車載専用",null,null,null,null,null,null,null,"[2023.2.15]「(英訳)Electrical transient conduction along supply lines」を追記",null,null,null,null,null,36,3,0,null,null,"区分_エミ_伝導_DC電源_電源線上の過渡妨害のエミッション"]
[null,null,null,null,"遮蔽された高電圧電源線上の過渡妨害のエミッション",null,null,null,null,null,null,null,null,null,null,null,null,null,null,null,null,null,null,null,null,null,null,null,null,null,null,null,null,null,null,null,null,null,"◆車載専用",null,null,null,null,null,null,null,"[2024.2.15]「(英訳)???」",null,null,null,null,null,37,3,0,null,null,"区分_エミ_伝導_DC電源_遮蔽高圧電源線過度妨害エミ"]
[null,null,null,"5.5．PLCポート伝導妨害波試験",null,null,null,null,null,null,null,null,null,null,null,null,null,null,null,null,null,null,null,null,null,null,null,null,null,null,null,null,null,null,null,null,null,null,null,null,null,null,null,null,null,null,null,null,null,null,null,null,38,2,0,null,null,"区分_エミ_伝導_PLC"]
[null,null,null,null,"妨害波電流試験",null,null,null,null,null,null,null,null,null,null,null,null,null,null,null,null,null,null,null,null,null,null,null,null,null,null,null,null,null,null,null,null,null,null,null,null,null,null,null,null,null,null,null,null,null,null,null,39,3,0,null,null,"区分_エミ_伝導_PLC_妨害電流"]
[null,null,null,null,null,"電流プローブ",null,null,null,null,null,null,null,null,null,null,null,null,null,null,null,null,null,null,null,null,null,null,null,null,null,null,null,null,null,null,null,null,null,null,null,null,null,null,null,null,null,null,null,null,null,null,40,4,0,null,null,"区分_エミ_伝導_PLC_妨害電流_電流プローブ"]
[null,null,null,"5.6．アンテナポート、RFモジュレーター出力ポート、チューナポート、ファイバーポート伝導妨害波試験",null,null,null,null,null,null,null,null,null,null,null,null,null,null,null,null,null,null,null,null,null,null,null,null,null,null,null,null,null,null,null,null,null,null,null,null,"要付属書",null,null,null,null,null,"（付属書VF117）",null,null,null,null,null,41,2,0,null,null,"区分_エミ_アンテナ"]
[null,null,null,null,"妨害波電圧試験",null,null,null,null,null,null,null,null,null,null,null,null,null,null,null,null,null,null,null,null,null,null,null,null,null,null,null,null,null,null,null,null,null,null,null,null,null,null,null,null,null,null,null,null,null,null,null,42,3,0,null,null,"区分_エミ_アンテナ_妨害電圧"]
[null,null,null,null,null,"AAN",null,null,null,null,null,null,null,null,null,null,null,null,null,null,null,null,null,null,null,null,null,null,null,null,null,null,null,null,null,null,null,null,null,null,null,null,null,null,null,null,null,null,null,null,null,null,43,4,0,null,null,"区分_エミ_アンテナ_妨害電圧_AAN"]
[null,null,null,null,null,"容量性電圧プローブ",null,null,null,null,null,null,null,null,null,null,null,null,null,null,null,null,null,null,null,null,null,null,null,null,null,null,null,null,null,null,null,null,null,null,null,null,null,null,null,null,null,null,null,null,null,null,44,4,0,null,null,"区分_エミ_アンテナ_妨害電圧_容量性電圧プローブ"]
[null,null,null,null,"妨害波電流試験",null,null,null,null,null,null,null,null,null,null,null,null,null,null,null,null,null,null,null,null,null,null,null,null,null,null,null,null,null,null,null,null,null,null,null,null,null,null,null,null,null,null,null,null,null,null,null,45,3,0,null,null,"区分_エミ_アンテナ_妨害電流"]
[null,null,null,null,null,"電流プローブ",null,null,null,null,null,null,null,null,null,null,null,null,null,null,null,null,null,null,null,null,null,null,null,null,null,null,null,null,null,null,null,null,null,null,null,null,null,null,null,null,null,null,null,null,null,null,46,4,0,null,null,"区分_エミ_アンテナ_妨害電流_妨害電流_電流プローブ"]
[null,null,null,null,"希望信号電圧および妨害波端子電圧試験",null,null,null,null,null,null,null,null,null,null,null,null,null,null,null,null,null,null,null,null,null,null,null,null,null,null,null,null,null,null,null,null,null,null,null,null,null,null,null,null,null,null,null,null,null,null,null,47,3,0,null,null,"区分_エミ_アンテナ_希望信号電圧および妨害端子電圧試験"]
[null,null,null,null,null,"選択性高周波電圧計",null,null,null,null,null,null,null,null,null,null,null,null,null,null,null,null,null,null,null,null,null,null,null,null,null,null,null,null,null,null,null,null,null,null,null,null,null,null,null,null,null,null,null,null,null,null,48,4,0,null,null,"区分_エミ_アンテナ_希望信号電圧および妨害端子電圧試験_選択性高周波電圧計"]
[null,null,null,null,"屋外ユニット局部発振放射電力試験",null,null,null,null,null,null,null,null,null,null,null,null,null,null,null,null,null,null,null,null,null,null,null,null,null,null,null,null,null,null,null,null,null,null,null,null,null,null,null,null,null,"(英訳)Local oscillator power at the input terminal of the outdoor unit\nLocal oscillator power at the input terminal of the outdoor unit\n",null,null,null,null,null,49,3,0,null,null,"区分_エミ_アンテナ_屋外ユニット局部発振放射電力試験"]
[null,null,null,"5.7. 補助ポート伝導妨害波試験",null,null,null,null,null,null,null,null,null,null,null,null,null,null,null,null,null,null,null,null,null,null,null,null,null,null,null,null,null,null,null,null,null,null,"◆車載含む",null,null,null,null,null,null,null,"(英訳)Conducted disturbance Measurement: Auxiliary ports.   ※CISPR14-1,CISPR25、",null,null,null,null,null,50,2,0,null,null,"区分_エミ_補助ポート伝導妨害波"]
[null,null,null,null,"妨害波電圧試験",null,null,null,null,null,null,null,null,null,null,null,null,null,null,null,null,null,null,null,null,null,null,null,null,null,null,null,null,null,null,null,null,null,null,null,null,null,null,null,null,null,"（英訳)Voltage measurement",null,null,null,null,null,51,3,0,null,null,"区分_エミ_補助ポート伝導妨害波_妨害電圧"]
[null,null,null,null,null,"高インピーダンスプローブ",null,null,null,null,null,null,null,null,null,null,null,null,null,null,null,null,null,null,null,null,null,null,null,null,null,null,null,null,null,null,null,null,null,null,null,null,null,null,null,null,"（英訳)High impedance probe",null,null,null,null,null,52,4,0,null,null,"区分_エミ_補助ポート伝導妨害波_妨害電圧_高インピーダンスプローブ"]
[null,null,null,null,"妨害波電流試験",null,null,null,null,null,null,null,null,null,null,null,null,null,null,null,null,null,null,null,null,null,null,null,null,null,null,null,null,null,null,null,null,null,null,null,null,null,null,null,null,null,"（英訳)Current measurement",null,null,null,null,null,53,3,0,null,null,"区分_エミ_補助ポート伝導妨害波_妨害電流"]
[null,null,null,null,null,"電流プローブ",null,null,null,null,null,null,null,null,null,null,null,null,null,null,null,null,null,null,null,null,null,null,null,null,null,null,null,null,null,null,null,null,null,null,null,null,null,null,null,null,"（英訳)Current probe",null,null,null,null,null,54,4,0,null,null,"区分_エミ_補助ポート伝導妨害波_妨害電流_電流プローブ"]
[null,null,"6．試験区分－電磁両立性イミュニティ",null,null,null,null,null,null,null,null,null,null,null,null,null,null,null,null,null,null,null,null,null,null,null,null,null,null,null,null,null,null,null,null,null,null,null,null,null,null,null,null,null,null,null,null,null,null,null,null,null,55,1,0,null,null,"区分_イミ"]
[null,null,null,"6.1．静電気",null,null,null,null,null,null,null,null,null,null,null,null,null,null,null,null,null,null,null,null,null,null,null,null,null,null,null,null,null,null,null,null,null,null,null,null,"要付属書",null,null,null,null,null,"（付属書VF128A）",null,null,null,null,null,56,2,0,null,null,"区分_イミ_静電気"]
[null,null,null,null,"静電気放電試験",null,null,null,null,null,null,null,null,null,null,null,null,null,null,null,null,null,null,null,null,null,null,null,null,null,null,null,null,null,null,null,null,null,null,null,null,null,null,null,null,null,"IEC 61000-4-2/EN 61000-4-2",null,null,null,null,null,57,3,0,null,null,"区分_イミ_静電気_静電気放電"]
[null,null,null,null,"車載用機器",null,null,null,null,null,null,null,null,null,null,null,null,null,null,null,null,null,null,null,null,null,null,null,null,null,null,null,null,null,null,null,null,null,"◆車載専用",null,null,null,null,null,null,null,"ISO 10605",null,null,null,null,null,58,3,0,null,null,"区分_イミ_静電気_車載用機器"]
[null,null,null,"6.2．放射電磁界",null,null,null,null,null,null,null,null,null,null,null,null,null,null,null,null,null,null,null,null,null,null,null,null,null,null,null,null,null,null,null,null,null,null,null,null,null,null,null,null,null,null,null,null,null,null,null,null,59,2,0,null,null,"区分_イミ_放射電磁界"]
[null,null,null,null,"放射電磁界イミュニティ試験(擬似自由空間アンテナ放射) ",null,null,null,null,null,null,null,null,null,null,null,null,null,null,null,null,null,null,null,null,null,null,null,null,null,null,null,null,null,null,null,null,null,null,null,"要付属書",null,null,null,null,null,"（付属書VF128B）",null,null,null,null,null,60,3,0,null,null,"区分_イミ_放射電磁界_放射電磁界イミ_疑似自由空間アンテナ放射"]
[null,null,null,null,null,"電波暗室",null,null,null,null,null,null,null,null,null,null,"測定周波数範囲 ：",null,null,null,null,null,null,null,null,null,null,"～",null,null,null,null,null,null,null,null,null,null,null,null,null,null,null,null,null,null,"IEC 61000-4-3/EN 61000-4-3",null,null,null,null,null,61,4,4,null,null,"区分_イミ_放射電磁界_放射電磁界イミ_疑似自由空間アンテナ放射_電波暗室",{"$f":" IF($W$67=\"\",\"\",$W$67)","v":""},{"$f":" IF($AC$67=\"\",\"\",$AC$67)","v":""}]
[null,null,null,null,null,"FARによる試験",null,null,null,null,null,null,null,null,null,null,"測定周波数範囲 ：",null,null,null,null,null,null,null,null,null,null,"～",null,null,null,null,null,null,null,null,null,null,null,null,null,null,null,null,null,null,"IEC 61000-4-22/EN 61000-4-22",null,null,null,null,null,62,4,4,null,null,"区分_イミ_放射電磁界_放射電磁界イミ_疑似自由空間アンテナ放射_FARによる試験",{"$f":" IF($W$68=\"\",\"\",$W$68)","v":""},{"$f":" IF($AC$68=\"\",\"\",$AC$68)","v":""}]
[null,null,null,null,null,"車両",null,null,null,null,null,null,null,null,null,null,"測定周波数範囲 ：",null,null,null,null,null,null,null,null,null,null,"～",null,null,null,null,null,null,null,null,null,null,"◆車載専用",null,null,null,null,null,null,null,"ISO 11451-2",null,null,null,null,null,63,4,4,null,null,"区分_イミ_放射電磁界_放射電磁界イミ_疑似自由空間アンテナ放射_車両",{"$f":" IF($W$69=\"\",\"\",$W$69)","v":""},{"$f":" IF($AC$69=\"\",\"\",$AC$69)","v":""}]
[null,null,null,null,null,"車載用機器",null,null,null,null,null,null,null,null,null,null,"測定周波数範囲 ：",null,null,null,null,null,null,null,null,null,null,"～",null,null,null,null,null,null,null,null,null,null,"◆車載専用",null,null,null,null,null,null,null,"ISO 11451-2、ISO 11452-2、Max 2.5GHz、",null,null,null,null,null,64,4,4,null,null,"区分_イミ_放射電磁界_放射電磁界イミ_疑似自由空間アンテナ放射_車載用機器",{"$f":" IF($W$70=\"\",\"\",$W$70)","v":""},{"$f":" IF($AC$70=\"\",\"\",$AC$70)","v":""}]
[null,null,null,null,null,"近接電磁界イミュニティ試験",null,null,null,null,null,null,null,null,null,null,"測定周波数範囲 ：",null,null,null,null,null,null,null,null,null,null,"～",null,null,null,null,null,null,null,null,null,null,null,null,null,null,null,null,null,null,"IEC 61000-4-39、(英訳)Radiated fields in closeproximity、(帯域)9kHz-150kHz, 150kHz-26MHz, 380KHz-6GHz",null,null,null,null,null,65,4,4,null,null,"区分_イミ_放射電磁界_放射電磁界イミ_疑似自由空間アンテナ放射_近接電磁界イミュニティ試験",{"$f":" IF($W$71=\"\",\"\",$W$71)","v":""},{"$f":" IF($AC$71=\"\",\"\",$AC$71)","v":""}]
[null,null,null,null,null,"近接電磁界イミュニティ試験（車載）",null,null,null,null,null,null,null,null,null,null,"測定周波数範囲 ：",null,null,null,null,null,null,null,null,null,null,"～",null,null,null,null,null,null,null,null,null,null,"◆車載専用",null,null,null,null,null,null,null,"[2024.2.8] ISO 11452-3 (1.8MHz－5.85GHz)※可搬型送信機法（実車）、※ISO 11452-9 (142 MHz～6 GHz)は6.5項へ移す",null,null,null,null,null,66,4,4,null,null,"区分_イミ_放射電磁界_放射電磁界イミ_疑似自由空間アンテナ放射_近接電磁界イミ(車載)",{"$f":" IF($W$72=\"\",\"\",$W$72)","v":""},{"$f":" IF($AC$72=\"\",\"\",$AC$72)","v":""}]
[null,null,null,null,"放射電磁界イミュニティ試験（TEMセル、ストリップライン、トリプレート）",null,null,null,null,null,null,null,null,null,null,null,null,null,null,null,null,null,null,null,null,null,null,null,null,null,null,null,null,null,null,null,null,null,null,null,"要付属書",null,null,null,null,null,"（付属書VF128B-TEM）、[2023.2.15]トリプレート（Tri-plate line）を追記",null,null,null,null,null,67,3,0,null,null,"区分_イミ_放射電磁界_放射電磁界イミ_TEMセル"]
[null,null,null,null,null,"TEMセル",null,null,null,null,null,null,null,null,null,null,"測定周波数範囲 ：",null,null,null,null,null,null,null,null,null,null,"～",null,null,null,null,null,null,null,null,null,null,"◆車載専用",null,null,null,null,null,null,null,"ISO 11452-3(→TEMセル)、",null,null,null,null,null,68,4,4,null,null,"区分_イミ_放射電磁界_放射電磁界イミ_TEMセル_TEMセル",{"$f":" IF($W$74=\"\",\"\",$W$74)","v":""},{"$f":" IF($AC$74=\"\",\"\",$AC$74)","v":""}]
[null,null,null,null,null,"ストリップライン",null,null,null,null,null,null,null,null,null,null,"測定周波数範囲 ：",null,null,null,null,null,null,null,null,null,null,"～",null,null,null,null,null,null,null,null,null,null,"◆車載専用",null,null,null,null,null,null,null,"ISO 11452-5",null,null,null,null,null,69,4,4,null,null,"区分_イミ_放射電磁界_放射電磁界イミ_TEMセル_ストリップライン",{"$f":" IF($W$75=\"\",\"\",$W$75)","v":""},{"$f":" IF($AC$75=\"\",\"\",$AC$75)","v":""}]
[null,null,null,null,null,"トリプレート",null,null,null,null,null,null,null,null,null,null,"測定周波数範囲 ：",null,null,null,null,null,null,null,null,null,null,"～",null,null,null,null,null,null,null,null,null,null,"◆車載専用",null,null,null,null,null,null,null,"IEC/EN 61000-4-20(→ﾄﾘﾌﾟﾚｰﾄﾗｲﾝ tri-plate line)、SAE J1113-25",null,null,null,null,null,70,4,4,null,null,"区分_イミ_放射電磁界_放射電磁界イミ_TEMセル_トリプレート",{"$f":" IF($W$76=\"\",\"\",$W$76)","v":""},{"$f":" IF($AC$76=\"\",\"\",$AC$76)","v":""}]
[null,null,null,null,"放射電磁界イミュニティ試験（反射箱）",null,null,null,null,null,null,null,null,null,null,null,null,null,null,null,null,null,null,null,null,null,null,null,null,null,null,null,null,null,null,null,null,null,null,null,"要付属書",null,null,null,null,null,"（付属書VF128B-RVC）",null,null,null,null,null,71,3,0,null,null,"区分_イミ_放射電磁界_放射電磁界イミ_反射箱"]
[null,null,null,null,null,"リバプレーションチャンバー",null,null,null,null,null,null,null,null,null,null,"測定周波数範囲 ：",null,null,null,null,null,null,null,null,null,null,"～",null,null,null,null,null,null,null,null,null,null,null,null,null,null,null,null,null,null,"IEC 61000-4-21, ISO 11451-5,  ISO 11452-11(Reverberation chamber)",null,null,null,null,null,72,4,4,null,null,"区分_イミ_放射電磁界_放射電磁界イミ_反射箱_IEC_61000_4_21",{"$f":" IF($W$78=\"\",\"\",$W$78)","v":""},{"$f":" IF($AC$78=\"\",\"\",$AC$78)","v":""}]
[null,null,null,"6.3．電気的過渡バースト ",null,null,null,null,null,null,null,null,null,null,null,null,null,null,null,null,null,null,null,null,null,null,null,null,null,null,null,null,null,null,null,null,null,null,null,null,"要付属書",null,null,null,null,null,"（付属書VF128C）",null,null,null,null,null,73,2,0,null,null,"区分_イミ_電気的過渡バースト"]
[null,null,null,null,"電源ポート伝導イミュニティ試験",null,null,null,null,null,null,null,null,null,null,null,null,null,null,null,null,null,null,null,null,null,null,null,null,null,null,null,null,null,null,null,null,null,null,null,null,null,null,null,null,null,"IEC 61000-4-4、同4-13(高調波低周波イミュニティ試験)、同4-14(電源電圧変動イミュニティ試験)",null,null,null,null,null,74,3,0,null,null,"区分_イミ_電気的過渡バースト_電源ポート伝導イミ"]
[null,null,null,null,"通信／信号ポート伝導イミュニティ試験",null,null,null,null,null,null,null,null,null,null,null,null,null,null,null,null,null,null,null,null,null,null,null,null,null,null,null,null,null,null,null,null,null,null,null,null,null,null,null,null,null,"IEC 61000-4-4、同-4-28(電源周波数変動イミュニティ試験)",null,null,null,null,null,75,3,0,null,null,"区分_イミ_電気的過渡バースト_通信_信号ポート伝導イミ"]
[null,null,null,null,"電源線上の過渡妨害へのイミュニティ",null,null,null,null,null,null,null,null,null,null,null,null,null,null,null,null,null,null,null,null,null,null,null,null,null,null,null,null,null,null,null,null,null,"◆車載専用",null,null,null,null,null,null,null,"←＆↓(英訳)Immunity to transient disturbances conducted along supply lines / other than supply lines",null,null,null,null,null,76,3,0,null,null,"区分_イミ_電気的過渡バースト_電源線上の過渡妨害のエミッション"]
[null,null,null,null,"電源線以外の線の上の過渡妨害へのイミュニティ",null,null,null,null,null,null,null,null,null,null,null,null,null,null,null,null,null,null,null,null,null,null,null,null,null,null,null,null,null,null,null,null,null,"◆車載専用",null,null,null,null,null,null,null,"ISO 7637-3（容量性結合器）",null,null,null,null,null,77,3,0,null,null,"区分_イミ_電気的過渡バースト_電源線以外の線の上の過渡妨害へのイミュニティ"]
[null,null,null,"6.4．サージ  ",null,null,null,null,null,null,null,null,null,null,null,null,null,null,null,null,null,null,null,null,null,null,null,null,null,null,null,null,null,null,null,null,null,null,null,null,"要付属書",null,null,null,null,null,"（付属書VF128D）",null,null,null,null,null,78,2,0,null,null,"区分_イミ_サージ"]
[null,null,null,null,"電源ポートサージイミュニティ試験",null,null,null,null,null,null,null,null,null,null,null,null,null,null,null,null,null,null,null,null,null,null,null,null,null,null,null,null,null,null,null,null,null,null,null,null,null,null,null,null,null,"IEC 61000-4-5、[2023.5.31]ISO 7637-2 :2011/2004",null,null,null,null,null,79,3,0,null,null,"区分_イミ_サージ_電源ポートサージイミ"]
[null,null,null,null,"通信／信号ポートサージイミュニティ試験",null,null,null,null,null,null,null,null,null,null,null,null,null,null,null,null,null,null,null,null,null,null,null,null,null,null,null,null,null,null,null,null,null,null,null,null,null,null,null,null,null,"IEC 61000-4-5、[2023.5.31]ISO 7637-3 :2016/2007 (CCCのみ)",null,null,null,null,null,80,3,0,null,null,"区分_イミ_サージ_通信_信号ポートサージイミ"]
[null,null,null,null,"電源ポートサージイミュニティ試験",null,null,null,null,null,null,null,null,null,null,null,null,null,null,null,null,null,null,null,null,null,null,null,null,null,null,null,null,null,null,null,null,null,"◆車載含む",null,null,null,null,null,null,null,"ISO 160752-2",null,null,null,null,null,81,3,0,null,null,"区分_イミ_サージ_電源ポートサージイミ車載"]
[null,null,null,null,"電源ポートサージイミュニティ試験（高電圧部品用）",null,null,null,null,null,null,null,null,null,null,null,null,null,null,null,null,null,null,null,null,null,null,null,null,null,null,null,null,null,null,null,null,null,"◆車載含む",null,null,null,null,null,null,null,"ISO/TS 7637-4",null,null,null,null,null,82,3,0,null,null,"区分_イミ_サージ_電源ポートサージイミ高電圧部品"]
[null,null,null,"6.5．無線周波伝導妨害波",null,null,null,null,null,null,null,null,null,null,null,null,null,null,null,null,null,null,null,null,null,null,null,null,null,null,null,null,null,null,null,null,null,null,null,null,"要付属書",null,null,null,null,null,"（付属書VF128E）　※伝導性高周波妨害イミュニティとも呼ぶ（例外：61000-4-16）　※BCI：Bulk current injection test",null,null,null,null,null,83,2,0,null,null,"区分_イミ_無線周波伝導妨害"]
[null,null,null,null,"電源ポート無線周波伝導イミュニティ試験",null,null,null,null,null,null,null,null,null,null,null,null,null,"測定周波数範囲 ：",null,null,null,null,null,null,null,null,null,null,"～",null,null,null,null,null,null,null,null,null,null,null,null,null,null,null,null,"IEC 61000-4-6　※CDN,クランプを含む",null,null,null,null,null,84,3,4,null,null,"区分_イミ_無線周波伝導妨害_電源ポート無線周波伝導イミ",{"$f":" IF($Y$90=\"\",\"\",$Y$90)","v":""},{"$f":" IF($AE$90=\"\",\"\",$AE$90)","v":""}]
[null,null,null,null,"通信ポート無線周波伝導イミュニティ試験",null,null,null,null,null,null,null,null,null,null,null,null,null,"測定周波数範囲 ：",null,null,null,null,null,null,null,null,null,null,"～",null,null,null,null,null,null,null,null,null,null,null,null,null,null,null,null,"IEC 61000-4-6、（CISPR 24）伝導性RF妨害",null,null,null,null,null,85,3,4,null,null,"区分_イミ_無線周波伝導妨害_通信ポート無線周波伝導イミュニティ試験",{"$f":" IF($Y$91=\"\",\"\",$Y$91)","v":""},{"$f":" IF($AE$91=\"\",\"\",$AE$91)","v":""}]
[null,null,null,null,"信号ポート無線周波伝導イミュニティ試験",null,null,null,null,null,null,null,null,null,null,null,null,null,"測定周波数範囲 ：",null,null,null,null,null,null,null,null,null,null,"～",null,null,null,null,null,null,null,null,null,null,null,null,null,null,null,null,"IEC 61000-4-6、（CISPR 35）連続性誘導RF妨害",null,null,null,null,null,86,3,4,null,null,"区分_イミ_無線周波伝導妨害_信号ポート無線周波伝導イミュニティ試験",{"$f":" IF($Y$92=\"\",\"\",$Y$92)","v":""},{"$f":" IF($AE$92=\"\",\"\",$AE$92)","v":""}]
[null,null,null,null,"バルク電流注入（患者結合ポート）",null,null,null,null,null,null,null,null,null,null,null,null,null,"測定周波数範囲 ：",null,null,null,null,null,null,null,null,null,null,"～",null,null,null,null,null,null,null,null,null,null,null,null,null,null,null,null,"IEC 60601-1-2(患者結合ポート)　",null,null,null,null,null,87,3,4,null,null,"区分_イミ_無線周波伝導妨害_バルク電流注入患者結合",{"$f":" IF($Y$93=\"\",\"\",$Y$93)","v":""},{"$f":" IF($AE$93=\"\",\"\",$AE$93)","v":""}]
[null,null,null,null,"バルク電流注入（車載）",null,null,null,null,null,null,null,null,null,null,null,null,null,"測定周波数範囲 ：",null,null,null,null,null,null,null,null,null,null,"～",null,null,null,null,null,null,null,null,"◆車載専用",null,null,null,null,null,null,null,"ISO 11451-4, ISO 11452-4 (BCI＆TWC)、※IEC 61000-4-6の電流注入法は意図外。",null,null,null,null,null,88,3,4,null,null,"区分_イミ_無線周波伝導妨害_バルク電流注入車載",{"$f":" IF($Y$94=\"\",\"\",$Y$94)","v":""},{"$f":" IF($AE$94=\"\",\"\",$AE$94)","v":""}]
[null,null,null,null,"無線周波電源の直接注入　",null,null,null,null,null,null,null,null,null,null,null,null,null,"測定周波数範囲 ：",null,null,null,null,null,null,null,null,null,null,"～",null,null,null,null,null,null,null,null,"◆車載専用",null,null,null,null,null,null,null,"ISO 11452-7",null,null,null,null,null,89,3,4,null,null,"区分_イミ_無線周波伝導妨害_無線周波電源直接注入",{"$f":" IF($Y$95=\"\",\"\",$Y$95)","v":""},{"$f":" IF($AE$95=\"\",\"\",$AE$95)","v":""}]
[null,null,null,null,"路上走行車-ポータブル送信アンテナ",null,null,null,null,null,null,null,null,null,null,null,null,null,"測定周波数範囲 ：",null,null,null,null,null,null,null,null,null,null,"～",null,null,null,null,null,null,null,null,"◆車載専用",null,null,null,null,null,null,null,"ISO 11452-9 (Road vehicles - Portable transmitters)　※可搬型送信機法（部品）",null,null,null,null,null,90,3,4,null,null,"区分_イミ_無線周波伝導妨害_ポータブル送信アンテナ",{"$f":" IF($Y$96=\"\",\"\",$Y$96)","v":""},{"$f":" IF($AE$96=\"\",\"\",$AE$96)","v":""}]
[null,null,null,null,"拡張オーディオ周波数範囲における伝導妨害へのイミュニティ",null,null,null,null,null,null,null,null,null,null,null,null,null,null,null,null,null,null,null,null,null,null,null,null,null,null,null,null,null,null,null,null,null,"◆車載専用",null,null,null,null,null,null,null,"ISO 11452-10",null,null,null,null,null,91,3,0,null,null,"区分_イミ_無線周波伝導妨害_拡張オーディオ伝導妨害イミ"]
[null,null,null,null,null,"測定周波数範囲 ：",null,null,null,null,null,null,"（試験名称が長いため2行構成）",null,null,null,null,null,null,null,null,null,null,null,null,null,null,null,null,"～",null,null,null,null,null,null,null,null,null,null,null,null,null,null,null,null,null,null,null,null,null,null,92,4,4,null,null,"区分_イミ_無線周波伝導妨害_拡張オーディオ伝導妨害イミ_測定周波数範囲",{"$f":" IF($Y$98=\"\",\"\",$Y$98)","v":""},{"$f":" IF($AE$98=\"\",\"\",$AE$98)","v":""}]
[null,null,null,null,"伝導低周波コモンモード",null,null,null,null,null,null,null,null,null,null,null,null,null,"測定周波数範囲 ：",null,null,null,null,null,null,null,null,null,null,"～",null,null,null,null,null,null,null,null,null,null,null,null,null,null,null,null,"IEC 61000-4-16、(英訳)Conducted Common mode disturbances",null,null,null,null,null,93,3,4,null,null,"区分_イミ_無線周波伝導妨害_伝導低周波コモンモード",{"$f":" IF($Y$99=\"\",\"\",$Y$99)","v":""},{"$f":" IF($AE$99=\"\",\"\",$AE$99)","v":""}]
[null,null,null,"6.6．放射磁界 ",null,null,null,null,null,null,null,null,null,null,null,null,null,null,null,null,null,null,null,null,null,null,null,null,null,null,null,null,null,null,null,null,null,null,null,null,"要付属書",null,null,null,null,null,"（付属書VF128F）",null,null,null,null,null,94,2,0,null,null,"区分_イミ_放射磁界"]
[null,null,null,null,"磁界イミュニティ試験（ループコイル、ヘルムホルツコイル）",null,null,null,null,null,null,null,null,null,null,null,null,null,null,null,null,null,null,null,null,null,null,null,null,null,null,null,null,null,null,null,null,null,null,null,null,null,null,null,null,null,null,null,null,null,null,null,95,3,0,null,null,"区分_イミ_放射磁界_電源周波数磁界イミ"]
[null,null,null,null,null,"電源周波数磁界イミュニティ",null,null,null,null,null,null,null,null,null,null,null,null,null,null,null,null,null,null,null,null,null,null,null,null,null,null,null,null,null,null,null,null,null,null,null,null,null,null,null,null,"IEC 61000-4-8",null,null,null,null,null,96,4,0,null,null,"区分_イミ_放射磁界_電源周波数磁界イミ_電源周波数磁界イミュニティ"]
[null,null,null,null,null,"パルス磁界イミュニティ",null,null,null,null,null,null,null,null,null,null,null,null,null,null,null,null,null,null,null,null,null,null,null,null,null,null,null,null,null,null,null,null,null,null,null,null,null,null,null,null,"IEC 61000-4-9",null,null,null,null,null,97,4,0,null,null,"区分_イミ_放射磁界_電源周波数磁界イミ_パルス磁界イミュニティ"]
[null,null,null,null,null,"減衰振動波磁界イミュニティ",null,null,null,null,null,null,null,null,null,null,null,null,null,null,null,null,null,null,null,null,null,null,null,null,null,null,null,null,null,null,null,null,null,null,null,null,null,null,null,null,"IEC 61000-4-10　(英訳)Oscillatory immnunity test",null,null,null,null,null,98,4,0,null,null,"区分_イミ_放射磁界_電源周波数磁界イミ_減衰振動波磁界イミュニティ"]
[null,null,null,null,null,"車載用機器",null,null,null,null,null,null,null,null,null,null,null,null,null,null,null,null,null,null,null,null,null,null,null,null,null,null,null,null,null,null,null,null,"◆車載専用",null,null,null,null,null,null,null,"ISO 11452-8、ISO 11452-10",null,null,null,null,null,99,4,0,null,null,"区分_イミ_放射磁界_電源周波数磁界イミ_車載用機器"]
[null,null,null,"6.7．電源電圧変動",null,null,null,null,null,null,null,null,null,null,null,null,null,null,null,null,null,null,null,null,null,null,null,null,null,null,null,null,null,null,null,null,null,null,null,null,"要付属書",null,null,null,null,null,"（付属書VF128G）",null,null,null,null,null,100,2,0,null,null,"区分_イミ_電源電圧変動"]
[null,null,null,null,"電源電圧ディップ・瞬停試験",null,null,null,null,null,null,null,null,null,null,null,null,null,null,null,null,null,null,null,null,null,null,null,null,null,null,null,null,null,null,null,null,null,null,null,null,null,null,null,null,null,"IEC 61000-4-11(16A以下)",null,null,null,null,null,101,3,0,null,null,"区分_イミ_電源電圧変動_電源電圧ディップ瞬停"]
[null,null,null,null,"電源電圧ディップ・瞬停試験（DC電源端子）",null,null,null,null,null,null,null,null,null,null,null,null,null,null,null,null,null,null,null,null,null,null,null,null,null,null,null,null,null,null,null,null,null,null,null,null,null,null,null,null,null,"IEC 61000-4-29(DC)、-4-34(16A超)、IACS VR E10 Rev.7 No4、ISO 16750-2、",null,null,null,null,null,102,3,0,null,null,"区分_イミ_電源電圧変動_電源電圧ディップ・瞬停試験（DC電源端子）"]
[null,null,null,"6.8．電力送電機器イミュニティ",null,null,null,null,null,null,null,null,null,null,null,null,null,null,null,null,null,null,null,null,null,null,null,null,null,null,null,null,null,null,null,null,null,null,null,null,null,null,null,null,null,null,"(ﾒﾓ)審査員：田中嶋,寺井,五十嵐,峯松,五十嵐、[2023.2.15]基本情報入力shtは「電力送電機器イミュニティ」もCheck要す。",null,null,null,null,null,108,2,0,null,null,"区分_イミ_電力送電機器イミュニティ"]
[null,null,null,null,"減衰振動波",null,null,null,null,null,null,null,null,null,null,null,null,null,null,null,null,null,null,null,null,null,null,null,null,null,null,null,null,null,null,null,null,null,null,null,null,null,null,null,null,null,"IEC 61000-4-18",null,null,null,null,null,109,3,0,null,null,"区分_イミ_電力送電機器イミュニティ_減衰振動波"]
[null,null,null,null,"リング振動波",null,null,null,null,null,null,null,null,null,null,null,null,null,null,null,null,null,null,null,null,null,null,null,null,null,null,null,null,null,null,null,null,null,null,null,null,null,null,null,null,null,"IEC 61000-4-12",null,null,null,null,null,110,3,0,null,null,"区分_イミ_電力送電機器イミュニティ_リング振動波"]
[null,null,null,null,"直流入力ポートリップル印加",null,null,null,null,null,null,null,null,null,null,null,null,null,null,null,null,null,null,null,null,null,null,null,null,null,null,null,null,null,null,null,null,null,null,null,null,null,null,null,null,null,"IEC 61000-4-17,直流入力端子におけるリプルに対するイミュニティ試験, (英訳)Ripple on d.c. input power port Imunity test",null,null,null,null,null,111,3,0,null,null,"区分_イミ_電力送電機器イミュニティ_直流入力ポートリップル印加"]
[null,null,null,null,"AC電源高調波イミュニティ",null,null,null,null,null,null,null,null,null,null,null,null,null,null,null,null,null,null,null,null,null,null,null,null,null,null,null,null,null,null,null,null,null,null,null,null,null,null,null,null,null,"IEC 61000-4-13,電源高調波に対するイミュニティ, (英訳)Low frequency immunity／Mains Harmonics and Interharmonics",null,null,null,null,null,112,3,0,null,null,"区分_イミ_電力送電機器イミュニティ_AC電源高調波イミュニティ"]
[null,null,"7．試験区分－電源高調波",null,null,null,null,null,null,null,null,null,null,null,null,null,null,null,null,null,null,null,null,null,null,null,null,null,null,null,null,null,null,null,null,null,null,null,null,null,null,null,null,null,null,null,null,null,null,null,null,null,113,1,0,null,null,"区分_電源高調波"]
[null,null,null,"7.1．電源高調波歪",null,null,null,null,null,null,null,null,null,null,null,null,null,null,null,null,null,null,null,null,null,null,null,null,null,null,null,null,null,null,null,null,null,null,null,null,null,null,null,null,null,null,"IEC 61000-6-4は高調波は要求なし",null,null,null,null,null,114,2,0,null,null,"区分_電源高調波_電源高調波歪"]
[null,null,null,null,"高調波電流試験",null,null,null,null,null,null,null,null,null,null,null,null,null,null,null,null,null,null,null,null,null,null,null,null,null,null,null,null,null,null,null,null,null,null,null,null,null,null,null,null,null,"<高調波>IEC 61000-3-2(220-240V,<16A)、同-3-12(同,16-75A)",null,null,null,null,null,115,3,0,null,null,"区分_電源高調波_電源高調波歪_高調波電流"]
[null,null,null,"7.2．電源電圧動揺",null,null,null,null,null,null,null,null,null,null,null,null,null,null,null,null,null,null,null,null,null,null,null,null,null,null,null,null,null,null,null,null,null,null,null,null,null,null,null,null,null,null,"<電圧変動・フリッカ>IEC 61000-3-3(220-250V,<16A)、同-3-11(同,≦75A)",null,null,null,null,null,116,2,0,null,null,"区分_電源高調波_電源電圧動揺"]
[null,null,null,null,"フリッカー試験",null,null,null,null,null,null,null,null,null,null,null,null,null,null,null,null,null,null,null,null,null,null,null,null,null,null,null,null,null,null,null,null,null,null,null,null,null,null,null,null,null,null,null,null,null,null,null,117,3,0,null,null,"区分_電源高調波_電源電圧動揺_フリッカー"]
[null,null,"8．試験区分－音響",null,null,null,null,null,null,null,null,null,null,null,null,null,null,null,null,null,null,null,null,null,null,null,null,null,null,null,null,null,null,null,null,null,null,null,null,null,null,null,null,null,null,null,"<注>（項7-8の間に）自動車・車載機器(Vehicle /In-vehicle equipment test)が抜けている為、項13aを追加（2021/2/15）",null,null,null,null,null,118,1,0,null,null,"区分_音響"]
[null,null,null,"8.1．空気伝搬騒音",null,null,null,null,null,null,null,null,null,null,null,null,null,null,null,null,null,null,null,null,null,null,null,null,null,null,null,null,null,null,null,null,null,null,null,null,null,null,null,null,null,null,null,null,null,null,null,null,119,2,0,null,null,"区分_音響_空気伝搬騒音"]
[null,null,null,null,"空気伝搬騒音試験",null,null,null,null,null,null,null,null,null,null,null,null,null,null,null,null,null,null,null,null,null,null,null,null,null,null,null,null,null,null,null,null,null,null,null,"要付属書",null,null,null,null,null,"（付属書VF154）",null,null,null,null,null,120,3,0,null,null,"区分_音響_空気伝搬騒音_空気伝搬騒音"]
[null,null,"9．試験区分－通信機器性能 １",null,null,null,null,null,null,null,null,null,null,null,null,null,null,null,null,null,null,null,null,null,null,null,null,null,null,null,null,null,null,null,null,null,null,null,null,null,null,null,null,null,null,null,"無線通信",null,null,null,null,null,121,1,0,null,null,"区分_通信機器性能"]
[null,null,null,"9.1.FCC",null,null,null,null,null,null,null,null,null,null,null,null,null,null,null,null,null,null,null,null,null,null,null,null,null,null,null,null,null,null,null,null,null,null,null,null,null,null,null,null,null,null,null,null,null,null,null,null,122,2,0,null,null,"区分_通信機器性能_FCC"]
[null,null,null,null,"Intentional Radiators (FCC Part 15 Subpart C)",null,null,null,null,null,null,null,null,null,null,null,null,null,null,null,null,null,null,null,null,null,null,null,null,null,null,null,null,null,null,null,null,null,null,null,null,null,null,null,null,null,"【EMC備忘録】",null,null,null,null,null,123,3,0,null,null,"区分_通信機器性能_FCC_Intentional Radiators (FCC Part 15 Subpart C)"]
[null,null,null,null,"UPCS (FCC Part 15, Subpart D) ",null,null,null,null,null,null,null,null,null,null,null,null,null,null,null,null,null,null,null,null,null,null,null,null,null,null,null,null,null,null,null,null,null,null,null,null,null,null,null,null,null,"<ﾒﾓ：廃止or失効した規格、後継規格>",null,null,null,null,null,124,3,0,null,null,"区分_通信機器性能_FCC_UPCS (FCC Part 15, Subpart D) "]
[null,null,null,null,null,"Unlicensed Personal Communication Systems devices ",null,null,null,null,null,null,null,null,null,null,null,null,null,null,null,null,null,null,null,null,null,null,null,null,null,null,null,null,null,null,null,null,null,null,null,null,null,null,null,null,"・2020.12.1廃止：J55001, J55013, J55022。・2022.9.16失効：EN55024:2010、・(旧)JIS C 1806-1→(新)JIS C 61326-1、",null,null,null,null,null,125,5,1]
[null,null,null,null,"U-NII without DFS International Radiators (FCC Part 15 Subpart E)",null,null,null,null,null,null,null,null,null,null,null,null,null,null,null,null,null,null,null,null,null,null,null,null,null,null,null,null,null,null,null,null,null,null,null,null,null,null,null,null,null,"・[EMI]AS/NZS CISPR 11/14.1/15→AS CISPR 11/14.1/15、AS CISPR 14.1:2018→AS/NZS CISPR 14.1:2021",null,null,null,null,null,126,3,0,null,null,"区分_通信機器性能_FCC_U-NII without DFS International Radiators (FCC Part 15 Subpart E)"]
[null,null,null,null,null,"Unlicensed National Information Infrastructure Devices (U-NII without DFS)",null,null,null,null,null,null,null,null,null,null,null,null,null,null,null,null,null,null,null,null,null,null,null,null,null,null,null,null,null,null,null,null,null,null,null,null,null,null,null,null,"・[EMI]AS/NZS 3200.1.2→AS IEC 60601.1.2",null,null,null,null,null,127,5,1]
[null,null,null,null,"U-NII with DFS International Radiators (FCC Part 15 Subpart E)",null,null,null,null,null,null,null,null,null,null,null,null,null,null,null,null,null,null,null,null,null,null,null,null,null,null,null,null,null,null,null,null,null,null,null,null,null,null,null,null,null,"<ﾒﾓ：IEC 61000-4シリーズ>",null,null,null,null,null,128,3,0,null,null,"区分_通信機器性能_FCC_U-NII with DFS International Radiators (FCC Part 15 Subpart E)"]
[null,null,null,null,null,"Unlicensed National Information Infrastructure U-NII) Devices with Dynamic Frequency Selection (DFS)",null,null,null,null,null,null,null,null,null,null,null,null,null,null,null,null,null,null,null,null,null,null,null,null,null,null,null,null,null,null,null,null,null,null,null,null,null,null,null,null,"・IEC 61000-4-4の類似規格：DL-160G, ISO 11452-10, MIL STD 461G CS101",null,null,null,null,null,129,5,1]
[null,null,null,null,"UWB Intentional Radiators (FCC Part 15, Subpart F) ",null,null,null,null,null,null,null,null,null,null,null,null,null,null,null,null,null,null,null,null,null,null,null,null,null,null,null,null,null,null,null,null,null,null,null,null,null,null,null,null,null,"・IEC 61000-4-39の類似規格：ISO 11452-8, MIL STD 461G RS101、",null,null,null,null,null,130,3,0,null,null,"区分_通信機器性能_FCC_UWB Intentional Radiators (FCC Part 15, Subpart F) "]
[null,null,null,null,null,"Ultra-wideband Operation ",null,null,null,null,null,null,null,null,null,null,null,null,null,null,null,null,null,null,null,null,null,null,null,null,null,null,null,null,null,null,null,null,null,null,null,null,null,null,null,null,"<ﾒﾓ：IEC 61000-6シリーズ>",null,null,null,null,null,131,5,1]
[null,null,null,null,"BPL Intentional Radiators (FCC Part 15, Subpart G) ",null,null,null,null,null,null,null,null,null,null,null,null,null,null,null,null,null,null,null,null,null,null,null,null,null,null,null,null,null,null,null,null,null,null,null,null,null,null,null,null,null,"・IEC61000-6-1 住宅･商工業ｲﾐｭﾆﾃｨ、同-6-2 工業環境ｲﾐｭﾆﾃｨ、",null,null,null,null,null,132,3,0,null,null,"区分_通信機器性能_FCC_BPL Intentional Radiators (FCC Part 15, Subpart G) "]
[null,null,null,null,null,"Access Broadband Over Power Line (Access BPL) ",null,null,null,null,null,null,null,null,null,null,null,null,null,null,null,null,null,null,null,null,null,null,null,null,null,null,null,null,null,null,null,null,null,null,null,null,null,null,null,null,"・IEC61000-6-3 住宅環境ｴﾐｯｼｮﾝ（→2020.7分離：同-6-8 商工業ｴﾐｯｼｮﾝ(業務装置限定)）、同-6-4 工業環境ｴﾐｯｼｮﾝ、",null,null,null,null,null,133,5,1]
[null,null,null,null,"White Space Device Intentional Radiators (FCC Part 15, Subpart H) ",null,null,null,null,null,null,null,null,null,null,null,null,null,null,null,null,null,null,null,null,null,null,null,null,null,null,null,null,null,null,null,null,null,null,null,null,null,null,null,null,null,"・IEC/TS 61000-6-5 発電所･変電所環境ｲﾐｭﾆﾃｨ、IEC61000-6-6 屋内機器におけるHEMPｲﾐｭﾆﾃｨ、",null,null,null,null,null,134,3,0,null,null,"区分_通信機器性能_FCC_White Space Device Intentional Radiators (FCC Part 15, Subpart H) "]
[null,null,null,null,null,"White Space Devices ",null,null,null,null,null,null,null,null,null,null,null,null,null,null,null,null,null,null,null,null,null,null,null,null,null,null,null,null,null,null,null,null,null,null,null,null,null,null,null,null,"・IEC61000-6-7 工業環境における機能安全性に関連する装置･ｼｽﾃﾑに対するｲﾐｭﾆﾃｨ、",null,null,null,null,null,135,5,1]
[null,null,null,null,"Commercial Mobile Services (FCC Licensed Radio Service Equipment)",null,null,null,null,null,null,null,null,null,null,null,null,null,null,null,null,null,null,null,null,null,null,null,null,null,null,null,null,null,null,null,null,null,null,null,null,null,null,null,null,null,"<ﾒﾓ：IEC 60601シリーズ>",null,null,null,null,null,136,3,0,null,null,"区分_通信機器性能_FCC_Commercial Mobile Services (FCC Licensed Radio Service Equipment)"]
[null,null,null,null,null,"Part 22 (cellular)",null,null,null,null,null,null,null,null,null,null,null,null,null,null,null,null,null,null,null,null,null,null,null,null,null,null,null,null,null,null,null,null,null,null,null,null,null,null,null,null,"・IEC 60601-1-2 Ed.4.1(:2014+A1:2020)<2020.9>は、Ed.4.0<2014.2>に対し、8.11項にIEC 61000-4-39を追加。",null,null,null,null,null,137,5,1]
[null,null,null,null,null,"Part 24",null,null,null,null,null,null,null,null,null,null,null,null,null,null,null,null,null,null,null,null,null,null,null,null,null,null,null,null,null,null,null,null,null,null,null,null,null,null,null,null,"・",null,null,null,null,null,138,5,1]
[null,null,null,null,null,"Part 25 (below 3 GHz)",null,null,null,null,null,null,null,null,null,null,null,null,null,null,null,null,null,null,null,null,null,null,null,null,null,null,null,null,null,null,null,null,null,null,null,null,null,null,null,null,"<ﾒﾓ：製品規格、他>",null,null,null,null,null,139,5,1]
[null,null,null,null,null,"Part 27",null,null,null,null,null,null,null,null,null,null,null,null,null,null,null,null,null,null,null,null,null,null,null,null,null,null,null,null,null,null,null,null,null,null,null,null,null,null,null,null,"・鉄道：IEC62236-3-2/-4, EN50121-3-2/-4、・",null,null,null,null,null,140,5,1]
[null,null,null,null,"General Mobile Radio Services (FCC Licensed Radio Service Equipment)",null,null,null,null,null,null,null,null,null,null,null,null,null,null,null,null,null,null,null,null,null,null,null,null,null,null,null,null,null,null,null,null,null,null,null,null,null,null,null,null,null,"・BT decisions D154/009 and D159/013（https://boss.cenelec.eu/media/4dij213u/en_iecreferencing.pdf）",null,null,null,null,null,141,3,0,null,null,"区分_通信機器性能_FCC_General Mobile Radio Services (FCC Licensed Radio Service Equipment)"]
[null,null,null,null,null,"Part 22 (non-cellular)",null,null,null,null,null,null,null,null,null,null,null,null,null,null,null,null,null,null,null,null,null,null,null,null,null,null,null,null,null,null,null,null,null,null,null,null,null,null,null,null,null,null,null,null,null,null,142,5,1]
[null,null,null,null,null,"Part 90 (below 3 GHz )",null,null,null,null,null,null,null,null,null,null,null,null,null,null,null,null,null,null,null,null,null,null,null,null,null,null,null,null,null,null,null,null,null,null,null,null,null,null,null,null,"<ﾒﾓ：放送受信機>",null,null,null,null,null,143,5,1]
[null,null,null,null,null,"Part 95 (below 3 GHz )",null,null,null,null,null,null,null,null,null,null,null,null,null,null,null,null,null,null,null,null,null,null,null,null,null,null,null,null,null,null,null,null,null,null,null,null,null,null,null,null,"・旧6.8項 放送受信器イミュニティ(CISPR 20, EN 55020)：2021.2.15に試験区分サブScopeから外し、2022.2.15に削除。",null,null,null,null,null,144,5,1]
[null,null,null,null,null,"Part 97 (below 3 GHz )",null,null,null,null,null,null,null,null,null,null,null,null,null,null,null,null,null,null,null,null,null,null,null,null,null,null,null,null,null,null,null,null,null,null,null,null,null,null,null,null,null,null,null,null,null,null,145,5,1]
[null,null,null,null,null,"Part 101 (below 3 GHz )",null,null,null,null,null,null,null,null,null,null,null,null,null,null,null,null,null,null,null,null,null,null,null,null,null,null,null,null,null,null,null,null,null,null,null,null,null,null,null,null,"【車載 備忘録】　",null,null,null,null,null,146,5,1]
[null,null,null,null,"Citizens Broadband Radio Services (FCC Licensed Radio Service Equipment)",null,null,null,null,null,null,null,null,null,null,null,null,null,null,null,null,null,null,null,null,null,null,null,null,null,null,null,null,null,null,null,null,null,null,null,null,null,null,null,null,null,"<ﾒﾓ：IEC 11452シリーズ>",null,null,null,null,null,147,3,0,null,null,"区分_通信機器性能_FCC_Citizens Broadband Radio Services (FCC Licensed Radio Service Equipment)"]
[null,null,null,null,null,"Part 96",null,null,null,null,null,null,null,null,null,null,null,null,null,null,null,null,null,null,null,null,null,null,null,null,null,null,null,null,null,null,null,null,null,null,null,null,null,null,null,null,"・ISO 11452-1 試験一般(共通事項）、同-2 無響室法(アンテナ照射法 or ALSE法)⇒6.2項、・同-3 TEMセル法⇒6.2項、",null,null,null,null,null,148,5,1]
[null,null,null,null,"Maritime and Aviation Radio Services (FCC Licensed Radio Service Equipment)",null,null,null,null,null,null,null,null,null,null,null,null,null,null,null,null,null,null,null,null,null,null,null,null,null,null,null,null,null,null,null,null,null,null,null,null,null,null,null,null,null,"・ISO 11452-4 ﾊｰﾈｽ励起法 100kHz-3GHz⇒6.5項 バルク電流注入",null,null,null,null,null,149,3,0,null,null,"区分_通信機器性能_FCC_Maritime and Aviation Radio Services (FCC Licensed Radio Service Equipment)"]
[null,null,null,null,null,"Part 80",null,null,null,null,null,null,null,null,null,null,null,null,null,null,null,null,null,null,null,null,null,null,null,null,null,null,null,null,null,null,null,null,null,null,null,null,null,null,null,null,"　(BCI法 1M-400MHz, TWC法 400M-3GHz) (略語)TWC=Tubular wave coupler、",null,null,null,null,null,150,5,1]
[null,null,null,null,null,"Part 87",null,null,null,null,null,null,null,null,null,null,null,null,null,null,null,null,null,null,null,null,null,null,null,null,null,null,null,null,null,null,null,null,null,null,null,null,null,null,null,null,"・ISO 11452-5 ｽﾄﾘｯﾌﾟﾗｲﾝ⇒6.2項、",null,null,null,null,null,151,5,1]
[null,null,null,null,"Microwave and Millimeter Wave Bands Radio Services (FCC Licensed Radio Service Equipment)",null,null,null,null,null,null,null,null,null,null,null,null,null,null,null,null,null,null,null,null,null,null,null,null,null,null,null,null,null,null,null,null,null,null,null,null,null,null,null,null,null,"・ISO 11452-7 BANを用いた直接注入(コンデンサ注入)⇒6.5項、・同-9 可搬型送信機近接照射試験、　　",null,null,null,null,null,152,3,0,null,null,"区分_通信機器性能_FCC_Microwave and Millimeter Wave Bands Radio Services (FCC Licensed Radio Service Equipment)"]
[null,null,null,null,null,"Part 25",null,null,null,null,null,null,null,null,null,null,null,null,null,null,null,null,null,null,null,null,null,null,null,null,null,null,null,null,null,null,null,null,null,null,null,null,null,null,null,null,"・ISO 11452-8 低周波磁界(狭帯域電磁妨害)⇒6.6項、",null,null,null,null,null,153,5,1]
[null,null,null,null,null,"Part 30",null,null,null,null,null,null,null,null,null,null,null,null,null,null,null,null,null,null,null,null,null,null,null,null,null,null,null,null,null,null,null,null,null,null,null,null,null,null,null,null,"・ISO 11452-9 可搬型送信機法(狭帯域電磁妨害-ﾎﾟｰﾀﾌﾞﾙ送信機)⇒6.5項、",null,null,null,null,null,154,5,1]
[null,null,null,null,null,"Part 74",null,null,null,null,null,null,null,null,null,null,null,null,null,null,null,null,null,null,null,null,null,null,null,null,null,null,null,null,null,null,null,null,null,null,null,null,null,null,null,null,"・ISO 11452-10 低周波伝導⇒6.5項 ",null,null,null,null,null,155,5,1]
[null,null,null,null,null,"Part 90 (above 3 GHz)",null,null,null,null,null,null,null,null,null,null,null,null,null,null,null,null,null,null,null,null,null,null,null,null,null,null,null,null,null,null,null,null,null,null,null,null,null,null,null,null,"　（路上走行車-低周波磁界に対するイミュニティ、（英訳）Road vehicles - Immunity to magnetic fields）",null,null,null,null,null,156,5,1]
[null,null,null,null,null,"Part 95 (above 3 GHz)",null,null,null,null,null,null,null,null,null,null,null,null,null,null,null,null,null,null,null,null,null,null,null,null,null,null,null,null,null,null,null,null,null,null,null,null,null,null,null,null,"　（拡張オーディオ周波数範囲における伝導妨害へのイミュニティ）",null,null,null,null,null,157,5,1]
[null,null,null,null,null,"Part 97 (above 3 GHz)",null,null,null,null,null,null,null,null,null,null,null,null,null,null,null,null,null,null,null,null,null,null,null,null,null,null,null,null,null,null,null,null,null,null,null,null,null,null,null,null,"・ISO 11452-11リバプレーションチャンバ法⇒6.2項 ",null,null,null,null,null,158,5,1]
[null,null,null,null,null,"Part 101 (above 3 GHz)",null,null,null,null,null,null,null,null,null,null,null,null,null,null,null,null,null,null,null,null,null,null,null,null,null,null,null,null,null,null,null,null,null,null,null,null,null,null,null,null,null,null,null,null,null,null,159,5,1]
[null,null,null,null,"Broadcast Radio Services (FCC Licensed Radio Service Equipment) ",null,null,null,null,null,null,null,null,null,null,null,null,null,null,null,null,null,null,null,null,null,null,null,null,null,null,null,null,null,null,null,null,null,null,null,null,null,null,null,null,null,"<ﾒﾓ：ISO 7637シリーズ、他>",null,null,null,null,null,160,3,0,null,null,"区分_通信機器性能_FCC_Broadcast Radio Services (FCC Licensed Radio Service Equipment) "]
[null,null,null,null,null,"Part 73 ",null,null,null,null,null,null,null,null,null,null,null,null,null,null,null,null,null,null,null,null,null,null,null,null,null,null,null,null,null,null,null,null,null,null,null,null,null,null,null,null,"・[2023.2.15]「ISO 7637-1 路上走行車-伝導及び結合による電気的妨害」は試験一般（試験規格ではない）。",null,null,null,null,null,161,5,1]
[null,null,null,null,null,"Part 74 (below 3 GHz) ",null,null,null,null,null,null,null,null,null,null,null,null,null,null,null,null,null,null,null,null,null,null,null,null,null,null,null,null,null,null,null,null,null,null,null,null,null,null,null,null,"・ISO 7637-2 過渡電圧, 電源変動、・ISO 7637-3 過渡電圧、・ISO/TS 7637-4 高電圧部品用、⇒全て6.4項",null,null,null,null,null,162,5,1]
[null,null,null,null,"Hearing Aid Compatibility (Part 20) ",null,null,null,null,null,null,null,null,null,null,null,null,null,null,null,null,null,null,null,null,null,null,null,null,null,null,null,null,null,null,null,null,null,null,null,null,null,null,null,null,null,"・ISO 10605 静電気⇒6.1項",null,null,null,null,null,163,3,0,null,null,"区分_通信機器性能_FCC_Hearing Aid Compatibility (Part 20) "]
[null,null,null,null,null,"HAC for Commercial mobile services ",null,null,null,null,null,null,null,null,null,null,null,null,null,null,null,null,null,null,null,null,null,null,null,null,null,null,null,null,null,null,null,null,null,null,null,null,null,null,null,null,"・SAE J1113-25 トリプレート ⇒6.2項 放射電磁界イミュニティ試験（トリプレート）",null,null,null,null,null,164,5,1]
[null,null,null,null,"Signal Boosters (Part 20) ",null,null,null,null,null,null,null,null,null,null,null,null,null,null,null,null,null,null,null,null,null,null,null,null,null,null,null,null,null,null,null,null,null,null,null,null,null,null,null,null,null,null,null,null,null,null,null,165,3,0,null,null,"区分_通信機器性能_FCC_Signal Boosters (Part 20) "]
[null,null,null,null,null,"Wideband Consumer signal boosters ",null,null,null,null,null,null,null,null,null,null,null,null,null,null,null,null,null,null,null,null,null,null,null,null,null,null,null,null,null,null,null,null,null,null,null,null,null,null,null,null,"【電源高調波　備忘録】",null,null,null,null,null,166,5,1]
[null,null,null,null,null,"Provider-specific signal boosters ",null,null,null,null,null,null,null,null,null,null,null,null,null,null,null,null,null,null,null,null,null,null,null,null,null,null,null,null,null,null,null,null,null,null,null,null,null,null,null,null,"(ﾒﾓ) IEC 61000-6-4は高調波要求なし、",null,null,null,null,null,167,5,1]
[null,null,null,null,null,"Industrial signal boosters",null,null,null,null,null,null,null,null,null,null,null,null,null,null,null,null,null,null,null,null,null,null,null,null,null,null,null,null,null,null,null,null,null,null,null,null,null,null,null,null,"(ﾒﾓ) AS/NZS 61000.6.3/.6.4も(IEC61000-6-3/-6-4 Ed.2.1 参照の為)要求なし　(前述IECは最新Ed.3)",null,null,null,null,null,168,5,1]
[null,null,null,null,null,"Signal Boosters (Section 90.219) ",null,null,null,null,null,null,null,null,null,null,null,null,null,null,null,null,null,null,null,null,null,null,null,null,null,null,null,null,null,null,null,null,null,null,null,null,null,null,null,null,"(ﾒﾓ) JIS 62326-1はクラスBのみに電源高調波の要求あり。",null,null,null,null,null,169,5,1]
[null,null,null,"9.2．カナダ",null,null,null,null,null,null,null,null,null,null,null,null,null,null,null,null,null,null,null,null,null,null,null,null,null,null,null,null,null,null,null,null,null,null,null,null,null,null,null,null,null,null,"(ﾒﾓ) IEC61000-6-3:2020(Ed.3.0)はΔ-ANあり、EN61000-6-3:2007+A1:2010はΔ-ANなし (出典)2020.9.18 ダイキンより",null,null,null,null,null,170,2,0,null,null,"区分_通信機器性能_カナダ"]
[null,null,null,"9.3．欧州",null,null,null,null,null,null,null,null,null,null,null,null,null,null,null,null,null,null,null,null,null,null,null,null,null,null,null,null,null,null,null,null,null,null,null,null,null,null,null,null,null,null,null,null,null,null,null,null,171,2,0,null,null,"区分_通信機器性能_欧州"]
[null,null,null,"9.4．電波法",null,null,null,null,null,null,null,null,null,null,null,null,null,null,null,null,null,null,null,null,null,null,null,null,null,null,null,null,null,null,null,null,null,null,null,null,null,null,null,null,null,null,"【欧州】ETSI EN301：通信機器のEMC規格、ETSI EN300：通信機能の規格、",null,null,null,null,null,172,2,0,null,null,"区分_通信機器性能_電波法"]
[null,null,null,"9.5．その他",null,null,null,null,null,null,null,null,null,null,null,null,null,null,null,null,null,null,null,null,null,null,null,null,null,null,null,null,null,null,null,null,null,null,null,null,null,null,null,null,null,null,"（↑試験方法だけでなくEUTの動作にも気を使うこと。泉、田中嶋、五十嵐、川田はEUTの動作に言及できる）",null,null,null,null,null,173,2,0,null,null,"区分_通信機器性能_その他"]
[null,null,null,null,"（注：本項の申請をする場合は、備考欄に詳細を記載ください。）",null,null,null,null,null,null,null,null,null,null,null,null,null,null,null,null,null,null,null,null,null,null,null,null,null,null,null,null,null,null,null,null,null,null,null,null,null,null,null,null,null,null,null,null,null,null,null,174,4,1]
[null,null,"10．試験区分－通信機器性能 ２",null,null,null,null,null,null,null,null,null,null,null,null,null,null,null,null,null,null,null,null,null,null,null,null,null,null,null,null,null,null,null,null,null,null,null,null,null,null,null,null,null,null,null,"SAR、人体に対する電磁界暴露",null,null,null,null,null,175,1,0,null,null,"区分_通信機器性能2"]
[null,null,null,"10.1．電磁界ばく露",null,null,null,null,null,null,null,null,null,null,null,null,null,null,null,null,null,null,null,null,null,null,null,null,null,null,null,null,null,null,null,null,null,null,null,null,null,null,null,null,null,null,"(ﾒﾓ)EMF試験（人体曝露）",null,null,null,null,null,176,2,0,null,null,"区分_通信機器性能2_電磁界ばく露"]
[null,null,null,null,"局所吸収率 (SAR)",null,null,null,null,null,null,null,null,null,null,null,null,null,null,null,null,null,null,null,null,null,null,null,null,null,null,null,null,null,null,null,null,null,null,null,"要付属書",null,null,null,null,null,"（付属書VF119）　※FCCの「RF Exposure」はSARを指す。",null,null,null,null,null,177,3,0,null,null,"区分_通信機器性能2_電磁界ばく露_局所比吸収率"]
[null,null,null,null,"磁界強度（磁界プローブ）",null,null,null,null,null,null,null,null,null,null,null,null,null,null,null,null,null,null,null,null,null,null,null,null,null,null,null,null,null,null,null,null,null,null,null,null,null,null,null,null,null,"（付属書VF105D）",null,null,null,null,null,178,3,0,null,null,"区分_通信機器性能2_電磁界ばく露_磁界強度_磁界プローブ"]
[null,null,null,null,"電界強度（電界プローブ）",null,null,null,null,null,null,null,null,null,null,null,null,null,null,null,null,null,null,null,null,null,null,null,null,null,null,null,null,null,null,null,null,null,null,null,null,null,null,null,null,null,"(ﾒﾓ)電界強度は無線モジュール搭載時に試験する。無線モジュール搭載なければ磁界強度のみでよい。",null,null,null,null,null,179,3,0,null,null,"区分_通信機器性能2_電磁界ばく露_低周波磁界密度_等方性プローブ"]
[null,null,null,null,"空中線電力測定",null,null,null,null,null,null,null,null,null,null,null,null,null,null,null,null,null,null,null,null,null,null,null,null,null,null,null,null,null,null,null,null,null,null,null,null,null,null,null,null,null,"(ﾒﾓ)TELECが空中線電力測定、放射電力測定をScope追加済。",null,null,null,null,null,180,3,0,null,null,"区分_通信機器性能2_電磁界ばく露_空中線電力測定"]
[null,null,null,null,"放射電力測定",null,null,null,null,null,null,null,null,null,null,null,null,null,null,null,null,null,null,null,null,null,null,null,null,null,null,null,null,null,null,null,null,null,null,null,null,null,null,null,null,null,null,null,null,null,null,null,181,3,0,null,null,"区分_通信機器性能2_電磁界ばく露_放射電力測定"]
[null,null,"11．試験区分－通信機器性能 ３",null,null,null,null,null,null,null,null,null,null,null,null,null,null,null,null,null,null,null,null,null,null,null,null,null,null,null,null,null,null,null,null,null,null,null,null,null,null,null,null,null,null,null,"有線通信端末",null,null,null,null,null,182,1,0,null,null,"区分_通信機器性能3"]
[null,null,null,"11.1．公衆回線接続通信端末機器試験",null,null,null,null,null,null,null,null,null,null,null,null,null,null,null,null,null,null,null,null,null,null,null,null,null,null,null,null,null,null,null,null,null,null,null,null,null,null,null,null,null,null,null,null,null,null,null,null,183,2,0,null,null,"区分_通信機器性能3_有線通信機器"]
[null,null,"12．試験区分－製品安全試験　　（注：本項を申請する場合は、事前にVLACにご相談ください。）",null,null,null,null,null,null,null,null,null,null,null,null,null,null,null,null,null,null,null,null,null,null,null,null,null,null,null,null,null,null,null,null,null,null,null,null,null,null,null,null,null,null,null,null,null,null,null,null,null,184,1,0,null,null,"区分_製品安全"]
[null,null,null,"12.1．製品安全試験",null,null,null,null,null,null,null,null,null,null,null,null,null,null,null,null,null,null,null,null,null,null,null,null,null,null,null,null,null,null,null,null,null,null,null,null,null,null,null,null,null,null,null,null,null,null,null,null,185,2,0,null,null,"区分_製品安全_IEC"]
[null,null,null,null,"家電製品",null,null,null,null,null,null,null,null,null,null,null,null,null,null,null,null,null,null,null,null,null,null,null,null,null,null,null,null,null,null,null,null,null,null,null,null,null,null,null,null,null,null,null,null,null,null,null,186,3,0,null,null,"区分_製品安全_IEC_家電製品"]
[null,null,null,null,"マルチメディア",null,null,null,null,null,null,null,null,null,null,null,null,null,null,null,null,null,null,null,null,null,null,null,null,null,null,null,null,null,null,null,null,null,null,null,null,null,null,null,null,null,null,null,null,null,null,null,187,3,0,null,null,"区分_製品安全_IEC_IT機器"]
[null,null,null,null,"医用電気機器",null,null,null,null,null,null,null,null,null,null,null,null,null,null,null,null,null,null,null,null,null,null,null,null,null,null,null,null,null,null,null,null,null,null,null,null,null,null,null,null,null,null,null,null,null,null,null,188,3,0,null,null,"区分_製品安全_IEC_医用電気機器"]
[null,null,null,null,"制御機器・計測機器",null,null,null,null,null,null,null,null,null,null,null,null,null,null,null,null,null,null,null,null,null,null,null,null,null,null,null,null,null,null,null,null,null,null,null,null,null,null,null,null,null,null,null,null,null,null,null,189,3,0,null,null,"区分_製品安全_IEC_制御機器計測機器"]
[null,null,"13．試験区分－環境（消費電力／環境試験）　（注：本項を申請する場合は、事前にVLACにご相談ください。）",null,null,null,null,null,null,null,null,null,null,null,null,null,null,null,null,null,null,null,null,null,null,null,null,null,null,null,null,null,null,null,null,null,null,null,null,null,null,null,null,null,null,null,null,null,null,null,null,null,190,1,0,null,null,"区分_環境"]
[null,null,null,"13.1．消費電力",null,null,null,null,null,null,null,null,null,null,null,null,null,null,null,null,null,null,null,null,null,null,null,null,null,null,null,null,null,null,null,null,null,null,null,null,null,null,null,null,null,null,null,null,null,null,null,null,191,2,0,null,null,"区分_環境_消費電力"]
[null,null,null,null,"標準消費電力量 (TEC)法",null,null,null,null,null,null,null,null,null,null,null,null,null,null,null,null,null,null,null,null,null,null,null,null,null,null,null,null,null,null,null,null,null,null,null,null,null,null,null,null,null,null,null,null,null,null,null,192,3,0,null,null,"区分_環境_消費電力_標準消費電力量 (TEC)法"]
[null,null,null,null,"動作モード (OM)法",null,null,null,null,null,null,null,null,null,null,null,null,null,null,null,null,null,null,null,null,null,null,null,null,null,null,null,null,null,null,null,null,null,null,null,null,null,null,null,null,null,null,null,null,null,null,null,193,3,0,null,null,"区分_環境_消費電力_動作モード_OM法"]
[null,null,null,null,"家庭用電気冷蔵庫及び電気冷凍庫の特性及び試験",null,null,null,null,null,null,null,null,null,null,null,null,null,null,null,null,null,null,null,null,null,null,null,null,null,null,null,null,null,null,null,null,null,null,null,null,null,null,null,null,null,null,null,null,null,null,null,194,3,0,null,null,"区分_環境_消費電力_家庭用電気冷蔵庫及び電気冷凍庫の特性及び試験"]
[null,null,null,"13.2．環境試験",null,null,null,null,null,null,null,null,null,null,null,null,null,null,null,null,null,null,null,null,null,null,null,null,null,null,null,null,null,null,null,null,null,null,null,null,null,null,null,null,null,null,"[2023.2.15]船用電機設備（環境条件に対する耐久性）_JQA記載例：外観検査、作動試験及び性能試験、",null,null,null,null,null,195,2,0,null,null,"区分_環境_環境試験"]
[null,null,null,null,"船級試験",null,null,null,null,null,null,null,null,null,null,null,null,null,null,null,null,null,null,null,null,null,null,null,null,null,null,null,null,null,null,null,null,null,null,null,null,null,null,null,null,null,"絶縁抵抗試験、、耐電圧試験、乾燥高温試験、温湿度試験、振動試験、傾斜試験、低温試験、難燃性試験、",null,null,null,null,null,196,3,0,null,null,"区分_環境_環境試験_船級試験"]
[null,null,"13a．試験区分－自動車・車載機器",null,null,null,null,null,null,null,null,null,null,null,null,null,null,null,null,null,null,null,null,null,null,null,null,null,null,null,null,null,null,null,null,null,null,null,null,null,null,null,"（注：5項,6項への記述に加えて、｢別紙(車載試験区分)｣も提出して下さい。）",null,null,null,null,null,null,null,null,null,197,1,0,null,null,"区分_自動車・車載機器"]
[null,null,"13b．試験区分－防衛・宇宙・航空",null,null,null,null,null,null,null,null,null,null,null,null,null,null,null,null,null,null,null,null,null,null,null,null,null,null,null,null,null,null,null,null,null,null,null,null,null,null,null,"（注：本項を申請する場合は、事前にVLACにご相談ください。）",null,null,null,null,null,null,null,null,null,198,1,0,null,null,"区分_防衛・宇宙・航空"]
[]
[]
[null,null,"備考欄（新たな試験区分を希望する場合はVLAC事務局に事前相談の上、\n　　　　　　　　　　　　　　　　　　　　　　　　　または現認定証記載の試験区分が本shtに未反映時は、この欄に記載する。）"]
[null,null,""]
[]
[]
[]
[]
[]
[]
[]
[]
[null,null,null,null,null,null,null,null,null,null,null,null,null,null,null,null,null,null,null,null,null,null,null,null,null,null,null,null,null,null,null,null,null,null,null,null,null,"※最大文字数：1024"]

{"sheet":"試験規格入力","index":7,"n_rows":203,"n_cols":63,"rows_kept":203,"cut":false,"hidden":false,"merged":[[11,23,11,35],[11,36,11,43],[11,44,11,45],[12,2,12,14],[12,15,12,22],[12,23,12,35],[12,36,12,43],[12,44,12,45],[8,44,8,45],[9,2,9,14],[9,15,9,22],[9,23,9,35],[9,36,9,43],[9,44,9,45],[10,2,10,14],[10,15,10,22],[10,23,10,35],[10,36,10,43],[10,44,10,45],[192,2,192,43],[193,2,201,43],[1,35,1,41],[1,42,1,44],[2,0,3,17],[2,18,2,19],[2,20,2,26],[2,27,3,34],[2,35,3,41],[3,18,3,19],[3,20,3,26],[2,42,2,44],[3,42,3,44],[1,0,1,17],[1,18,1,26],[1,27,1,34],[7,2,7,22],[7,23,7,43],[8,2,8,14],[8,15,8,22],[8,23,8,35],[8,36,8,43],[11,2,11,14],[11,15,11,22],[119,2,119,14],[119,15,119,22],[119,23,119,35],[119,36,119,43],[98,23,98,35],[176,44,176,45],[177,2,177,14],[177,15,177,22],[177,23,177,35],[177,36,177,43],[177,44,177,45],[172,2,172,22],[172,23,172,43],[173,2,173,14],[175,2,175,14],[175,15,175,22],[175,23,175,35],[176,36,176,43],[167,44,167,45],[164,44,164,45],[165,44,165,45],[166,44,166,45],[162,44,162,45],[113,2,113,14],[113,15,113,22],[113,23,113,35],[113,36,113,43],[98,15,98,22],[102,2,102,14],[102,15,102,22],[101,2,101,14],[101,15,101,22],[101,23,101,35],[101,36,101,43],[102,36,102,43],[100,15,100,22],[100,23,100,35],[100,36,100,43],[102,23,102,35],[112,15,112,22],[112,23,112,35],[112,36,112,43],[90,2,90,14],[90,15,90,22],[90,23,90,35],[90,36,90,43],[90,44,90,45],[99,36,99,43],[99,44,99,45],[100,2,100,14],[98,2,98,14],[96,2,96,22],[96,23,96,43],[97,2,97,14],[97,15,97,22],[97,23,97,35],[97,36,97,43],[97,44,97,45],[85,2,85,14],[85,15,85,22],[85,23,85,35],[85,36,85,43],[85,44,85,45],[86,2,86,14],[86,15,86,22],[86,23,86,35],[86,36,86,43],[86,44,86,45],[87,2,87,14],[87,15,87,22],[87,23,87,35],[113,44,113,45],[121,2,121,14],[121,15,121,22],[121,23,121,35],[121,36,121,43],[121,44,121,45],[118,2,118,22],[118,23,118,43],[101,44,101,45],[119,44,119,45],[120,2,120,14],[120,15,120,22],[120,23,120,35],[120,36,120,43],[120,44,120,45],[98,36,98,43],[98,44,98,45],[110,2,110,14],[110,15,110,22],[110,23,110,35],[110,36,110,43],[166,23,166,35],[166,36,166,43],[124,2,124,14],[124,15,124,22],[124,23,124,35],[124,36,124,43],[124,44,124,45],[132,36,132,43],[132,44,132,45],[133,2,133,14],[133,15,133,22],[133,23,133,35],[133,36,133,43],[133,44,133,45],[130,2,130,14],[130,15,130,22],[130,23,130,35],[130,44,130,45],[131,44,131,45],[163,2,163,14],[163,15,163,22],[163,23,163,35],[163,36,163,43],[144,36,144,43],[20,23,20,35],[20,36,20,43],[20,44,20,45],[163,44,163,45],[175,36,175,43],[175,44,175,45],[188,2,188,14],[188,15,188,22],[188,23,188,35],[188,36,188,43],[188,44,188,45],[178,2,178,14],[178,15,178,22],[178,23,178,35],[178,36,178,43],[178,44,178,45],[164,15,164,22],[164,23,164,35],[164,36,164,43],[165,2,165,14],[165,15,165,22],[165,23,165,35],[165,36,165,43],[166,2,166,14],[32,44,32,45],[33,2,33,14],[33,15,33,22],[33,23,33,35],[33,36,33,43],[33,44,33,45],[29,2,29,22],[29,23,29,43],[30,2,30,14],[31,44,31,45],[35,2,35,14],[35,15,35,22],[35,23,35,35],[35,36,35,43],[35,44,35,45],[34,2,34,14],[34,15,34,22],[34,23,34,35],[34,36,34,43],[34,44,34,45],[57,44,57,45],[54,2,54,14],[54,15,54,22],[54,23,54,35],[54,36,54,43],[54,44,54,45],[55,2,55,14],[55,15,55,22],[55,23,55,35],[55,36,55,43],[55,44,55,45],[56,2,56,14],[56,15,56,22],[56,23,56,35],[56,36,56,43],[56,44,56,45],[57,2,57,14],[57,15,57,22],[57,23,57,35],[57,36,57,43],[68,2,68,14],[68,15,68,22],[68,23,68,35],[68,36,68,43],[68,44,68,45],[76,2,76,14],[76,15,76,22],[76,23,76,35],[76,36,76,43],[76,44,76,45],[73,2,73,22],[73,23,73,43],[74,2,74,14],[74,15,74,22],[74,23,74,35],[74,36,74,43],[74,44,74,45],[75,2,75,14],[75,15,75,22],[75,23,75,35],[75,36,75,43],[75,44,75,45],[189,2,189,14],[189,15,189,22],[189,23,189,35],[189,36,189,43],[173,15,173,22],[173,23,173,35],[173,36,173,43],[185,2,185,14],[185,15,185,22],[185,23,185,35],[185,36,185,43],[176,2,176,14],[186,2,186,14],[186,15,186,22],[186,23,186,35],[186,36,186,43],[176,15,176,22],[176,23,176,35],[189,44,189,45],[21,2,21,14],[21,15,21,22],[21,23,21,35],[21,36,21,43],[21,44,21,45],[22,2,22,14],[22,15,22,22],[22,23,22,35],[22,36,22,43],[22,44,22,45],[156,2,156,14],[156,15,156,22],[156,23,156,35],[156,36,156,43],[167,2,167,14],[167,15,167,22],[167,23,167,35],[167,36,167,43],[164,2,164,14],[32,2,32,14],[32,15,32,22],[32,23,32,35],[32,36,32,43],[52,36,52,43],[52,44,52,45],[40,2,40,22],[40,23,40,43],[41,2,41,14],[41,15,41,22],[41,23,41,35],[41,36,41,43],[41,44,41,45],[42,2,42,14],[42,15,42,22],[42,23,42,35],[42,36,42,43],[42,44,42,45],[43,2,43,14],[43,15,43,22],[43,23,43,35],[43,36,43,43],[43,44,43,45],[44,2,44,14],[53,2,53,14],[53,15,53,22],[53,23,53,35],[53,36,53,43],[53,44,53,45],[44,36,44,43],[44,44,44,45],[45,2,45,14],[45,15,45,22],[45,23,45,35],[45,36,45,43],[45,44,45,45],[51,2,51,22],[51,23,51,43],[46,2,46,14],[46,15,46,22],[46,23,46,35],[46,36,46,43],[46,44,46,45],[44,15,44,22],[44,23,44,35],[52,2,52,14],[52,15,52,22],[52,23,52,35],[65,2,65,14],[65,15,65,22],[65,23,65,35],[65,36,65,43],[65,44,65,45],[62,2,62,22],[62,23,62,43],[63,2,63,14],[63,15,63,22],[63,23,63,35],[63,36,63,43],[63,44,63,45],[64,2,64,14],[64,15,64,22],[64,23,64,35],[64,36,64,43],[64,44,64,45],[66,2,66,14],[66,15,66,22],[66,23,66,35],[66,36,66,43],[66,44,66,45],[67,2,67,14],[67,15,67,22],[67,23,67,35],[67,36,67,43],[67,44,67,45],[144,23,144,35],[102,44,102,45],[99,2,99,14],[99,15,99,22],[100,44,100,45],[111,2,111,14],[111,15,111,22],[111,23,111,35],[111,36,111,43],[111,44,111,45],[110,44,110,45],[107,2,107,22],[107,23,107,43],[108,2,108,14],[108,15,108,22],[108,23,108,35],[108,36,108,43],[108,44,108,45],[109,2,109,14],[109,15,109,22],[109,23,109,35],[109,36,109,43],[109,44,109,45],[99,23,99,35],[129,23,129,43],[112,44,112,45],[186,44,186,45],[187,2,187,14],[187,15,187,22],[187,23,187,35],[187,36,187,43],[187,44,187,45],[141,2,141,14],[141,15,141,22],[141,23,141,35],[141,36,141,43],[142,2,142,14],[142,15,142,22],[142,23,142,35],[142,36,142,43],[151,2,151,14],[151,15,151,22],[151,23,151,35],[151,36,151,43],[143,2,143,14],[166,15,166,22],[144,2,144,14],[144,15,144,22],[20,15,20,22],[145,2,145,14],[13,2,13,14],[13,15,13,22],[13,23,13,35],[13,36,13,43],[31,2,31,14],[31,15,31,22],[31,23,31,35],[31,36,31,43],[84,23,84,43],[87,36,87,43],[130,36,130,43],[131,2,131,14],[131,15,131,22],[131,23,131,35],[131,36,131,43],[143,15,143,22],[143,23,143,35],[143,36,143,43],[145,15,145,22],[89,23,89,35],[89,36,89,43],[129,2,129,22],[89,2,89,14],[13,44,13,45],[18,2,18,22],[18,23,18,43],[19,2,19,14],[19,15,19,22],[19,23,19,35],[19,36,19,43],[19,44,19,45],[30,15,30,22],[30,23,30,35],[30,36,30,43],[30,44,30,45],[24,2,24,14],[24,15,24,22],[24,23,24,35],[24,36,24,43],[24,44,24,45],[23,2,23,14],[23,15,23,22],[23,23,23,35],[23,36,23,43],[23,44,23,45],[20,2,20,14],[123,44,123,45],[89,44,89,45],[77,2,77,14],[77,15,77,22],[77,23,77,35],[77,36,77,43],[77,44,77,45],[78,2,78,14],[78,15,78,22],[78,23,78,35],[78,36,78,43],[78,44,78,45],[79,2,79,14],[79,15,79,22],[79,23,79,35],[79,36,79,43],[79,44,79,45],[88,15,88,22],[88,23,88,35],[88,36,88,43],[88,44,88,45],[84,2,84,22],[87,44,87,45],[88,2,88,14],[89,15,89,22],[112,2,112,14],[135,44,135,45],[132,2,132,14],[132,15,132,22],[132,23,132,35],[134,2,134,14],[134,15,134,22],[134,23,134,35],[134,36,134,43],[134,44,134,45],[135,2,135,14],[135,15,135,22],[135,23,135,35],[135,36,135,43],[122,2,122,14],[122,15,122,22],[122,23,122,35],[122,36,122,43],[122,44,122,45],[123,2,123,14],[123,15,123,22],[123,23,123,35],[123,36,123,43],[145,23,145,35],[145,36,145,43],[162,36,162,43],[153,2,153,14],[153,15,153,22],[153,23,153,35],[153,36,153,43],[154,2,154,14],[154,15,154,22],[154,23,154,35],[154,36,154,43],[155,2,155,14],[155,15,155,22],[155,23,155,35],[155,36,155,43],[146,2,146,14],[146,15,146,22],[146,23,146,35],[146,36,146,43],[185,44,185,45],[4,0,4,44],[173,44,173,45],[174,2,174,14],[174,15,174,22],[174,23,174,35],[174,36,174,43],[174,44,174,45],[183,2,183,22],[183,23,183,43],[184,2,184,14],[184,15,184,22],[184,23,184,35],[184,36,184,43],[184,44,184,45],[152,2,152,14],[152,15,152,22],[152,23,152,35],[152,36,152,43],[161,2,161,22],[161,23,161,43],[162,2,162,14],[162,15,162,22],[162,23,162,35]]}
["複数の試験場がある場合はこのファイルを試験場毎に作成してください。"]
["試験場名称",null,null,null,null,null,null,null,null,null,null,null,null,null,null,null,null,null,"試験場管理責任者名/所属",null,null,null,null,null,null,null,null,"E-mail",null,null,null,null,null,null,null,"電話番号",null,null,null,null,null,null,"事務局記入",null,null,null,null,"AV列は事務局向け備忘録です。（自由記述欄の行は使用避ける）"]
[{"$f":"IF(試験区分入力!A3=0,\"\",試験区分入力!A3)","v":""},null,null,null,null,null,null,null,null,null,null,null,null,null,null,null,null,null,"名前",null,{"$f":"IF(試験区分入力!U3=0,\"\",試験区分入力!U3)","v":""},null,null,null,null,null,null,{"$f":"IF(試験区分入力!AB3=0,\"\",試験区分入力!AB3)","v":""},null,null,null,null,null,null,null,{"$f":"IF(試験区分入力!AJ3=0,\"\",試験区分入力!AJ3)","v":""}]
[null,null,null,null,null,null,null,null,null,null,null,null,null,null,null,null,null,null,"所属",null,{"$f":"IF(試験区分入力!U4=0,\"\",試験区分入力!U4)","v":""}]
["↓認定更新時：試験規格を現状のままで継続する場合は「○」を、それ以外(拡大/縮小、版数Up/Down)は「●」を選択する (*1)。\n↓認定拡大時：拡大対象規格の記述のみでよい。試験区分が同じなら「○」を、追加時は「●」を選択。試験規格追加(版数UPを含む)は「●」を選択。\n↓サーベイランス：「〇」を記入。”版/発行年\"は現認定証の内容を転記する。”最新”列はサーベイランス申請時点を記入する。",null,null,null,null,null,null,null,null,null,null,null,null,null,null,null,null,null,null,null,null,null,null,null,null,null,null,null,null,null,null,null,null,null,null,null,null,null,null,null,null,null,null,null,null,null,null,null,null,null,null,null,"項番","階層","表示タイプ","チェック内容","枝番設定","試験規格コード","(新規格用)試験規格名称","(新規格用)試験規格名称英語","(新規格用)親試験規格名称","枝番内容","下位試験規格コード"]
[null,null,"14．試験規格－電磁両立性エミッション",null,null,null,null,null,null,null,null,null,null,null,null,null,null,null,null,null,null,null,null,null,null,null,null,null,null,null,null,null,null,null,null,null,null,null,null,null,null,null,null,null,"(*1) 記号「○」「●」の削除は、DEL、Backspaceで実施してください。",null,null,null,null,null,null,null,1,1,0,false,null,"規格_エミッション"]
[null,null,"試験規格を下記記述欄にご記入ください。",null,null,null,null,null,null,null,null,null,null,null,null,null,null,null,null,null,null,null,null,null,null,null,null,null,null,null,null,null,null,null,null,null,null,null,null,null,null,null,null,null,"(*2) 当該セルを右クリックして、適宜「行の高さを変更」して下さい。",null,null,null,null,null,null,null,14,2,1]
[null,null,"-----------------  認定証（和文）表記  ---------------",null,null,null,null,null,null,null,null,null,null,null,null,null,null,null,null,null,null,null,null,"-----------------  認定証（英文）表記  ---------------",null,null,null,null,null,null,null,null,null,null,null,null,null,null,null,null,null,null,null,null,null,null,null,null,null,null,null,null,14,2,2]
[null,null,"規格番号",null,null,null,null,null,null,null,null,null,null,null,null,"版/発行年",null,null,null,null,null,null,null,"規格番号",null,null,null,null,null,null,null,null,null,null,null,null,"版/発行年",null,null,null,null,null,null,null,"最新",null,null,null,null,null,null,null,14,2,1]
[null,null,null,null,null,null,null,null,null,null,null,null,null,null,null,null,null,null,null,null,null,null,null,null,null,null,null,null,null,null,null,null,null,null,null,null,null,null,null,null,null,null,null,null,null,null,null,null,null,null,null,null,14,2,2,{"$f":"IF(C10= \"\",FALSE,TRUE)","v":false},null,{"$f":"IF(C10= \"\",\"\",\"規格_エミッション_\" & C10)&IF(OR(C10= \"\", P10= \"\"), \"\", \"|\"&P10)","v":""},{"$f":"IF(C10= \"\",\"\",C10)","v":""},{"$f":"IF(C10= \"\",\"\",IF(X10= \"\",\"\",X10))","v":""},"規格_エミッション",null,"規格_イミュニティ"]
[null,null,null,null,null,null,null,null,null,null,null,null,null,null,null,null,null,null,null,null,null,null,null,null,null,null,null,null,null,null,null,null,null,null,null,null,null,null,null,null,null,null,null,null,null,null,null,null,null,null,null,null,14,2,2,{"$f":"IF(C11= \"\",FALSE,TRUE)","v":false},null,{"$f":"IF(C11= \"\",\"\",\"規格_エミッション_\" & C11)&IF(OR(C11= \"\", P11= \"\"), \"\", \"|\"&P11)","v":""},{"$f":"IF(C11= \"\",\"\",C11)","v":""},{"$f":"IF(C11= \"\",\"\",IF(X11= \"\",\"\",X11))","v":""},"規格_エミッション",null,"規格_イミュニティ"]
[null,null,null,null,null,null,null,null,null,null,null,null,null,null,null,null,null,null,null,null,null,null,null,null,null,null,null,null,null,null,null,null,null,null,null,null,null,null,null,null,null,null,null,null,null,null,null,null,null,null,null,null,14,2,2,{"$f":"IF(C12= \"\",FALSE,TRUE)","v":false},null,{"$f":"IF(C12= \"\",\"\",\"規格_エミッション_\" & C12)&IF(OR(C12= \"\", P12= \"\"), \"\", \"|\"&P12)","v":""},{"$f":"IF(C12= \"\",\"\",C12)","v":""},{"$f":"IF(C12= \"\",\"\",IF(X12= \"\",\"\",X12))","v":""},"規格_エミッション",null,"規格_イミュニティ"]
[null,null,null,null,null,null,null,null,null,null,null,null,null,null,null,null,null,null,null,null,null,null,null,null,null,null,null,null,null,null,null,null,null,null,null,null,null,null,null,null,null,null,null,null,null,null,null,null,null,null,null,null,14,2,2,{"$f":"IF(C13= \"\",FALSE,TRUE)","v":false},null,{"$f":"IF(C13= \"\",\"\",\"規格_エミッション_\" & C13)&IF(OR(C13= \"\", P13= \"\"), \"\", \"|\"&P13)","v":""},{"$f":"IF(C13= \"\",\"\",C13)","v":""},{"$f":"IF(C13= \"\",\"\",IF(X13= \"\",\"\",X13))","v":""},"規格_エミッション",null,"規格_イミュニティ"]
[null,null,null,null,null,null,null,null,null,null,null,null,null,null,null,null,null,null,null,null,null,null,null,null,null,null,null,null,null,null,null,null,null,null,null,null,null,null,null,null,null,null,null,null,null,null,null,null,null,null,null,null,14,2,2,{"$f":"IF(C14= \"\",FALSE,TRUE)","v":false},null,{"$f":"IF(C14= \"\",\"\",\"規格_エミッション_\" & C14)&IF(OR(C14= \"\", P14= \"\"), \"\", \"|\"&P14)","v":""},{"$f":"IF(C14= \"\",\"\",C14)","v":""},{"$f":"IF(C14= \"\",\"\",IF(X14= \"\",\"\",X14))","v":""},"規格_エミッション",null,"規格_イミュニティ"]
[null,null,"行追加",null,null,"<注>一旦追加した行は削除できません。",null,null,null,null,null,null,null,null,null,null,null,null,null,null,null,null,null,null,null,null,null,null,null,null,null,null,null,null,null,null,null,null,null,null,null,null,null,null,null,"（注：上記に記入した規格番号及び表記が認定証に記載されます。）",null,null,null,null,null,null,14,2,1]
[null,null,null,null,null,null,null,null,null,null,null,null,null,null,null,null,null,null,null,null,null,null,null,null,null,null,null,null,null,null,null,null,null,null,null,null,null,null,null,null,null,null,null,null,null,null,null,null,null,null,null,null,14,2,1]
[null,null,"15．試験規格－電磁両立性イミュニティ",null,null,null,null,null,null,null,null,null,null,null,null,null,null,null,null,null,null,null,null,null,null,null,null,null,null,null,null,null,null,null,null,null,null,null,null,null,null,null,null,null,null,null,null,null,null,null,null,null,15,1,0,null,null,"規格_イミュニティ"]
[null,null,"試験規格を下記記述欄にご記入ください。",null,null,null,null,null,null,null,null,null,null,null,null,null,null,null,null,null,null,null,null,null,null,null,null,null,null,null,null,null,null,null,null,null,null,null,null,null,null,null,null,null,null,null,null,null,null,null,null,null,24,2,1]
[null,null,"-----------------  認定証（和文）表記  ---------------",null,null,null,null,null,null,null,null,null,null,null,null,null,null,null,null,null,null,null,null,"-----------------  認定証（英文）表記  ---------------",null,null,null,null,null,null,null,null,null,null,null,null,null,null,null,null,null,null,null,null,null,null,null,null,null,null,null,null,24,2,2]
[null,null,"規格番号",null,null,null,null,null,null,null,null,null,null,null,null,"版/発行年",null,null,null,null,null,null,null,"規格番号",null,null,null,null,null,null,null,null,null,null,null,null,"版/発行年",null,null,null,null,null,null,null,"最新",null,null,null,null,null,null,null,24,2,1]
[null,null,null,null,null,null,null,null,null,null,null,null,null,null,null,null,null,null,null,null,null,null,null,null,null,null,null,null,null,null,null,null,null,null,null,null,null,null,null,null,null,null,null,null,null,null,null,null,null,null,null,null,24,2,2,{"$f":"IF(C21= \"\",FALSE,TRUE)","v":false},null,{"$f":"IF(C21= \"\",\"\",\"規格_イミュニティ_\" & C21)&IF(OR(C21= \"\", P21= \"\"), \"\", \"|\"&P21)","v":""},{"$f":"IF(C21= \"\",\"\",C21)","v":""},{"$f":"IF(C21= \"\",\"\",IF(X21= \"\",\"\",X21))","v":""},"規格_イミュニティ",null,"規格_電源高調波"]
[null,null,null,null,null,null,null,null,null,null,null,null,null,null,null,null,null,null,null,null,null,null,null,null,null,null,null,null,null,null,null,null,null,null,null,null,null,null,null,null,null,null,null,null,null,null,null,null,null,null,null,null,24,2,2,{"$f":"IF(C22= \"\",FALSE,TRUE)","v":false},null,{"$f":"IF(C22= \"\",\"\",\"規格_イミュニティ_\" & C22)&IF(OR(C22= \"\", P22= \"\"), \"\", \"|\"&P22)","v":""},{"$f":"IF(C22= \"\",\"\",C22)","v":""},{"$f":"IF(C22= \"\",\"\",IF(X22= \"\",\"\",X22))","v":""},"規格_イミュニティ",null,"規格_電源高調波"]
[null,null,null,null,null,null,null,null,null,null,null,null,null,null,null,null,null,null,null,null,null,null,null,null,null,null,null,null,null,null,null,null,null,null,null,null,null,null,null,null,null,null,null,null,null,null,null,null,null,null,null,null,24,2,2,{"$f":"IF(C23= \"\",FALSE,TRUE)","v":false},null,{"$f":"IF(C23= \"\",\"\",\"規格_イミュニティ_\" & C23)&IF(OR(C23= \"\", P23= \"\"), \"\", \"|\"&P23)","v":""},{"$f":"IF(C23= \"\",\"\",C23)","v":""},{"$f":"IF(C23= \"\",\"\",IF(X23= \"\",\"\",X23))","v":""},"規格_イミュニティ",null,"規格_電源高調波"]
[null,null,null,null,null,null,null,null,null,null,null,null,null,null,null,null,null,null,null,null,null,null,null,null,null,null,null,null,null,null,null,null,null,null,null,null,null,null,null,null,null,null,null,null,null,null,null,null,null,null,null,null,24,2,2,{"$f":"IF(C24= \"\",FALSE,TRUE)","v":false},null,{"$f":"IF(C24= \"\",\"\",\"規格_イミュニティ_\" & C24)&IF(OR(C24= \"\", P24= \"\"), \"\", \"|\"&P24)","v":""},{"$f":"IF(C24= \"\",\"\",C24)","v":""},{"$f":"IF(C24= \"\",\"\",IF(X24= \"\",\"\",X24))","v":""},"規格_イミュニティ",null,"規格_電源高調波"]
[null,null,null,null,null,null,null,null,null,null,null,null,null,null,null,null,null,null,null,null,null,null,null,null,null,null,null,null,null,null,null,null,null,null,null,null,null,null,null,null,null,null,null,null,null,null,null,null,null,null,null,null,24,2,2,{"$f":"IF(C25= \"\",FALSE,TRUE)","v":false},null,{"$f":"IF(C25= \"\",\"\",\"規格_イミュニティ_\" & C25)&IF(OR(C25= \"\", P25= \"\"), \"\", \"|\"&P25)","v":""},{"$f":"IF(C25= \"\",\"\",C25)","v":""},{"$f":"IF(C25= \"\",\"\",IF(X25= \"\",\"\",X25))","v":""},"規格_イミュニティ",null,"規格_電源高調波"]
[null,null,"行追加",null,null,"<注>一旦追加した行は削除できません。",null,null,null,null,null,null,null,null,null,null,null,null,null,null,null,null,null,null,null,null,null,null,null,null,null,null,null,null,null,null,null,null,null,null,null,null,null,null,null,"（注：上記に記入した規格番号及び表記が認定証に記載されます。）",null,null,null,null,null,null,24,2,1]
[null,null,null,null,null,null,null,null,null,null,null,null,null,null,null,null,null,null,null,null,null,null,null,null,null,null,null,null,null,null,null,null,null,null,null,null,null,null,null,null,null,null,null,null,null,null,null,null,null,null,null,null,24,2,1]
[null,null,"16．試験規格－電源高調波",null,null,null,null,null,null,null,null,null,null,null,null,null,null,null,null,null,null,null,null,null,null,null,null,null,null,null,null,null,null,null,null,null,null,null,null,null,null,null,null,null,null,null,null,null,null,null,null,null,25,1,0,null,null,"規格_電源高調波"]
[null,null,"試験規格を下記記述欄にご記入ください。",null,null,null,null,null,null,null,null,null,null,null,null,null,null,null,null,null,null,null,null,null,null,null,null,null,null,null,null,null,null,null,null,null,null,null,null,null,null,null,null,null,null,null,null,null,null,null,null,null,30,2,1]
[null,null,"-----------------  認定証（和文）表記  ---------------",null,null,null,null,null,null,null,null,null,null,null,null,null,null,null,null,null,null,null,null,"-----------------  認定証（英文）表記  ---------------",null,null,null,null,null,null,null,null,null,null,null,null,null,null,null,null,null,null,null,null,null,null,null,null,null,null,null,null,30,2,2]
[null,null,"規格番号",null,null,null,null,null,null,null,null,null,null,null,null,"版/発行年",null,null,null,null,null,null,null,"規格番号",null,null,null,null,null,null,null,null,null,null,null,null,"版/発行年",null,null,null,null,null,null,null,"最新",null,null,null,null,null,null,null,30,2,1]
[null,null,null,null,null,null,null,null,null,null,null,null,null,null,null,null,null,null,null,null,null,null,null,null,null,null,null,null,null,null,null,null,null,null,null,null,null,null,null,null,null,null,null,null,null,null,null,null,null,null,null,null,30,2,2,{"$f":"IF(C32= \"\",FALSE,TRUE)","v":false},null,{"$f":"IF(C32= \"\",\"\",\"規格_電源高調波_\" & C32)&IF(OR(C32= \"\", P32= \"\"), \"\", \"|\"&P32)","v":""},{"$f":"IF(C32= \"\",\"\",C32)","v":""},{"$f":"IF(C32= \"\",\"\",IF(X32= \"\",\"\",X32))","v":""},"規格_電源高調波",null,"規格_自動車車載機器"]
[null,null,null,null,null,null,null,null,null,null,null,null,null,null,null,null,null,null,null,null,null,null,null,null,null,null,null,null,null,null,null,null,null,null,null,null,null,null,null,null,null,null,null,null,null,null,null,null,null,null,null,null,30,2,2,{"$f":"IF(C33= \"\",FALSE,TRUE)","v":false},null,{"$f":"IF(C33= \"\",\"\",\"規格_電源高調波_\" & C33)&IF(OR(C33= \"\", P33= \"\"), \"\", \"|\"&P33)","v":""},{"$f":"IF(C33= \"\",\"\",C33)","v":""},{"$f":"IF(C33= \"\",\"\",IF(X33= \"\",\"\",X33))","v":""},"規格_電源高調波",null,"規格_自動車車載機器"]
[null,null,null,null,null,null,null,null,null,null,null,null,null,null,null,null,null,null,null,null,null,null,null,null,null,null,null,null,null,null,null,null,null,null,null,null,null,null,null,null,null,null,null,null,null,null,null,null,null,null,null,null,30,2,2,{"$f":"IF(C34= \"\",FALSE,TRUE)","v":false},null,{"$f":"IF(C34= \"\",\"\",\"規格_電源高調波_\" & C34)&IF(OR(C34= \"\", P34= \"\"), \"\", \"|\"&P34)","v":""},{"$f":"IF(C34= \"\",\"\",C34)","v":""},{"$f":"IF(C34= \"\",\"\",IF(X34= \"\",\"\",X34))","v":""},"規格_電源高調波",null,"規格_自動車車載機器"]
[null,null,null,null,null,null,null,null,null,null,null,null,null,null,null,null,null,null,null,null,null,null,null,null,null,null,null,null,null,null,null,null,null,null,null,null,null,null,null,null,null,null,null,null,null,null,null,null,null,null,null,null,30,2,2,{"$f":"IF(C35= \"\",FALSE,TRUE)","v":false},null,{"$f":"IF(C35= \"\",\"\",\"規格_電源高調波_\" & C35)&IF(OR(C35= \"\", P35= \"\"), \"\", \"|\"&P35)","v":""},{"$f":"IF(C35= \"\",\"\",C35)","v":""},{"$f":"IF(C35= \"\",\"\",IF(X35= \"\",\"\",X35))","v":""},"規格_電源高調波",null,"規格_自動車車載機器"]
[null,null,null,null,null,null,null,null,null,null,null,null,null,null,null,null,null,null,null,null,null,null,null,null,null,null,null,null,null,null,null,null,null,null,null,null,null,null,null,null,null,null,null,null,null,null,null,null,null,null,null,null,30,2,2,{"$f":"IF(C36= \"\",FALSE,TRUE)","v":false},null,{"$f":"IF(C36= \"\",\"\",\"規格_電源高調波_\" & C36)&IF(OR(C36= \"\", P36= \"\"), \"\", \"|\"&P36)","v":""},{"$f":"IF(C36= \"\",\"\",C36)","v":""},{"$f":"IF(C36= \"\",\"\",IF(X36= \"\",\"\",X36))","v":""},"規格_電源高調波",null,"規格_自動車車載機器"]
[null,null,"行追加",null,null,"<注>一旦追加した行は削除できません。",null,null,null,null,null,null,null,null,null,null,null,null,null,null,null,null,null,null,null,null,null,null,null,null,null,null,null,null,null,null,null,null,null,null,null,null,null,null,null,"（注：上記に記入した規格番号及び表記が認定証に記載されます。）",null,null,null,null,null,null,30,2,1]
[null,null,null,null,null,null,null,null,null,null,null,null,null,null,null,null,null,null,null,null,null,null,null,null,null,null,null,null,null,null,null,null,null,null,null,null,null,null,null,null,null,null,null,null,null,null,null,null,null,null,null,null,30,2,1]
[null,null,"17．試験規格－自動車・車載機器",null,null,null,null,null,null,null,null,null,null,null,null,null,null,null,null,null,null,null,null,null,null,null,null,null,null,null,null,null,null,null,null,null,null,null,null,null,null,null,null,null,null,null,null,null,null,null,null,null,31,1,0,null,null,"規格_自動車車載機器"]
[null,null,"試験規格を下記記述欄にご記入ください。",null,null,null,null,null,null,null,null,null,null,null,null,null,null,null,null,null,null,null,null,null,null,null,null,null,null,null,null,null,null,null,null,null,null,null,null,null,null,null,null,null,null,null,null,null,null,null,null,null,35,2,1]
[null,null,"-----------------  認定証（和文）表記  ---------------",null,null,null,null,null,null,null,null,null,null,null,null,null,null,null,null,null,null,null,null,"-----------------  認定証（英文）表記  ---------------",null,null,null,null,null,null,null,null,null,null,null,null,null,null,null,null,null,null,null,null,null,null,null,null,null,null,null,null,35,2,2]
[null,null,"規格番号",null,null,null,null,null,null,null,null,null,null,null,null,"版/発行年",null,null,null,null,null,null,null,"規格番号",null,null,null,null,null,null,null,null,null,null,null,null,"版/発行年",null,null,null,null,null,null,null,"最新",null,null,null,null,null,null,null,35,2,1]
[null,null,null,null,null,null,null,null,null,null,null,null,null,null,null,null,null,null,null,null,null,null,null,null,null,null,null,null,null,null,null,null,null,null,null,null,null,null,null,null,null,null,null,null,null,null,null,null,null,null,null,null,35,2,2,{"$f":"IF(C43= \"\",FALSE,TRUE)","v":false},null,{"$f":"IF(C43= \"\",\"\",\"規格_自動車車載機器_\" & C43)&IF(OR(C43= \"\", P43= \"\"), \"\", \"|\"&P43)","v":""},{"$f":"IF(C43= \"\",\"\",C43)","v":""},{"$f":"IF(C43= \"\",\"\",IF(X43= \"\",\"\",X43))","v":""},"規格_自動車車載機器",null,"規格_空気伝搬騒音"]
[null,null,null,null,null,null,null,null,null,null,null,null,null,null,null,null,null,null,null,null,null,null,null,null,null,null,null,null,null,null,null,null,null,null,null,null,null,null,null,null,null,null,null,null,null,null,null,null,null,null,null,null,35,2,2,{"$f":"IF(C44= \"\",FALSE,TRUE)","v":false},null,{"$f":"IF(C44= \"\",\"\",\"規格_自動車車載機器_\" & C44)&IF(OR(C44= \"\", P44= \"\"), \"\", \"|\"&P44)","v":""},{"$f":"IF(C44= \"\",\"\",C44)","v":""},{"$f":"IF(C44= \"\",\"\",IF(X44= \"\",\"\",X44))","v":""},"規格_自動車車載機器",null,"規格_空気伝搬騒音"]
[null,null,null,null,null,null,null,null,null,null,null,null,null,null,null,null,null,null,null,null,null,null,null,null,null,null,null,null,null,null,null,null,null,null,null,null,null,null,null,null,null,null,null,null,null,null,null,null,null,null,null,null,35,2,2,{"$f":"IF(C45= \"\",FALSE,TRUE)","v":false},null,{"$f":"IF(C45= \"\",\"\",\"規格_自動車車載機器_\" & C45)&IF(OR(C45= \"\", P45= \"\"), \"\", \"|\"&P45)","v":""},{"$f":"IF(C45= \"\",\"\",C45)","v":""},{"$f":"IF(C45= \"\",\"\",IF(X45= \"\",\"\",X45))","v":""},"規格_自動車車載機器",null,"規格_空気伝搬騒音"]
[null,null,null,null,null,null,null,null,null,null,null,null,null,null,null,null,null,null,null,null,null,null,null,null,null,null,null,null,null,null,null,null,null,null,null,null,null,null,null,null,null,null,null,null,null,null,null,null,null,null,null,null,35,2,2,{"$f":"IF(C46= \"\",FALSE,TRUE)","v":false},null,{"$f":"IF(C46= \"\",\"\",\"規格_自動車車載機器_\" & C46)&IF(OR(C46= \"\", P46= \"\"), \"\", \"|\"&P46)","v":""},{"$f":"IF(C46= \"\",\"\",C46)","v":""},{"$f":"IF(C46= \"\",\"\",IF(X46= \"\",\"\",X46))","v":""},"規格_自動車車載機器",null,"規格_空気伝搬騒音"]
[null,null,null,null,null,null,null,null,null,null,null,null,null,null,null,null,null,null,null,null,null,null,null,null,null,null,null,null,null,null,null,null,null,null,null,null,null,null,null,null,null,null,null,null,null,null,null,null,null,null,null,null,35,2,2,{"$f":"IF(C47= \"\",FALSE,TRUE)","v":false},null,{"$f":"IF(C47= \"\",\"\",\"規格_自動車車載機器_\" & C47)&IF(OR(C47= \"\", P47= \"\"), \"\", \"|\"&P47)","v":""},{"$f":"IF(C47= \"\",\"\",C47)","v":""},{"$f":"IF(C47= \"\",\"\",IF(X47= \"\",\"\",X47))","v":""},"規格_自動車車載機器",null,"規格_空気伝搬騒音"]
[null,null,"行追加",null,null,"<注>一旦追加した行は削除できません。",null,null,null,null,null,null,null,null,null,null,null,null,null,null,null,null,null,null,null,null,null,null,null,null,null,null,null,null,null,null,null,null,null,null,null,null,null,null,null,"（注：上記に記入した規格番号及び表記が認定証に記載されます。）",null,null,null,null,null,null,35,2,1]
[null,null,null,null,null,null,null,null,null,null,null,null,null,null,null,null,null,null,null,null,null,null,null,null,null,null,null,null,null,null,null,null,null,null,null,null,null,null,null,null,null,null,null,null,null,null,null,null,null,null,null,null,35,2,1]
[null,null,"18．試験規格－音響",null,null,null,null,null,null,null,null,null,null,null,null,null,null,null,null,null,null,null,null,null,null,null,null,null,null,null,null,null,null,null,null,null,null,null,null,null,null,null,null,null,null,null,null,null,null,null,null,null,36,1,0,null,null,"規格_空気伝搬騒音"]
[null,null,"試験規格を下記記述欄にご記入ください。",null,null,null,null,null,null,null,null,null,null,null,null,null,null,null,null,null,null,null,null,null,null,null,null,null,null,null,null,null,null,null,null,null,null,null,null,null,null,null,null,null,null,null,null,null,null,null,null,null,41,2,1]
[null,null,"-----------------  認定証（和文）表記  ---------------",null,null,null,null,null,null,null,null,null,null,null,null,null,null,null,null,null,null,null,null,"-----------------  認定証（英文）表記  ---------------",null,null,null,null,null,null,null,null,null,null,null,null,null,null,null,null,null,null,null,null,null,null,null,null,null,null,null,null,41,2,2]
[null,null,"規格番号",null,null,null,null,null,null,null,null,null,null,null,null,"版/発行年",null,null,null,null,null,null,null,"規格番号",null,null,null,null,null,null,null,null,null,null,null,null,"版/発行年",null,null,null,null,null,null,null,"最新",null,null,null,null,null,null,null,41,2,1]
[null,null,null,null,null,null,null,null,null,null,null,null,null,null,null,null,null,null,null,null,null,null,null,null,null,null,null,null,null,null,null,null,null,null,null,null,null,null,null,null,null,null,null,null,null,null,null,null,null,null,null,null,41,2,2,{"$f":"IF(C54= \"\",FALSE,TRUE)","v":false},null,{"$f":"IF(C54= \"\",\"\",\"規格_空気伝搬騒音_\" & C54)&IF(OR(C54= \"\", P54= \"\"), \"\", \"|\"&P54)","v":""},{"$f":"IF(C54= \"\",\"\",C54)","v":""},{"$f":"IF(C54= \"\",\"\",IF(X54= \"\",\"\",X54))","v":""},"規格_空気伝搬騒音",null,"規格_通信機器性能"]
[null,null,null,null,null,null,null,null,null,null,null,null,null,null,null,null,null,null,null,null,null,null,null,null,null,null,null,null,null,null,null,null,null,null,null,null,null,null,null,null,null,null,null,null,null,null,null,null,null,null,null,null,41,2,2,{"$f":"IF(C55= \"\",FALSE,TRUE)","v":false},null,{"$f":"IF(C55= \"\",\"\",\"規格_空気伝搬騒音_\" & C55)&IF(OR(C55= \"\", P55= \"\"), \"\", \"|\"&P55)","v":""},{"$f":"IF(C55= \"\",\"\",C55)","v":""},{"$f":"IF(C55= \"\",\"\",IF(X55= \"\",\"\",X55))","v":""},"規格_空気伝搬騒音",null,"規格_通信機器性能"]
[null,null,null,null,null,null,null,null,null,null,null,null,null,null,null,null,null,null,null,null,null,null,null,null,null,null,null,null,null,null,null,null,null,null,null,null,null,null,null,null,null,null,null,null,null,null,null,null,null,null,null,null,41,2,2,{"$f":"IF(C56= \"\",FALSE,TRUE)","v":false},null,{"$f":"IF(C56= \"\",\"\",\"規格_空気伝搬騒音_\" & C56)&IF(OR(C56= \"\", P56= \"\"), \"\", \"|\"&P56)","v":""},{"$f":"IF(C56= \"\",\"\",C56)","v":""},{"$f":"IF(C56= \"\",\"\",IF(X56= \"\",\"\",X56))","v":""},"規格_空気伝搬騒音",null,"規格_通信機器性能"]
[null,null,null,null,null,null,null,null,null,null,null,null,null,null,null,null,null,null,null,null,null,null,null,null,null,null,null,null,null,null,null,null,null,null,null,null,null,null,null,null,null,null,null,null,null,null,null,null,null,null,null,null,41,2,2,{"$f":"IF(C57= \"\",FALSE,TRUE)","v":false},null,{"$f":"IF(C57= \"\",\"\",\"規格_空気伝搬騒音_\" & C57)&IF(OR(C57= \"\", P57= \"\"), \"\", \"|\"&P57)","v":""},{"$f":"IF(C57= \"\",\"\",C57)","v":""},{"$f":"IF(C57= \"\",\"\",IF(X57= \"\",\"\",X57))","v":""},"規格_空気伝搬騒音",null,"規格_通信機器性能"]
[null,null,null,null,null,null,null,null,null,null,null,null,null,null,null,null,null,null,null,null,null,null,null,null,null,null,null,null,null,null,null,null,null,null,null,null,null,null,null,null,null,null,null,null,null,null,null,null,null,null,null,null,41,2,2,{"$f":"IF(C58= \"\",FALSE,TRUE)","v":false},null,{"$f":"IF(C58= \"\",\"\",\"規格_空気伝搬騒音_\" & C58)&IF(OR(C58= \"\", P58= \"\"), \"\", \"|\"&P58)","v":""},{"$f":"IF(C58= \"\",\"\",C58)","v":""},{"$f":"IF(C58= \"\",\"\",IF(X58= \"\",\"\",X58))","v":""},"規格_空気伝搬騒音",null,"規格_通信機器性能"]
[null,null,"行追加",null,null,"<注>一旦追加した行は削除できません。",null,null,null,null,null,null,null,null,null,null,null,null,null,null,null,null,null,null,null,null,null,null,null,null,null,null,null,null,null,null,null,null,null,null,null,null,null,null,null,"（注：上記に記入した規格番号及び表記が認定証に記載されます。）",null,null,null,null,null,null,41,2,1]
[null,null,null,null,null,null,null,null,null,null,null,null,null,null,null,null,null,null,null,null,null,null,null,null,null,null,null,null,null,null,null,null,null,null,null,null,null,null,null,null,null,null,null,null,null,null,null,null,null,null,null,null,41,2,1]
[null,null,"19．試験規格－通信機器性能 １",null,null,null,null,null,null,null,null,null,null,null,null,null,null,null,null,null,null,null,null,null,null,null,null,null,null,null,null,null,null,null,null,null,null,null,null,null,null,null,null,null,null,null,"（※無線通信）",null,null,null,null,null,42,1,0,null,null,"規格_通信機器性能"]
[null,null,"試験規格を下記記述欄にご記入ください。",null,null,null,null,null,null,null,null,null,null,null,null,null,null,null,null,null,null,null,null,null,null,null,null,null,null,null,null,null,null,null,null,null,null,null,null,null,null,null,null,null,null,null,null,null,null,null,null,null,51,2,1]
[null,null,"-----------------  認定証（和文）表記  ---------------",null,null,null,null,null,null,null,null,null,null,null,null,null,null,null,null,null,null,null,null,"-----------------  認定証（英文）表記  ---------------",null,null,null,null,null,null,null,null,null,null,null,null,null,null,null,null,null,null,null,null,null,null,null,null,null,null,null,null,51,2,2]
[null,null,"規格番号",null,null,null,null,null,null,null,null,null,null,null,null,"版/発行年",null,null,null,null,null,null,null,"規格番号",null,null,null,null,null,null,null,null,null,null,null,null,"版/発行年",null,null,null,null,null,null,null,"最新",null,null,null,null,null,null,null,51,2,1]
[null,null,null,null,null,null,null,null,null,null,null,null,null,null,null,null,null,null,null,null,null,null,null,null,null,null,null,null,null,null,null,null,null,null,null,null,null,null,null,null,null,null,null,null,null,null,null,null,null,null,null,null,51,2,2,{"$f":"IF(C65= \"\",FALSE,TRUE)","v":false},null,{"$f":"IF(C65= \"\",\"\",\"規格_通信機器性能_\" & C65)&IF(OR(C65= \"\", P65= \"\"), \"\", \"|\"&P65)","v":""},{"$f":"IF(C65= \"\",\"\",C65)","v":""},{"$f":"IF(C65= \"\",\"\",IF(X65= \"\",\"\",X65))","v":""},"規格_通信機器性能",null,"規格_通信機器性能2"]
[null,null,null,null,null,null,null,null,null,null,null,null,null,null,null,null,null,null,null,null,null,null,null,null,null,null,null,null,null,null,null,null,null,null,null,null,null,null,null,null,null,null,null,null,null,null,null,null,null,null,null,null,51,2,2,{"$f":"IF(C66= \"\",FALSE,TRUE)","v":false},null,{"$f":"IF(C66= \"\",\"\",\"規格_通信機器性能_\" & C66)&IF(OR(C66= \"\", P66= \"\"), \"\", \"|\"&P66)","v":""},{"$f":"IF(C66= \"\",\"\",C66)","v":""},{"$f":"IF(C66= \"\",\"\",IF(X66= \"\",\"\",X66))","v":""},"規格_通信機器性能",null,"規格_通信機器性能2"]
[null,null,null,null,null,null,null,null,null,null,null,null,null,null,null,null,null,null,null,null,null,null,null,null,null,null,null,null,null,null,null,null,null,null,null,null,null,null,null,null,null,null,null,null,null,null,null,null,null,null,null,null,51,2,2,{"$f":"IF(C67= \"\",FALSE,TRUE)","v":false},null,{"$f":"IF(C67= \"\",\"\",\"規格_通信機器性能_\" & C67)&IF(OR(C67= \"\", P67= \"\"), \"\", \"|\"&P67)","v":""},{"$f":"IF(C67= \"\",\"\",C67)","v":""},{"$f":"IF(C67= \"\",\"\",IF(X67= \"\",\"\",X67))","v":""},"規格_通信機器性能",null,"規格_通信機器性能2"]
[null,null,null,null,null,null,null,null,null,null,null,null,null,null,null,null,null,null,null,null,null,null,null,null,null,null,null,null,null,null,null,null,null,null,null,null,null,null,null,null,null,null,null,null,null,null,null,null,null,null,null,null,51,2,2,{"$f":"IF(C68= \"\",FALSE,TRUE)","v":false},null,{"$f":"IF(C68= \"\",\"\",\"規格_通信機器性能_\" & C68)&IF(OR(C68= \"\", P68= \"\"), \"\", \"|\"&P68)","v":""},{"$f":"IF(C68= \"\",\"\",C68)","v":""},{"$f":"IF(C68= \"\",\"\",IF(X68= \"\",\"\",X68))","v":""},"規格_通信機器性能",null,"規格_通信機器性能2"]
[null,null,null,null,null,null,null,null,null,null,null,null,null,null,null,null,null,null,null,null,null,null,null,null,null,null,null,null,null,null,null,null,null,null,null,null,null,null,null,null,null,null,null,null,null,null,null,null,null,null,null,null,51,2,2,{"$f":"IF(C69= \"\",FALSE,TRUE)","v":false},null,{"$f":"IF(C69= \"\",\"\",\"規格_通信機器性能_\" & C69)&IF(OR(C69= \"\", P69= \"\"), \"\", \"|\"&P69)","v":""},{"$f":"IF(C69= \"\",\"\",C69)","v":""},{"$f":"IF(C69= \"\",\"\",IF(X69= \"\",\"\",X69))","v":""},"規格_通信機器性能",null,"規格_通信機器性能2"]
[null,null,"行追加",null,null,"<注>一旦追加した行は削除できません。",null,null,null,null,null,null,null,null,null,null,null,null,null,null,null,null,null,null,null,null,null,null,null,null,null,null,null,null,null,null,null,null,null,null,null,null,null,null,null,"（注：上記に記入した規格番号及び表記が認定証に記載されます。）",null,null,null,null,null,null,51,2,1]
[null,null,null,null,null,null,null,null,null,null,null,null,null,null,null,null,null,null,null,null,null,null,null,null,null,null,null,null,null,null,null,null,null,null,null,null,null,null,null,null,null,null,null,null,null,null,null,null,null,null,null,null,51,2,1]
[null,null,"20．試験規格－通信機器性能 ２",null,null,null,null,null,null,null,null,null,null,null,null,null,null,null,null,null,null,null,null,null,null,null,null,null,null,null,null,null,null,null,null,null,null,null,null,null,null,null,null,null,null,null,"（※SAR、人体に対する電磁界暴露）",null,null,null,null,null,52,1,0,null,null,"規格_通信機器性能2"]
[null,null,"試験規格を下記記述欄にご記入ください。",null,null,null,null,null,null,null,null,null,null,null,null,null,null,null,null,null,null,null,null,null,null,null,null,null,null,null,null,null,null,null,null,null,null,null,null,null,null,null,null,null,null,null,null,null,null,null,null,null,58,2,1]
[null,null,"-----------------  認定証（和文）表記  ---------------",null,null,null,null,null,null,null,null,null,null,null,null,null,null,null,null,null,null,null,null,"-----------------  認定証（英文）表記  ---------------",null,null,null,null,null,null,null,null,null,null,null,null,null,null,null,null,null,null,null,null,null,null,null,null,null,null,null,null,58,2,2]
[null,null,"規格番号",null,null,null,null,null,null,null,null,null,null,null,null,"版/発行年",null,null,null,null,null,null,null,"規格番号",null,null,null,null,null,null,null,null,null,null,null,null,"版/発行年",null,null,null,null,null,null,null,"最新",null,null,null,null,null,null,null,58,2,1]
[null,null,null,null,null,null,null,null,null,null,null,null,null,null,null,null,null,null,null,null,null,null,null,null,null,null,null,null,null,null,null,null,null,null,null,null,null,null,null,null,null,null,null,null,null,null,null,null,null,null,null,null,58,2,2,{"$f":"IF(C76= \"\",FALSE,TRUE)","v":false},null,{"$f":"IF(C76= \"\",\"\",\"規格_通信機器性能2_\" & C76)&IF(OR(C76= \"\", P76= \"\"), \"\", \"|\"&P76)","v":""},{"$f":"IF(C76= \"\",\"\",C76)","v":""},{"$f":"IF(C76= \"\",\"\",IF(X76= \"\",\"\",X76))","v":""},"規格_通信機器性能2",null,"規格_通信機器性能3"]
[null,null,null,null,null,null,null,null,null,null,null,null,null,null,null,null,null,null,null,null,null,null,null,null,null,null,null,null,null,null,null,null,null,null,null,null,null,null,null,null,null,null,null,null,null,null,null,null,null,null,null,null,58,2,2,{"$f":"IF(C77= \"\",FALSE,TRUE)","v":false},null,{"$f":"IF(C77= \"\",\"\",\"規格_通信機器性能2_\" & C77)&IF(OR(C77= \"\", P77= \"\"), \"\", \"|\"&P77)","v":""},{"$f":"IF(C77= \"\",\"\",C77)","v":""},{"$f":"IF(C77= \"\",\"\",IF(X77= \"\",\"\",X77))","v":""},"規格_通信機器性能2",null,"規格_通信機器性能3"]
[null,null,null,null,null,null,null,null,null,null,null,null,null,null,null,null,null,null,null,null,null,null,null,null,null,null,null,null,null,null,null,null,null,null,null,null,null,null,null,null,null,null,null,null,null,null,null,null,null,null,null,null,58,2,2,{"$f":"IF(C78= \"\",FALSE,TRUE)","v":false},null,{"$f":"IF(C78= \"\",\"\",\"規格_通信機器性能2_\" & C78)&IF(OR(C78= \"\", P78= \"\"), \"\", \"|\"&P78)","v":""},{"$f":"IF(C78= \"\",\"\",C78)","v":""},{"$f":"IF(C78= \"\",\"\",IF(X78= \"\",\"\",X78))","v":""},"規格_通信機器性能2",null,"規格_通信機器性能3"]
[null,null,null,null,null,null,null,null,null,null,null,null,null,null,null,null,null,null,null,null,null,null,null,null,null,null,null,null,null,null,null,null,null,null,null,null,null,null,null,null,null,null,null,null,null,null,null,null,null,null,null,null,58,2,2,{"$f":"IF(C79= \"\",FALSE,TRUE)","v":false},null,{"$f":"IF(C79= \"\",\"\",\"規格_通信機器性能2_\" & C79)&IF(OR(C79= \"\", P79= \"\"), \"\", \"|\"&P79)","v":""},{"$f":"IF(C79= \"\",\"\",C79)","v":""},{"$f":"IF(C79= \"\",\"\",IF(X79= \"\",\"\",X79))","v":""},"規格_通信機器性能2",null,"規格_通信機器性能3"]
[null,null,null,null,null,null,null,null,null,null,null,null,null,null,null,null,null,null,null,null,null,null,null,null,null,null,null,null,null,null,null,null,null,null,null,null,null,null,null,null,null,null,null,null,null,null,null,null,null,null,null,null,58,2,2,{"$f":"IF(C80= \"\",FALSE,TRUE)","v":false},null,{"$f":"IF(C80= \"\",\"\",\"規格_通信機器性能2_\" & C80)&IF(OR(C80= \"\", P80= \"\"), \"\", \"|\"&P80)","v":""},{"$f":"IF(C80= \"\",\"\",C80)","v":""},{"$f":"IF(C80= \"\",\"\",IF(X80= \"\",\"\",X80))","v":""},"規格_通信機器性能2",null,"規格_通信機器性能3"]
[null,null,"行追加",null,null,"<注>一旦追加した行は削除できません。",null,null,null,null,null,null,null,null,null,null,null,null,null,null,null,null,null,null,null,null,null,null,null,null,null,null,null,null,null,null,null,null,null,null,null,null,null,null,null,"（注：上記に記入した規格番号及び表記が認定証に記載されます。）",null,null,null,null,null,null,58,2,1]
[null,null,null,null,null,null,null,null,null,null,null,null,null,null,null,null,null,null,null,null,null,null,null,null,null,null,null,null,null,null,null,null,null,null,null,null,null,null,null,null,null,null,null,null,null,null,null,null,null,null,null,null,58,2,1]
[null,null,"21．試験規格－通信機器性能 ３",null,null,null,null,null,null,null,null,null,null,null,null,null,null,null,null,null,null,null,null,null,null,null,null,null,null,null,null,null,null,null,null,null,null,null,null,null,null,null,null,null,null,null,"（※有線通信端末）",null,null,null,null,null,59,1,0,null,null,"規格_通信機器性能3"]
[null,null,"試験規格を下記記述欄にご記入ください。",null,null,null,null,null,null,null,null,null,null,null,null,null,null,null,null,null,null,null,null,null,null,null,null,null,null,null,null,null,null,null,null,null,null,null,null,null,null,null,null,null,null,null,null,null,null,null,null,null,61,2,1]
[null,null,"-----------------  認定証（和文）表記  ---------------",null,null,null,null,null,null,null,null,null,null,null,null,null,null,null,null,null,null,null,null,"-----------------  認定証（英文）表記  ---------------",null,null,null,null,null,null,null,null,null,null,null,null,null,null,null,null,null,null,null,null,null,null,null,null,null,null,null,null,61,2,2]
[null,null,"規格番号",null,null,null,null,null,null,null,null,null,null,null,null,"版/発行年",null,null,null,null,null,null,null,"規格番号",null,null,null,null,null,null,null,null,null,null,null,null,"版/発行年",null,null,null,null,null,null,null,"最新",null,null,null,null,null,null,null,61,2,1]
[null,null,null,null,null,null,null,null,null,null,null,null,null,null,null,null,null,null,null,null,null,null,null,null,null,null,null,null,null,null,null,null,null,null,null,null,null,null,null,null,null,null,null,null,null,null,null,null,null,null,null,null,61,2,2,{"$f":"IF(C87= \"\",FALSE,TRUE)","v":false},null,{"$f":"IF(C87= \"\",\"\",\"規格_通信機器性能3_\" & C87)&IF(OR(C87= \"\", P87= \"\"), \"\", \"|\"&P87)","v":""},{"$f":"IF(C87= \"\",\"\",C87)","v":""},{"$f":"IF(C87= \"\",\"\",IF(X87= \"\",\"\",X87))","v":""},"規格_通信機器性能3",null,"規格_製品安全試験"]
[null,null,null,null,null,null,null,null,null,null,null,null,null,null,null,null,null,null,null,null,null,null,null,null,null,null,null,null,null,null,null,null,null,null,null,null,null,null,null,null,null,null,null,null,null,null,null,null,null,null,null,null,61,2,2,{"$f":"IF(C88= \"\",FALSE,TRUE)","v":false},null,{"$f":"IF(C88= \"\",\"\",\"規格_通信機器性能3_\" & C88)&IF(OR(C88= \"\", P88= \"\"), \"\", \"|\"&P88)","v":""},{"$f":"IF(C88= \"\",\"\",C88)","v":""},{"$f":"IF(C88= \"\",\"\",IF(X88= \"\",\"\",X88))","v":""},"規格_通信機器性能3",null,"規格_製品安全試験"]
[null,null,null,null,null,null,null,null,null,null,null,null,null,null,null,null,null,null,null,null,null,null,null,null,null,null,null,null,null,null,null,null,null,null,null,null,null,null,null,null,null,null,null,null,null,null,null,null,null,null,null,null,61,2,2,{"$f":"IF(C89= \"\",FALSE,TRUE)","v":false},null,{"$f":"IF(C89= \"\",\"\",\"規格_通信機器性能3_\" & C89)&IF(OR(C89= \"\", P89= \"\"), \"\", \"|\"&P89)","v":""},{"$f":"IF(C89= \"\",\"\",C89)","v":""},{"$f":"IF(C89= \"\",\"\",IF(X89= \"\",\"\",X89))","v":""},"規格_通信機器性能3",null,"規格_製品安全試験"]
[null,null,null,null,null,null,null,null,null,null,null,null,null,null,null,null,null,null,null,null,null,null,null,null,null,null,null,null,null,null,null,null,null,null,null,null,null,null,null,null,null,null,null,null,null,null,null,null,null,null,null,null,61,2,2,{"$f":"IF(C90= \"\",FALSE,TRUE)","v":false},null,{"$f":"IF(C90= \"\",\"\",\"規格_通信機器性能3_\" & C90)&IF(OR(C90= \"\", P90= \"\"), \"\", \"|\"&P90)","v":""},{"$f":"IF(C90= \"\",\"\",C90)","v":""},{"$f":"IF(C90= \"\",\"\",IF(X90= \"\",\"\",X90))","v":""},"規格_通信機器性能3",null,"規格_製品安全試験"]
[null,null,null,null,null,null,null,null,null,null,null,null,null,null,null,null,null,null,null,null,null,null,null,null,null,null,null,null,null,null,null,null,null,null,null,null,null,null,null,null,null,null,null,null,null,null,null,null,null,null,null,null,61,2,2,{"$f":"IF(C91= \"\",FALSE,TRUE)","v":false},null,{"$f":"IF(C91= \"\",\"\",\"規格_通信機器性能3_\" & C91)&IF(OR(C91= \"\", P91= \"\"), \"\", \"|\"&P91)","v":""},{"$f":"IF(C91= \"\",\"\",C91)","v":""},{"$f":"IF(C91= \"\",\"\",IF(X91= \"\",\"\",X91))","v":""},"規格_通信機器性能3",null,"規格_製品安全試験"]
[null,null,"行追加",null,null,"<注>一旦追加した行は削除できません。",null,null,null,null,null,null,null,null,null,null,null,null,null,null,null,null,null,null,null,null,null,null,null,null,null,null,null,null,null,null,null,null,null,null,null,null,null,null,null,"（注：上記に記入した規格番号及び表記が認定証に記載されます。）",null,null,null,null,null,null,61,2,1]
[null,null,null,null,null,null,null,null,null,null,null,null,null,null,null,null,null,null,null,null,null,null,null,null,null,null,null,null,null,null,null,null,null,null,null,null,null,null,null,null,null,null,null,null,null,null,null,null,null,null,null,null,61,2,1]
[null,null,"22．試験規格－製品安全",null,null,null,null,null,null,null,null,null,null,null,null,null,null,null,null,null,null,null,null,null,null,null,null,null,null,null,null,null,null,null,null,null,null,null,null,null,null,null,null,null,null,null,null,null,null,null,null,null,62,1,0,null,null,"規格_製品安全試験"]
[null,null,null,"家電製品",null,null,null,null,null,null,null,null,null,null,null,null,null,null,null,null,null,null,null,null,null,null,null,null,null,null,null,null,null,null,null,null,null,null,null,null,null,null,null,null,null,null,null,null,null,null,null,null,63,2,0,null,null,"規格_製品安全試験_IEC_家電製品"]
[null,null,"試験規格を下記記述欄にご記入ください。",null,null,null,null,null,null,null,null,null,null,null,null,null,null,null,null,null,null,null,null,null,null,null,null,null,null,null,null,null,null,null,null,null,null,null,null,null,null,null,null,null,null,null,null,null,null,null,null,null,65,2,1]
[null,null,"-----------------  認定証（和文）表記  ---------------",null,null,null,null,null,null,null,null,null,null,null,null,null,null,null,null,null,null,null,null,"-----------------  認定証（英文）表記  ---------------",null,null,null,null,null,null,null,null,null,null,null,null,null,null,null,null,null,null,null,null,null,null,null,null,null,null,null,null,65,2,2]
[null,null,"規格番号",null,null,null,null,null,null,null,null,null,null,null,null,"版/発行年",null,null,null,null,null,null,null,"規格番号",null,null,null,null,null,null,null,null,null,null,null,null,"版/発行年",null,null,null,null,null,null,null,"最新",null,null,null,null,null,null,null,65,2,1]
[null,null,null,null,null,null,null,null,null,null,null,null,null,null,null,null,null,null,null,null,null,null,null,null,null,null,null,null,null,null,null,null,null,null,null,null,null,null,null,null,null,null,null,null,null,null,null,null,null,null,null,null,65,2,2,{"$f":"IF(C99= \"\",FALSE,TRUE)","v":false},null,{"$f":"IF(C99= \"\",\"\",\"規格_製品安全試験_IEC_家電製品_\" & C99)&IF(OR(C99= \"\", P99= \"\"), \"\", \"|\"&P99)","v":""},{"$f":"IF(C99= \"\",\"\",C99)","v":""},{"$f":"IF(C99= \"\",\"\",IF(X99= \"\",\"\",X99))","v":""},"規格_製品安全試験_IEC_家電製品",null,"規格_製品安全試験_IEC_IT機器"]
[null,null,null,null,null,null,null,null,null,null,null,null,null,null,null,null,null,null,null,null,null,null,null,null,null,null,null,null,null,null,null,null,null,null,null,null,null,null,null,null,null,null,null,null,null,null,null,null,null,null,null,null,65,2,2,{"$f":"IF(C100= \"\",FALSE,TRUE)","v":false},null,{"$f":"IF(C100= \"\",\"\",\"規格_製品安全試験_IEC_家電製品_\" & C100)&IF(OR(C100= \"\", P100= \"\"), \"\", \"|\"&P100)","v":""},{"$f":"IF(C100= \"\",\"\",C100)","v":""},{"$f":"IF(C100= \"\",\"\",IF(X100= \"\",\"\",X100))","v":""},"規格_製品安全試験_IEC_家電製品",null,"規格_製品安全試験_IEC_IT機器"]
[null,null,null,null,null,null,null,null,null,null,null,null,null,null,null,null,null,null,null,null,null,null,null,null,null,null,null,null,null,null,null,null,null,null,null,null,null,null,null,null,null,null,null,null,null,null,null,null,null,null,null,null,65,2,2,{"$f":"IF(C101= \"\",FALSE,TRUE)","v":false},null,{"$f":"IF(C101= \"\",\"\",\"規格_製品安全試験_IEC_家電製品_\" & C101)&IF(OR(C101= \"\", P101= \"\"), \"\", \"|\"&P101)","v":""},{"$f":"IF(C101= \"\",\"\",C101)","v":""},{"$f":"IF(C101= \"\",\"\",IF(X101= \"\",\"\",X101))","v":""},"規格_製品安全試験_IEC_家電製品",null,"規格_製品安全試験_IEC_IT機器"]
[null,null,null,null,null,null,null,null,null,null,null,null,null,null,null,null,null,null,null,null,null,null,null,null,null,null,null,null,null,null,null,null,null,null,null,null,null,null,null,null,null,null,null,null,null,null,null,null,null,null,null,null,65,2,2,{"$f":"IF(C102= \"\",FALSE,TRUE)","v":false},null,{"$f":"IF(C102= \"\",\"\",\"規格_製品安全試験_IEC_家電製品_\" & C102)&IF(OR(C102= \"\", P102= \"\"), \"\", \"|\"&P102)","v":""},{"$f":"IF(C102= \"\",\"\",C102)","v":""},{"$f":"IF(C102= \"\",\"\",IF(X102= \"\",\"\",X102))","v":""},"規格_製品安全試験_IEC_家電製品",null,"規格_製品安全試験_IEC_IT機器"]
[null,null,null,null,null,null,null,null,null,null,null,null,null,null,null,null,null,null,null,null,null,null,null,null,null,null,null,null,null,null,null,null,null,null,null,null,null,null,null,null,null,null,null,null,null,null,null,null,null,null,null,null,65,2,2,{"$f":"IF(C103= \"\",FALSE,TRUE)","v":false},null,{"$f":"IF(C103= \"\",\"\",\"規格_製品安全試験_IEC_家電製品_\" & C103)&IF(OR(C103= \"\", P103= \"\"), \"\", \"|\"&P103)","v":""},{"$f":"IF(C103= \"\",\"\",C103)","v":""},{"$f":"IF(C103= \"\",\"\",IF(X103= \"\",\"\",X103))","v":""},"規格_製品安全試験_IEC_家電製品",null,"規格_製品安全試験_IEC_IT機器"]
[null,null,"行追加",null,null,"<注>一旦追加した行は削除できません。",null,null,null,null,null,null,null,null,null,null,null,null,null,null,null,null,null,null,null,null,null,null,null,null,null,null,null,null,null,null,null,null,null,null,null,null,null,null,null,"（注：上記に記入した規格番号及び表記が認定証に記載されます。）",null,null,null,null,null,null,65,2,1]
[null,null,null,null,null,null,null,null,null,null,null,null,null,null,null,null,null,null,null,null,null,null,null,null,null,null,null,null,null,null,null,null,null,null,null,null,null,null,null,null,null,null,null,null,null,null,null,null,null,null,null,null,65,2,1]
[null,null,null,"マルチメディア",null,null,null,null,null,null,null,null,null,null,null,null,null,null,null,null,null,null,null,null,null,null,null,null,null,null,null,null,null,null,null,null,null,null,null,null,null,null,null,null,null,null,null,null,null,null,null,null,66,2,0,null,null,"規格_製品安全試験_IEC_IT機器"]
[null,null,"試験規格を下記記述欄にご記入ください。",null,null,null,null,null,null,null,null,null,null,null,null,null,null,null,null,null,null,null,null,null,null,null,null,null,null,null,null,null,null,null,null,null,null,null,null,null,null,null,null,null,null,null,null,null,null,null,null,null,68,2,1]
[null,null,"-----------------  認定証（和文）表記  ---------------",null,null,null,null,null,null,null,null,null,null,null,null,null,null,null,null,null,null,null,null,"-----------------  認定証（英文）表記  ---------------",null,null,null,null,null,null,null,null,null,null,null,null,null,null,null,null,null,null,null,null,null,null,null,null,null,null,null,null,68,2,2]
[null,null,"規格番号",null,null,null,null,null,null,null,null,null,null,null,null,"版/発行年",null,null,null,null,null,null,null,"規格番号",null,null,null,null,null,null,null,null,null,null,null,null,"版/発行年",null,null,null,null,null,null,null,"最新",null,null,null,null,null,null,null,68,2,1]
[null,null,null,null,null,null,null,null,null,null,null,null,null,null,null,null,null,null,null,null,null,null,null,null,null,null,null,null,null,null,null,null,null,null,null,null,null,null,null,null,null,null,null,null,null,null,null,null,null,null,null,null,68,2,2,{"$f":"IF(C110= \"\",FALSE,TRUE)","v":false},null,{"$f":"IF(C110= \"\",\"\",\"規格_製品安全試験_IEC_IT機器_\" & C110)&IF(OR(C110= \"\", P110= \"\"), \"\", \"|\"&P110)","v":""},{"$f":"IF(C110= \"\",\"\",C110)","v":""},{"$f":"IF(C110= \"\",\"\",IF(X110= \"\",\"\",X110))","v":""},"規格_製品安全試験_IEC_IT機器",null,"規格_製品安全試験_IEC_医用電気機器"]
[null,null,null,null,null,null,null,null,null,null,null,null,null,null,null,null,null,null,null,null,null,null,null,null,null,null,null,null,null,null,null,null,null,null,null,null,null,null,null,null,null,null,null,null,null,null,null,null,null,null,null,null,68,2,2,{"$f":"IF(C111= \"\",FALSE,TRUE)","v":false},null,{"$f":"IF(C111= \"\",\"\",\"規格_製品安全試験_IEC_IT機器_\" & C111)&IF(OR(C111= \"\", P111= \"\"), \"\", \"|\"&P111)","v":""},{"$f":"IF(C111= \"\",\"\",C111)","v":""},{"$f":"IF(C111= \"\",\"\",IF(X111= \"\",\"\",X111))","v":""},"規格_製品安全試験_IEC_IT機器",null,"規格_製品安全試験_IEC_医用電気機器"]
[null,null,null,null,null,null,null,null,null,null,null,null,null,null,null,null,null,null,null,null,null,null,null,null,null,null,null,null,null,null,null,null,null,null,null,null,null,null,null,null,null,null,null,null,null,null,null,null,null,null,null,null,68,2,2,{"$f":"IF(C112= \"\",FALSE,TRUE)","v":false},null,{"$f":"IF(C112= \"\",\"\",\"規格_製品安全試験_IEC_IT機器_\" & C112)&IF(OR(C112= \"\", P112= \"\"), \"\", \"|\"&P112)","v":""},{"$f":"IF(C112= \"\",\"\",C112)","v":""},{"$f":"IF(C112= \"\",\"\",IF(X112= \"\",\"\",X112))","v":""},"規格_製品安全試験_IEC_IT機器",null,"規格_製品安全試験_IEC_医用電気機器"]
[null,null,null,null,null,null,null,null,null,null,null,null,null,null,null,null,null,null,null,null,null,null,null,null,null,null,null,null,null,null,null,null,null,null,null,null,null,null,null,null,null,null,null,null,null,null,null,null,null,null,null,null,68,2,2,{"$f":"IF(C113= \"\",FALSE,TRUE)","v":false},null,{"$f":"IF(C113= \"\",\"\",\"規格_製品安全試験_IEC_IT機器_\" & C113)&IF(OR(C113= \"\", P113= \"\"), \"\", \"|\"&P113)","v":""},{"$f":"IF(C113= \"\",\"\",C113)","v":""},{"$f":"IF(C113= \"\",\"\",IF(X113= \"\",\"\",X113))","v":""},"規格_製品安全試験_IEC_IT機器",null,"規格_製品安全試験_IEC_医用電気機器"]
[null,null,null,null,null,null,null,null,null,null,null,null,null,null,null,null,null,null,null,null,null,null,null,null,null,null,null,null,null,null,null,null,null,null,null,null,null,null,null,null,null,null,null,null,null,null,null,null,null,null,null,null,68,2,2,{"$f":"IF(C114= \"\",FALSE,TRUE)","v":false},null,{"$f":"IF(C114= \"\",\"\",\"規格_製品安全試験_IEC_IT機器_\" & C114)&IF(OR(C114= \"\", P114= \"\"), \"\", \"|\"&P114)","v":""},{"$f":"IF(C114= \"\",\"\",C114)","v":""},{"$f":"IF(C114= \"\",\"\",IF(X114= \"\",\"\",X114))","v":""},"規格_製品安全試験_IEC_IT機器",null,"規格_製品安全試験_IEC_医用電気機器"]
[null,null,"行追加",null,null,"<注>一旦追加した行は削除できません。",null,null,null,null,null,null,null,null,null,null,null,null,null,null,null,null,null,null,null,null,null,null,null,null,null,null,null,null,null,null,null,null,null,null,null,null,null,null,null,"（注：上記に記入した規格番号及び表記が認定証に記載されます。）",null,null,null,null,null,null,68,2,1]
[null,null,null,null,null,null,null,null,null,null,null,null,null,null,null,null,null,null,null,null,null,null,null,null,null,null,null,null,null,null,null,null,null,null,null,null,null,null,null,null,null,null,null,null,null,null,null,null,null,null,null,null,68,2,1]
[null,null,null,"医用電気機器",null,null,null,null,null,null,null,null,null,null,null,null,null,null,null,null,null,null,null,null,null,null,null,null,null,null,null,null,null,null,null,null,null,null,null,null,null,null,null,null,null,null,null,null,null,null,null,null,72,2,0,null,null,"規格_製品安全試験_IEC_医用電気機器"]
[null,null,"試験規格を下記記述欄にご記入ください。",null,null,null,null,null,null,null,null,null,null,null,null,null,null,null,null,null,null,null,null,null,null,null,null,null,null,null,null,null,null,null,null,null,null,null,null,null,null,null,null,null,null,null,null,null,null,null,null,null,75,2,1]
[null,null,"-----------------  認定証（和文）表記  ---------------",null,null,null,null,null,null,null,null,null,null,null,null,null,null,null,null,null,null,null,null,"-----------------  認定証（英文）表記  ---------------",null,null,null,null,null,null,null,null,null,null,null,null,null,null,null,null,null,null,null,null,null,null,null,null,null,null,null,null,75,2,2]
[null,null,"規格番号",null,null,null,null,null,null,null,null,null,null,null,null,"版/発行年",null,null,null,null,null,null,null,"規格番号",null,null,null,null,null,null,null,null,null,null,null,null,"版/発行年",null,null,null,null,null,null,null,"最新",null,null,null,null,null,null,null,75,2,1]
[null,null,null,null,null,null,null,null,null,null,null,null,null,null,null,null,null,null,null,null,null,null,null,null,null,null,null,null,null,null,null,null,null,null,null,null,null,null,null,null,null,null,null,null,null,null,null,null,null,null,null,null,75,2,2,{"$f":"IF(C121= \"\",FALSE,TRUE)","v":false},null,{"$f":"IF(C121= \"\",\"\",\"規格_製品安全試験_IEC_医用電気機器_\" & C121)&IF(OR(C121= \"\", P121= \"\"), \"\", \"|\"&P121)","v":""},{"$f":"IF(C121= \"\",\"\",C121)","v":""},{"$f":"IF(C121= \"\",\"\",IF(X121= \"\",\"\",X121))","v":""},"規格_製品安全試験_IEC_医用電気機器",null,"規格_製品安全試験_IEC_制御機器計測機器"]
[null,null,null,null,null,null,null,null,null,null,null,null,null,null,null,null,null,null,null,null,null,null,null,null,null,null,null,null,null,null,null,null,null,null,null,null,null,null,null,null,null,null,null,null,null,null,null,null,null,null,null,null,75,2,2,{"$f":"IF(C122= \"\",FALSE,TRUE)","v":false},null,{"$f":"IF(C122= \"\",\"\",\"規格_製品安全試験_IEC_医用電気機器_\" & C122)&IF(OR(C122= \"\", P122= \"\"), \"\", \"|\"&P122)","v":""},{"$f":"IF(C122= \"\",\"\",C122)","v":""},{"$f":"IF(C122= \"\",\"\",IF(X122= \"\",\"\",X122))","v":""},"規格_製品安全試験_IEC_医用電気機器",null,"規格_製品安全試験_IEC_制御機器計測機器"]
[null,null,null,null,null,null,null,null,null,null,null,null,null,null,null,null,null,null,null,null,null,null,null,null,null,null,null,null,null,null,null,null,null,null,null,null,null,null,null,null,null,null,null,null,null,null,null,null,null,null,null,null,75,2,2,{"$f":"IF(C123= \"\",FALSE,TRUE)","v":false},null,{"$f":"IF(C123= \"\",\"\",\"規格_製品安全試験_IEC_医用電気機器_\" & C123)&IF(OR(C123= \"\", P123= \"\"), \"\", \"|\"&P123)","v":""},{"$f":"IF(C123= \"\",\"\",C123)","v":""},{"$f":"IF(C123= \"\",\"\",IF(X123= \"\",\"\",X123))","v":""},"規格_製品安全試験_IEC_医用電気機器",null,"規格_製品安全試験_IEC_制御機器計測機器"]
[null,null,null,null,null,null,null,null,null,null,null,null,null,null,null,null,null,null,null,null,null,null,null,null,null,null,null,null,null,null,null,null,null,null,null,null,null,null,null,null,null,null,null,null,null,null,null,null,null,null,null,null,75,2,2,{"$f":"IF(C124= \"\",FALSE,TRUE)","v":false},null,{"$f":"IF(C124= \"\",\"\",\"規格_製品安全試験_IEC_医用電気機器_\" & C124)&IF(OR(C124= \"\", P124= \"\"), \"\", \"|\"&P124)","v":""},{"$f":"IF(C124= \"\",\"\",C124)","v":""},{"$f":"IF(C124= \"\",\"\",IF(X124= \"\",\"\",X124))","v":""},"規格_製品安全試験_IEC_医用電気機器",null,"規格_製品安全試験_IEC_制御機器計測機器"]
[null,null,null,null,null,null,null,null,null,null,null,null,null,null,null,null,null,null,null,null,null,null,null,null,null,null,null,null,null,null,null,null,null,null,null,null,null,null,null,null,null,null,null,null,null,null,null,null,null,null,null,null,75,2,2,{"$f":"IF(C125= \"\",FALSE,TRUE)","v":false},null,{"$f":"IF(C125= \"\",\"\",\"規格_製品安全試験_IEC_医用電気機器_\" & C125)&IF(OR(C125= \"\", P125= \"\"), \"\", \"|\"&P125)","v":""},{"$f":"IF(C125= \"\",\"\",C125)","v":""},{"$f":"IF(C125= \"\",\"\",IF(X125= \"\",\"\",X125))","v":""},"規格_製品安全試験_IEC_医用電気機器",null,"規格_製品安全試験_IEC_制御機器計測機器"]
[null,null,"行追加",null,null,"<注>一旦追加した行は削除できません。",null,null,null,null,null,null,null,null,null,null,null,null,null,null,null,null,null,null,null,null,null,null,null,null,null,null,null,null,null,null,null,null,null,null,null,null,null,null,null,"（注：上記に記入した規格番号及び表記が認定証に記載されます。）",null,null,null,null,null,null,75,2,1]
[null,null,null,null,null,null,null,null,null,null,null,null,null,null,null,null,null,null,null,null,null,null,null,null,null,null,null,null,null,null,null,null,null,null,null,null,null,null,null,null,null,null,null,null,null,null,null,null,null,null,null,null,75,2,1]
[null,null,null,"制御機器・計測機器",null,null,null,null,null,null,null,null,null,null,null,null,null,null,null,null,null,null,null,null,null,null,null,null,null,null,null,null,null,null,null,null,null,null,null,null,null,null,null,null,null,null,null,null,null,null,null,null,76,2,0,null,null,"規格_製品安全試験_IEC_制御機器計測機器"]
[null,null,"試験規格を下記記述欄にご記入ください。",null,null,null,null,null,null,null,null,null,null,null,null,null,null,null,null,null,null,null,null,null,null,null,null,null,null,null,null,null,null,null,null,null,null,null,null,null,null,null,null,null,null,null,null,null,null,null,null,null,79,2,1]
[null,null,"-----------------  認定証（和文）表記  ---------------",null,null,null,null,null,null,null,null,null,null,null,null,null,null,null,null,null,null,null,null,"-----------------  認定証（英文）表記  ---------------",null,null,null,null,null,null,null,null,null,null,null,null,null,null,null,null,null,null,null,null,null,null,null,null,null,null,null,null,79,2,2]
[null,null,"規格番号",null,null,null,null,null,null,null,null,null,null,null,null,"版/発行年",null,null,null,null,null,null,null,"規格番号",null,null,null,null,null,null,null,null,null,null,null,null,"版/発行年",null,null,null,null,null,null,null,"最新",null,null,null,null,null,null,null,79,2,1]
[null,null,null,null,null,null,null,null,null,null,null,null,null,null,null,null,null,null,null,null,null,null,null,null,null,null,null,null,null,null,null,null,null,null,null,null,null,null,null,null,null,null,null,null,null,null,null,null,null,null,null,null,79,2,2,{"$f":"IF(C132= \"\",FALSE,TRUE)","v":false},null,{"$f":"IF(C132= \"\",\"\",\"規格_製品安全試験_IEC_制御機器計測機器_\" & C132)&IF(OR(C132= \"\", P132= \"\"), \"\", \"|\"&P132)","v":""},{"$f":"IF(C132= \"\",\"\",C132)","v":""},{"$f":"IF(C132= \"\",\"\",IF(X132= \"\",\"\",X132))","v":""},"規格_製品安全試験_IEC_制御機器計測機器",null,"規格_環境"]
[null,null,null,null,null,null,null,null,null,null,null,null,null,null,null,null,null,null,null,null,null,null,null,null,null,null,null,null,null,null,null,null,null,null,null,null,null,null,null,null,null,null,null,null,null,null,null,null,null,null,null,null,79,2,2,{"$f":"IF(C133= \"\",FALSE,TRUE)","v":false},null,{"$f":"IF(C133= \"\",\"\",\"規格_製品安全試験_IEC_制御機器計測機器_\" & C133)&IF(OR(C133= \"\", P133= \"\"), \"\", \"|\"&P133)","v":""},{"$f":"IF(C133= \"\",\"\",C133)","v":""},{"$f":"IF(C133= \"\",\"\",IF(X133= \"\",\"\",X133))","v":""},"規格_製品安全試験_IEC_制御機器計測機器",null,"規格_環境"]
[null,null,null,null,null,null,null,null,null,null,null,null,null,null,null,null,null,null,null,null,null,null,null,null,null,null,null,null,null,null,null,null,null,null,null,null,null,null,null,null,null,null,null,null,null,null,null,null,null,null,null,null,79,2,2,{"$f":"IF(C134= \"\",FALSE,TRUE)","v":false},null,{"$f":"IF(C134= \"\",\"\",\"規格_製品安全試験_IEC_制御機器計測機器_\" & C134)&IF(OR(C134= \"\", P134= \"\"), \"\", \"|\"&P134)","v":""},{"$f":"IF(C134= \"\",\"\",C134)","v":""},{"$f":"IF(C134= \"\",\"\",IF(X134= \"\",\"\",X134))","v":""},"規格_製品安全試験_IEC_制御機器計測機器",null,"規格_環境"]
[null,null,null,null,null,null,null,null,null,null,null,null,null,null,null,null,null,null,null,null,null,null,null,null,null,null,null,null,null,null,null,null,null,null,null,null,null,null,null,null,null,null,null,null,null,null,null,null,null,null,null,null,79,2,2,{"$f":"IF(C135= \"\",FALSE,TRUE)","v":false},null,{"$f":"IF(C135= \"\",\"\",\"規格_製品安全試験_IEC_制御機器計測機器_\" & C135)&IF(OR(C135= \"\", P135= \"\"), \"\", \"|\"&P135)","v":""},{"$f":"IF(C135= \"\",\"\",C135)","v":""},{"$f":"IF(C135= \"\",\"\",IF(X135= \"\",\"\",X135))","v":""},"規格_製品安全試験_IEC_制御機器計測機器",null,"規格_環境"]
[null,null,null,null,null,null,null,null,null,null,null,null,null,null,null,null,null,null,null,null,null,null,null,null,null,null,null,null,null,null,null,null,null,null,null,null,null,null,null,null,null,null,null,null,null,null,null,null,null,null,null,null,79,2,2,{"$f":"IF(C136= \"\",FALSE,TRUE)","v":false},null,{"$f":"IF(C136= \"\",\"\",\"規格_製品安全試験_IEC_制御機器計測機器_\" & C136)&IF(OR(C136= \"\", P136= \"\"), \"\", \"|\"&P136)","v":""},{"$f":"IF(C136= \"\",\"\",C136)","v":""},{"$f":"IF(C136= \"\",\"\",IF(X136= \"\",\"\",X136))","v":""},"規格_製品安全試験_IEC_制御機器計測機器",null,"規格_環境"]
[null,null,"行追加",null,null,"<注>一旦追加した行は削除できません。",null,null,null,null,null,null,null,null,null,null,null,null,null,null,null,null,null,null,null,null,null,null,null,null,null,null,null,null,null,null,null,null,null,null,null,null,null,null,null,"（注：上記に記入した規格番号及び表記が認定証に記載されます。）",null,null,null,null,null,null,79,2,1]
[null,null,null,null,null,null,null,null,null,null,null,null,null,null,null,null,null,null,null,null,null,null,null,null,null,null,null,null,null,null,null,null,null,null,null,null,null,null,null,null,null,null,null,null,null,null,null,null,null,null,null,null,79,2,1]
[null,null,"23．試験規格－環境（消費電力）",null,null,null,null,null,null,null,null,null,null,null,null,null,null,null,null,null,null,null,null,null,null,null,null,null,null,null,null,null,null,null,null,null,null,null,null,null,null,null,null,null,null,null,null,null,null,null,null,null,80,1,0,false,null,"規格_環境"]
[null,null,null,"国際エネルギースタープログラム運用細則",null,null,null,null,null,null,null,null,null,null,null,null,null,null,null,null,null,null,null,null,null,null,null,null,null,null,null,null,null,null,null,null,null,null,null,null,null,null,null,null,null,null,null,null,null,null,null,null,81,2,0,false,null,"規格_環境_国際"]
[null,null,"対象となる製品カテゴリはプログラムごとにご記入ください。",null,null,null,null,null,null,null,null,null,null,null,null,null,null,null,null,null,null,null,null,null,null,null,null,null,null,null,null,null,null,null,null,null,null,null,null,null,null,null,null,null,null,null,null,null,null,null,null,null,82,2,1]
[null,null,"和文認定証_製品カテゴリ",null,null,null,null,null,null,null,null,null,null,null,null,"備考",null,null,null,null,null,null,null,"英文認定証_製品カテゴリ",null,null,null,null,null,null,null,null,null,null,null,null,"備考",null,null,null,null,null,null,null,null,null,null,null,null,null,null,null,82,2,3]
[null,null,null,null,null,null,null,null,null,null,null,null,null,null,null,null,null,null,null,null,null,null,null,null,null,null,null,null,null,null,null,null,null,null,null,null,null,null,null,null,null,null,null,null,null,null,null,null,null,null,null,null,82,2,3,{"$f":"IF(C143= \"\",FALSE,TRUE)","v":false},null,{"$f":"IF(C143= \"\",\"\",\"規格_環境_国際_\" & C143)","v":""},{"$f":"IF(C143= \"\",\"\",C143)","v":""},{"$f":"IF(C143= \"\",\"\",IF(X143= \"\",\"\",X143))","v":""},"規格_環境_国際",null,"規格_環境_米国"]
[null,null,null,null,null,null,null,null,null,null,null,null,null,null,null,null,null,null,null,null,null,null,null,null,null,null,null,null,null,null,null,null,null,null,null,null,null,null,null,null,null,null,null,null,null,null,null,null,null,null,null,null,82,2,3,{"$f":"IF(C144= \"\",FALSE,TRUE)","v":false},null,{"$f":"IF(C144= \"\",\"\",\"規格_環境_国際_\" & C144)","v":""},{"$f":"IF(C144= \"\",\"\",C144)","v":""},{"$f":"IF(C144= \"\",\"\",IF(X144= \"\",\"\",X144))","v":""},"規格_環境_国際",null,"規格_環境_米国"]
[null,null,null,null,null,null,null,null,null,null,null,null,null,null,null,null,null,null,null,null,null,null,null,null,null,null,null,null,null,null,null,null,null,null,null,null,null,null,null,null,null,null,null,null,null,null,null,null,null,null,null,null,82,2,3,{"$f":"IF(C145= \"\",FALSE,TRUE)","v":false},null,{"$f":"IF(C145= \"\",\"\",\"規格_環境_国際_\" & C145)","v":""},{"$f":"IF(C145= \"\",\"\",C145)","v":""},{"$f":"IF(C145= \"\",\"\",IF(X145= \"\",\"\",X145))","v":""},"規格_環境_国際",null,"規格_環境_米国"]
[null,null,null,null,null,null,null,null,null,null,null,null,null,null,null,null,null,null,null,null,null,null,null,null,null,null,null,null,null,null,null,null,null,null,null,null,null,null,null,null,null,null,null,null,null,null,null,null,null,null,null,null,82,2,3,{"$f":"IF(C146= \"\",FALSE,TRUE)","v":false},null,{"$f":"IF(C146= \"\",\"\",\"規格_環境_国際_\" & C146)","v":""},{"$f":"IF(C146= \"\",\"\",C146)","v":""},{"$f":"IF(C146= \"\",\"\",IF(X146= \"\",\"\",X146))","v":""},"規格_環境_国際",null,"規格_環境_米国"]
[null,null,null,null,null,null,null,null,null,null,null,null,null,null,null,null,null,null,null,null,null,null,null,null,null,null,null,null,null,null,null,null,null,null,null,null,null,null,null,null,null,null,null,null,null,null,null,null,null,null,null,null,82,2,3,{"$f":"IF(C147= \"\",FALSE,TRUE)","v":false},null,{"$f":"IF(C147= \"\",\"\",\"規格_環境_国際_\" & C147)","v":""},{"$f":"IF(C147= \"\",\"\",C147)","v":""},{"$f":"IF(C147= \"\",\"\",IF(X147= \"\",\"\",X147))","v":""},"規格_環境_国際",null,"規格_環境_米国"]
[null,null,"行追加",null,null,"<注>一旦追加した行は削除できません。",null,null,null,null,null,null,null,null,null,null,null,null,null,null,null,null,null,null,null,null,null,null,null,null,null,null,null,null,null,null,null,null,null,null,null,null,null,null,null,"（注：上記に記入した規格番号及び表記が認定証に記載されます。）",null,null,null,null,null,null,82,2,1]
[null,null,null,null,null,null,null,null,null,null,null,null,null,null,null,null,null,null,null,null,null,null,null,null,null,null,null,null,null,null,null,null,null,null,null,null,null,null,null,null,null,null,null,null,null,null,null,null,null,null,null,null,82,2,1]
[null,null,null,"米国エネルギースタープログラム",null,null,null,null,null,null,null,null,null,null,null,null,null,null,null,null,null,null,null,null,null,null,null,null,null,null,null,null,null,null,null,null,null,null,null,null,null,null,null,null,null,null,null,null,null,null,null,null,83,2,0,null,null,"規格_環境_米国"]
[null,null,"対象となる製品カテゴリはプログラムごとにご記入ください。",null,null,null,null,null,null,null,null,null,null,null,null,null,null,null,null,null,null,null,null,null,null,null,null,null,null,null,null,null,null,null,null,null,null,null,null,null,null,null,null,null,null,null,null,null,null,null,null,null,84,2,1]
[null,null,"和文認定証_製品カテゴリ",null,null,null,null,null,null,null,null,null,null,null,null,"備考",null,null,null,null,null,null,null,"英文認定証_製品カテゴリ",null,null,null,null,null,null,null,null,null,null,null,null,"備考",null,null,null,null,null,null,null,null,null,null,null,null,null,null,null,84,2,3]
[null,null,null,null,null,null,null,null,null,null,null,null,null,null,null,null,null,null,null,null,null,null,null,null,null,null,null,null,null,null,null,null,null,null,null,null,null,null,null,null,null,null,null,null,null,null,null,null,null,null,null,null,84,2,3,{"$f":"IF(C153= \"\",FALSE,TRUE)","v":false},null,{"$f":"IF(C153= \"\",\"\",\"規格_環境_米国_\" & C153)","v":""},{"$f":"IF(C153= \"\",\"\",C153)","v":""},{"$f":"IF(C153= \"\",\"\",IF(X153= \"\",\"\",X153))","v":""},"規格_環境_米国",null,"規格_環境_消費電力"]
[null,null,null,null,null,null,null,null,null,null,null,null,null,null,null,null,null,null,null,null,null,null,null,null,null,null,null,null,null,null,null,null,null,null,null,null,null,null,null,null,null,null,null,null,null,null,null,null,null,null,null,null,84,2,3,{"$f":"IF(C154= \"\",FALSE,TRUE)","v":false},null,{"$f":"IF(C154= \"\",\"\",\"規格_環境_米国_\" & C154)","v":""},{"$f":"IF(C154= \"\",\"\",C154)","v":""},{"$f":"IF(C154= \"\",\"\",IF(X154= \"\",\"\",X154))","v":""},"規格_環境_米国",null,"規格_環境_消費電力"]
[null,null,null,null,null,null,null,null,null,null,null,null,null,null,null,null,null,null,null,null,null,null,null,null,null,null,null,null,null,null,null,null,null,null,null,null,null,null,null,null,null,null,null,null,null,null,null,null,null,null,null,null,84,2,3,{"$f":"IF(C155= \"\",FALSE,TRUE)","v":false},null,{"$f":"IF(C155= \"\",\"\",\"規格_環境_米国_\" & C155)","v":""},{"$f":"IF(C155= \"\",\"\",C155)","v":""},{"$f":"IF(C155= \"\",\"\",IF(X155= \"\",\"\",X155))","v":""},"規格_環境_米国",null,"規格_環境_消費電力"]
[null,null,null,null,null,null,null,null,null,null,null,null,null,null,null,null,null,null,null,null,null,null,null,null,null,null,null,null,null,null,null,null,null,null,null,null,null,null,null,null,null,null,null,null,null,null,null,null,null,null,null,null,84,2,3,{"$f":"IF(C156= \"\",FALSE,TRUE)","v":false},null,{"$f":"IF(C156= \"\",\"\",\"規格_環境_米国_\" & C156)","v":""},{"$f":"IF(C156= \"\",\"\",C156)","v":""},{"$f":"IF(C156= \"\",\"\",IF(X156= \"\",\"\",X156))","v":""},"規格_環境_米国",null,"規格_環境_消費電力"]
[null,null,null,null,null,null,null,null,null,null,null,null,null,null,null,null,null,null,null,null,null,null,null,null,null,null,null,null,null,null,null,null,null,null,null,null,null,null,null,null,null,null,null,null,null,null,null,null,null,null,null,null,84,2,3,{"$f":"IF(C157= \"\",FALSE,TRUE)","v":false},null,{"$f":"IF(C157= \"\",\"\",\"規格_環境_米国_\" & C157)","v":""},{"$f":"IF(C157= \"\",\"\",C157)","v":""},{"$f":"IF(C157= \"\",\"\",IF(X157= \"\",\"\",X157))","v":""},"規格_環境_米国",null,"規格_環境_消費電力"]
[null,null,"行追加",null,null,"<注>一旦追加した行は削除できません。",null,null,null,null,null,null,null,null,null,null,null,null,null,null,null,null,null,null,null,null,null,null,null,null,null,null,null,null,null,null,null,null,null,null,null,null,null,null,null,"（注：上記に記入した規格番号及び表記が認定証に記載されます。）",null,null,null,null,null,null,84,2,1]
[null,null,null,null,null,null,null,null,null,null,null,null,null,null,null,null,null,null,null,null,null,null,null,null,null,null,null,null,null,null,null,null,null,null,null,null,null,null,null,null,null,null,null,null,null,null,null,null,null,null,null,null,84,2,1]
[null,null,null,"消費電力",null,null,null,null,null,null,null,null,null,null,null,null,null,null,null,null,null,null,null,null,null,null,null,null,null,null,null,null,null,null,null,null,null,null,null,null,null,null,null,null,null,null,null,null,null,null,null,null,85,2,0,null,null,"規格_環境_消費電力"]
[null,null,"試験規格を下記記述欄にご記入ください。",null,null,null,null,null,null,null,null,null,null,null,null,null,null,null,null,null,null,null,null,null,null,null,null,null,null,null,null,null,null,null,null,null,null,null,null,null,null,null,null,null,null,null,null,null,null,null,null,null,86,2,1]
[null,null,"-----------------  認定証（和文）表記  ---------------",null,null,null,null,null,null,null,null,null,null,null,null,null,null,null,null,null,null,null,null,"-----------------  認定証（英文）表記  ---------------",null,null,null,null,null,null,null,null,null,null,null,null,null,null,null,null,null,null,null,null,null,null,null,null,null,null,null,null,86,2,2]
[null,null,"規格番号",null,null,null,null,null,null,null,null,null,null,null,null,"版/発行年",null,null,null,null,null,null,null,"規格番号",null,null,null,null,null,null,null,null,null,null,null,null,"版/発行年",null,null,null,null,null,null,null,"最新",null,null,null,null,null,null,null,86,2,1]
[null,null,null,null,null,null,null,null,null,null,null,null,null,null,null,null,null,null,null,null,null,null,null,null,null,null,null,null,null,null,null,null,null,null,null,null,null,null,null,null,null,null,null,null,null,null,null,null,null,null,null,null,86,2,2,{"$f":"IF(C164= \"\",FALSE,TRUE)","v":false},null,{"$f":"IF(C164= \"\",\"\",\"規格_環境_消費電力_\" & C164)&IF(OR(C164= \"\", P164= \"\"), \"\", \"|\"&P164)","v":""},{"$f":"IF(C164= \"\",\"\",C164)","v":""},{"$f":"IF(C164= \"\",\"\",IF(X164= \"\",\"\",X164))","v":""},"規格_環境_消費電力",null,"規格_環境（環境試験）"]
[null,null,null,null,null,null,null,null,null,null,null,null,null,null,null,null,null,null,null,null,null,null,null,null,null,null,null,null,null,null,null,null,null,null,null,null,null,null,null,null,null,null,null,null,null,null,null,null,null,null,null,null,86,2,2,{"$f":"IF(C165= \"\",FALSE,TRUE)","v":false},null,{"$f":"IF(C165= \"\",\"\",\"規格_環境_消費電力_\" & C165)&IF(OR(C165= \"\", P165= \"\"), \"\", \"|\"&P165)","v":""},{"$f":"IF(C165= \"\",\"\",C165)","v":""},{"$f":"IF(C165= \"\",\"\",IF(X165= \"\",\"\",X165))","v":""},"規格_環境_消費電力",null,"規格_環境（環境試験）"]
[null,null,null,null,null,null,null,null,null,null,null,null,null,null,null,null,null,null,null,null,null,null,null,null,null,null,null,null,null,null,null,null,null,null,null,null,null,null,null,null,null,null,null,null,null,null,null,null,null,null,null,null,86,2,2,{"$f":"IF(C166= \"\",FALSE,TRUE)","v":false},null,{"$f":"IF(C166= \"\",\"\",\"規格_環境_消費電力_\" & C166)&IF(OR(C166= \"\", P166= \"\"), \"\", \"|\"&P166)","v":""},{"$f":"IF(C166= \"\",\"\",C166)","v":""},{"$f":"IF(C166= \"\",\"\",IF(X166= \"\",\"\",X166))","v":""},"規格_環境_消費電力",null,"規格_環境（環境試験）"]
[null,null,null,null,null,null,null,null,null,null,null,null,null,null,null,null,null,null,null,null,null,null,null,null,null,null,null,null,null,null,null,null,null,null,null,null,null,null,null,null,null,null,null,null,null,null,null,null,null,null,null,null,86,2,2,{"$f":"IF(C167= \"\",FALSE,TRUE)","v":false},null,{"$f":"IF(C167= \"\",\"\",\"規格_環境_消費電力_\" & C167)&IF(OR(C167= \"\", P167= \"\"), \"\", \"|\"&P167)","v":""},{"$f":"IF(C167= \"\",\"\",C167)","v":""},{"$f":"IF(C167= \"\",\"\",IF(X167= \"\",\"\",X167))","v":""},"規格_環境_消費電力",null,"規格_環境（環境試験）"]
[null,null,null,null,null,null,null,null,null,null,null,null,null,null,null,null,null,null,null,null,null,null,null,null,null,null,null,null,null,null,null,null,null,null,null,null,null,null,null,null,null,null,null,null,null,null,null,null,null,null,null,null,86,2,2,{"$f":"IF(C168= \"\",FALSE,TRUE)","v":false},null,{"$f":"IF(C168= \"\",\"\",\"規格_環境_消費電力_\" & C168)&IF(OR(C168= \"\", P168= \"\"), \"\", \"|\"&P168)","v":""},{"$f":"IF(C168= \"\",\"\",C168)","v":""},{"$f":"IF(C168= \"\",\"\",IF(X168= \"\",\"\",X168))","v":""},"規格_環境_消費電力",null,"規格_環境（環境試験）"]
[null,null,"行追加",null,null,"<注>一旦追加した行は削除できません。",null,null,null,null,null,null,null,null,null,null,null,null,null,null,null,null,null,null,null,null,null,null,null,null,null,null,null,null,null,null,null,null,null,null,null,null,null,null,null,"（注：上記に記入した規格番号及び表記が認定証に記載されます。）",null,null,null,null,null,null,86,2,1]
[null,null,null,null,null,null,null,null,null,null,null,null,null,null,null,null,null,null,null,null,null,null,null,null,null,null,null,null,null,null,null,null,null,null,null,null,null,null,null,null,null,null,null,null,null,null,null,null,null,null,null,null,86,2,1]
[null,null,"24．試験規格－環境（環境試験）",null,null,null,null,null,null,null,null,null,null,null,null,null,null,null,null,null,null,null,null,null,null,null,null,null,null,null,null,null,null,null,null,null,null,null,null,null,null,null,null,null,null,null,null,null,null,null,null,null,87,1,0,null,null,"規格_環境（環境試験）"]
[null,null,"試験規格を下記記述欄にご記入ください。",null,null,null,null,null,null,null,null,null,null,null,null,null,null,null,null,null,null,null,null,null,null,null,null,null,null,null,null,null,null,null,null,null,null,null,null,null,null,null,null,null,null,null,null,null,null,null,null,null,88,2,1]
[null,null,"-----------------  認定証（和文）表記  ---------------",null,null,null,null,null,null,null,null,null,null,null,null,null,null,null,null,null,null,null,null,"-----------------  認定証（英文）表記  ---------------",null,null,null,null,null,null,null,null,null,null,null,null,null,null,null,null,null,null,null,null,null,null,null,null,null,null,null,null,88,2,2]
[null,null,"規格番号",null,null,null,null,null,null,null,null,null,null,null,null,"版/発行年",null,null,null,null,null,null,null,"規格番号",null,null,null,null,null,null,null,null,null,null,null,null,"版/発行年",null,null,null,null,null,null,null,"最新",null,null,null,null,null,null,null,88,2,1]
[null,null,null,null,null,null,null,null,null,null,null,null,null,null,null,null,null,null,null,null,null,null,null,null,null,null,null,null,null,null,null,null,null,null,null,null,null,null,null,null,null,null,null,null,null,null,null,null,null,null,null,null,88,2,2,{"$f":"IF(C175= \"\",FALSE,TRUE)","v":false},null,{"$f":"IF(C175= \"\",\"\",\"規格_環境（環境試験）_\" & C175)&IF(OR(C175= \"\", P175= \"\"), \"\", \"|\"&P175)","v":""},{"$f":"IF(C175= \"\",\"\",C175)","v":""},{"$f":"IF(C175= \"\",\"\",IF(X175= \"\",\"\",X175))","v":""},"規格_環境（環境試験）",null,"規格_防衛・航空・宇宙"]
[null,null,null,null,null,null,null,null,null,null,null,null,null,null,null,null,null,null,null,null,null,null,null,null,null,null,null,null,null,null,null,null,null,null,null,null,null,null,null,null,null,null,null,null,null,null,null,null,null,null,null,null,88,2,2,{"$f":"IF(C176= \"\",FALSE,TRUE)","v":false},null,{"$f":"IF(C176= \"\",\"\",\"規格_環境（環境試験）_\" & C176)&IF(OR(C176= \"\", P176= \"\"), \"\", \"|\"&P176)","v":""},{"$f":"IF(C176= \"\",\"\",C176)","v":""},{"$f":"IF(C176= \"\",\"\",IF(X176= \"\",\"\",X176))","v":""},"規格_環境（環境試験）",null,"規格_防衛・航空・宇宙"]
[null,null,null,null,null,null,null,null,null,null,null,null,null,null,null,null,null,null,null,null,null,null,null,null,null,null,null,null,null,null,null,null,null,null,null,null,null,null,null,null,null,null,null,null,null,null,null,null,null,null,null,null,88,2,2,{"$f":"IF(C177= \"\",FALSE,TRUE)","v":false},null,{"$f":"IF(C177= \"\",\"\",\"規格_環境（環境試験）_\" & C177)&IF(OR(C177= \"\", P177= \"\"), \"\", \"|\"&P177)","v":""},{"$f":"IF(C177= \"\",\"\",C177)","v":""},{"$f":"IF(C177= \"\",\"\",IF(X177= \"\",\"\",X177))","v":""},"規格_環境（環境試験）",null,"規格_防衛・航空・宇宙"]
[null,null,null,null,null,null,null,null,null,null,null,null,null,null,null,null,null,null,null,null,null,null,null,null,null,null,null,null,null,null,null,null,null,null,null,null,null,null,null,null,null,null,null,null,null,null,null,null,null,null,null,null,88,2,2,{"$f":"IF(C178= \"\",FALSE,TRUE)","v":false},null,{"$f":"IF(C178= \"\",\"\",\"規格_環境（環境試験）_\" & C178)&IF(OR(C178= \"\", P178= \"\"), \"\", \"|\"&P178)","v":""},{"$f":"IF(C178= \"\",\"\",C178)","v":""},{"$f":"IF(C178= \"\",\"\",IF(X178= \"\",\"\",X178))","v":""},"規格_環境（環境試験）",null,"規格_防衛・航空・宇宙"]
[null,null,null,null,null,null,null,null,null,null,null,null,null,null,null,null,null,null,null,null,null,null,null,null,null,null,null,null,null,null,null,null,null,null,null,null,null,null,null,null,null,null,null,null,null,null,null,null,null,null,null,null,88,2,2,{"$f":"IF(C179= \"\",FALSE,TRUE)","v":false},null,{"$f":"IF(C179= \"\",\"\",\"規格_環境（環境試験）_\" & C179)&IF(OR(C179= \"\", P179= \"\"), \"\", \"|\"&P179)","v":""},{"$f":"IF(C179= \"\",\"\",C179)","v":""},{"$f":"IF(C179= \"\",\"\",IF(X179= \"\",\"\",X179))","v":""},"規格_環境（環境試験）",null,"規格_防衛・航空・宇宙"]
[null,null,"行追加",null,null,"<注>一旦追加した行は削除できません。",null,null,null,null,null,null,null,null,null,null,null,null,null,null,null,null,null,null,null,null,null,null,null,null,null,null,null,null,null,null,null,null,null,null,null,null,null,null,null,"（注：上記に記入した規格番号及び表記が認定証に記載されます。）",null,null,null,null,null,null,88,2,1]
[null,null,null,null,null,null,null,null,null,null,null,null,null,null,null,null,null,null,null,null,null,null,null,null,null,null,null,null,null,null,null,null,null,null,null,null,null,null,null,null,null,null,null,null,null,null,null,null,null,null,null,null,88,2,1]
[null,null,"25．試験規格－防衛・航空・宇宙",null,null,null,null,null,null,null,null,null,null,null,null,null,null,null,null,null,null,null,null,null,null,null,null,null,null,null,null,null,null,null,null,null,null,null,null,null,null,null,null,null,null,null,null,null,null,null,null,null,89,1,0,null,null,"規格_防衛・航空・宇宙"]
[null,null,"試験規格を下記記述欄にご記入ください。",null,null,null,null,null,null,null,null,null,null,null,null,null,null,null,null,null,null,null,null,null,null,null,null,null,null,null,null,null,null,null,null,null,null,null,null,null,null,null,null,null,null,null,null,null,null,null,null,null,90,2,1]
[null,null,"-----------------  認定証（和文）表記  ---------------",null,null,null,null,null,null,null,null,null,null,null,null,null,null,null,null,null,null,null,null,"-----------------  認定証（英文）表記  ---------------",null,null,null,null,null,null,null,null,null,null,null,null,null,null,null,null,null,null,null,null,null,null,null,null,null,null,null,null,90,2,2]
[null,null,"規格番号",null,null,null,null,null,null,null,null,null,null,null,null,"版/発行年",null,null,null,null,null,null,null,"規格番号",null,null,null,null,null,null,null,null,null,null,null,null,"版/発行年",null,null,null,null,null,null,null,"最新",null,null,null,null,null,null,null,90,2,1]
[null,null,null,null,null,null,null,null,null,null,null,null,null,null,null,null,null,null,null,null,null,null,null,null,null,null,null,null,null,null,null,null,null,null,null,null,null,null,null,null,null,null,null,null,null,null,null,null,null,null,null,null,90,2,2,{"$f":"IF(C186= \"\",FALSE,TRUE)","v":false},null,{"$f":"IF(C186= \"\",\"\",\"規格_防衛・航空・宇宙_\" & C186)&IF(OR(C186= \"\", P186= \"\"), \"\", \"|\"&P186)","v":""},{"$f":"IF(C186= \"\",\"\",C186)","v":""},{"$f":"IF(C186= \"\",\"\",IF(X186= \"\",\"\",X186))","v":""},"規格_防衛・航空・宇宙",null,"@@@"]
[null,null,null,null,null,null,null,null,null,null,null,null,null,null,null,null,null,null,null,null,null,null,null,null,null,null,null,null,null,null,null,null,null,null,null,null,null,null,null,null,null,null,null,null,null,null,null,null,null,null,null,null,90,2,2,{"$f":"IF(C187= \"\",FALSE,TRUE)","v":false},null,{"$f":"IF(C187= \"\",\"\",\"規格_防衛・航空・宇宙_\" & C187)&IF(OR(C187= \"\", P187= \"\"), \"\", \"|\"&P187)","v":""},{"$f":"IF(C187= \"\",\"\",C187)","v":""},{"$f":"IF(C187= \"\",\"\",IF(X187= \"\",\"\",X187))","v":""},"規格_防衛・航空・宇宙",null,"@@@"]
[null,null,null,null,null,null,null,null,null,null,null,null,null,null,null,null,null,null,null,null,null,null,null,null,null,null,null,null,null,null,null,null,null,null,null,null,null,null,null,null,null,null,null,null,null,null,null,null,null,null,null,null,90,2,2,{"$f":"IF(C188= \"\",FALSE,TRUE)","v":false},null,{"$f":"IF(C188= \"\",\"\",\"規格_防衛・航空・宇宙_\" & C188)&IF(OR(C188= \"\", P188= \"\"), \"\", \"|\"&P188)","v":""},{"$f":"IF(C188= \"\",\"\",C188)","v":""},{"$f":"IF(C188= \"\",\"\",IF(X188= \"\",\"\",X188))","v":""},"規格_防衛・航空・宇宙",null,"@@@"]
[null,null,null,null,null,null,null,null,null,null,null,null,null,null,null,null,null,null,null,null,null,null,null,null,null,null,null,null,null,null,null,null,null,null,null,null,null,null,null,null,null,null,null,null,null,null,null,null,null,null,null,null,90,2,2,{"$f":"IF(C189= \"\",FALSE,TRUE)","v":false},null,{"$f":"IF(C189= \"\",\"\",\"規格_防衛・航空・宇宙_\" & C189)&IF(OR(C189= \"\", P189= \"\"), \"\", \"|\"&P189)","v":""},{"$f":"IF(C189= \"\",\"\",C189)","v":""},{"$f":"IF(C189= \"\",\"\",IF(X189= \"\",\"\",X189))","v":""},"規格_防衛・航空・宇宙",null,"@@@"]
[null,null,null,null,null,null,null,null,null,null,null,null,null,null,null,null,null,null,null,null,null,null,null,null,null,null,null,null,null,null,null,null,null,null,null,null,null,null,null,null,null,null,null,null,null,null,null,null,null,null,null,null,90,2,2,{"$f":"IF(C190= \"\",FALSE,TRUE)","v":false},null,{"$f":"IF(C190= \"\",\"\",\"規格_防衛・航空・宇宙_\" & C190)&IF(OR(C190= \"\", P190= \"\"), \"\", \"|\"&P190)","v":""},{"$f":"IF(C190= \"\",\"\",C190)","v":""},{"$f":"IF(C190= \"\",\"\",IF(X190= \"\",\"\",X190))","v":""},"規格_防衛・航空・宇宙",null,"@@@"]
[null,null,"行追加",null,null,"<注>一旦追加した行は削除できません。",null,null,null,null,null,null,null,null,null,null,null,null,null,null,null,null,null,null,null,null,null,null,null,null,null,null,null,null,null,null,null,null,null,null,null,null,null,null,null,"（注：上記に記入した規格番号及び表記が認定証に記載されます。）",null,null,null,null,null,null,90,2,1]
[]
[null,null,"備考欄（特記事項の他、除外事項や限定事項があればこの欄に記載できます。）",null,null,null,null,null,null,null,null,null,null,null,null,null,null,null,null,null,null,null,null,null,null,null,null,null,null,null,null,null,null,null,null,null,null,null,null,null,null,null,null,null,null,null,null,null,null,null,null,null,90,2,1]
[null,null,""]
[]
[]
[]
[]
[]
[]
[]
[]
[null,null,null,null,null,null,null,null,null,null,null,null,null,null,null,null,null,null,null,null,null,null,null,null,null,null,null,null,null,null,null,null,null,null,null,null,null,"※最大文字数：1024"]

{"sheet":"認定試験実施設備入力","index":8,"n_rows":37,"n_cols":17,"rows_kept":37,"cut":false,"hidden":false,"merged":[[33,0,34,0],[0,2,1,5],[13,0,18,0],[2,2,3,2],[2,3,3,5],[4,2,5,2],[4,3,5,5],[6,2,7,2],[6,3,7,5],[19,0,26,0]]}
["VLAC-VF100:2024 r23",null,"VLAC認定試験を実施する設備"]
["発行年月日：2024年02月15日"]
[null,null,"試験所："]
["この表は試験場毎に作成して下さい。"]
[null,null,"試験場："]
["近接試験場は設備Noを連続で割り振って下さい。"]
["但し、合計が15を超える場合はこの限りではない。",null,"住所："]
["（例）枝番1,2が(現地審査日が同じ)近接の場合は、"]
["　　　枝番1：設備1～4、枝番2：設備5～8、"]
[null,null,"当該設備で実施する試験区分に\"〇\"を入力して下さい。認定拡大（試験設備を追加）は”●”を入力して下さい。現場試験に対して認定シンボル付き試験報告書を発行する場合は、「設置現場」の列を設けて\"〇\"または”●”を入力して下さい。"]
["試験区分",null,"設備　１","設備　２","設備　３","設備　４","設備　５","設備　６","設備　７","設備　８","設備　９","設備　１０","設備　１１","設備　１２","設備　１３","設備　１４","設備　１５"]
[null,"設備名称を入力→"]
[null,"Names of the facility\n（FCC登録設備のみ記載）"]
["電磁両立性エミッション","放射妨害波基準大地面上"]
[null,"放射妨害波準自由空間"]
[null,"妨害波磁界強度"]
[null,"妨害波電力"]
[null,"伝導妨害波電源ポート"]
[null,"伝導妨害波通信ポート"]
["電磁両立性イミュニティ","静電気"]
[null,"放射電磁界"]
[null,"電気的過渡バースト"]
[null,"サージ"]
[null,"無線周波伝導妨害波"]
[null,"放射磁界"]
[null,"電源電圧変動"]
[null,"電力送電機器イミュニティ"]
["電源高調波","高調波、電圧動揺"]
["音響","空気伝播騒音"]
["通信機性能-1","無線機器"]
["通信機性能-2","電磁界ばく露"]
["通信機性能-3","電話端末機"]
["製品安全"]
["環境","消費電力"]
[null,"環境試験"]
["自動車・車載機器"]
["防衛・宇宙・航空"]

{"sheet":"リンク生成シート","index":9,"n_rows":166,"n_cols":5,"rows_kept":166,"cut":false,"hidden":true,"merged":[]}
["シート名","リンクセル名","リンク文字列","備考","パスワード：4321rewqfdsa"]
["AccessImport_0","C2","=表紙!W2&\"/\"&表紙!AB2&\"/\"&表紙!AE2"]
["AccessImport_0","C9","=表紙!K25"]
["AccessImport_0","C10","=表紙!S27"]
["AccessImport_0","C11","=表紙!L27"]
["AccessImport_0","C12","=表紙!K29"]
["AccessImport_0","C13","=表紙!K31"]
["AccessImport_0","C14","=表紙!L33"]
["AccessImport_0","C15","=表紙!S33"]
["AccessImport_0","C16","=表紙!K35"]
["AccessImport_0","C17","=表紙!K37"]
["AccessImport_0","C18","=表紙!K39"]
["AccessImport_0","C19","=表紙!K41"]
["AccessImport_0","C20","=表紙!K43"]
["AccessImport_0","C31","=表紙!E52"]
["AccessImport_0","C32","=表紙!E60"]
["AccessImport_0","C33","=表紙!E68"]
["AccessImport_0","C34","=表紙!E76"]
["AccessImport_0","C35","=表紙!E84"]
["AccessImport_0","C36","=表紙!E92"]
["AccessImport_0","C37","=表紙!E100"]
["AccessImport_0","C38","=表紙!E108"]
["AccessImport_0","C39","=表紙!E116"]
["AccessImport_0","C40","=表紙!E124"]
["AccessImport_0","C41","=表紙!E55"]
["AccessImport_0","C42","=表紙!E63"]
["AccessImport_0","C43","=表紙!E71"]
["AccessImport_0","C44","=表紙!E79"]
["AccessImport_0","C45","=表紙!E87"]
["AccessImport_0","C46","=表紙!E95"]
["AccessImport_0","C47","=表紙!E103"]
["AccessImport_0","C48","=表紙!E111"]
["AccessImport_0","C49","=表紙!E119"]
["AccessImport_0","C50","=表紙!E127"]
["AccessImport_0","C51","=表紙!E57"]
["AccessImport_0","C52","=表紙!E65"]
["AccessImport_0","C53","=表紙!E73"]
["AccessImport_0","C54","=表紙!E81"]
["AccessImport_0","C55","=表紙!E89"]
["AccessImport_0","C56","=表紙!E97"]
["AccessImport_0","C57","=表紙!E105"]
["AccessImport_0","C58","=表紙!E113"]
["AccessImport_0","C59","=表紙!E121"]
["AccessImport_0","C60","=表紙!E129"]
["AccessImport_0","C61","=COUNTIF(C31:C40,\"<>0\")"]
["AccessImport_0","C62","=IF(試験場_1_主試験場,D21,IF(試験場_2_主試験場,D22,IF(試験場_3_主試験場,D23,IF(試験場_4_主試験場,D24,IF(試験場_5_主試験場,D25,IF(試験場_6_主試験場,D26,IF(試験場_7_主試験場,D27,IF(試験場_8_主試験場,D28,IF(試験場_9_主試験場,D29,IF(試験場_10_主試験場,D30,\"\"))))))))))"]
["AccessImport_0","C63","=基本情報入力!C3"]
["AccessImport_0","C64","=基本情報入力!C6"]
["AccessImport_0","C65","=基本情報入力!C7"]
["AccessImport_0","C66","=IF(D66=1,TRUE,FALSE)"]
["AccessImport_0","C67","=IF(基本情報入力!E70<>\"\",CONCATENATE(YEAR(基本情報入力!E70),\"/\",MONTH(基本情報入力!E70),\"/\",DAY(基本情報入力!E70)),\"\")"]
["AccessImport_0","C68","=基本情報入力!J70"]
["AccessImport_0","C69","=基本情報入力!N70"]
["AccessImport_0","C70","=基本情報入力!Q70"]
["AccessImport_0","C71","=基本情報入力!T70"]
["AccessImport_0","C72","=IF(D72=\"有\",TRUE,FALSE)"]
["AccessImport_0","C73","=基本情報入力!Z70"]
["AccessImport_0","C74","=IF(D74=1,1,0)"]
["AccessImport_0","C75","=基本情報入力!S73"]
["AccessImport_0","C76","=基本情報入力!AA73"]
["AccessImport_0","C77","=基本情報入力!AE70"]
["AccessImport_0","C78","=英文名称入力!B5"]
["AccessImport_0","C79","=英文名称入力!B8"]
["AccessImport_0","C80","=英文名称入力!B11"]
["AccessImport_0","C81","=英文名称入力!B14"]
["AccessImport_0","C82","=英文名称入力!B17"]
["AccessImport_0","C83","=英文名称入力!B20"]
["AccessImport_0","C84","=英文名称入力!B23"]
["AccessImport_0","C85","=IF(D85=1,TRUE,FALSE)"]
["AccessImport_0","C86","=IF(D86=1,TRUE,FALSE)"]
["AccessImport_0","C87","=試験区分入力!A3"]
["AccessImport_0","C88","=試験区分入力!U3"]
["AccessImport_0","C89","=試験区分入力!U4"]
["AccessImport_0","C90","=試験区分入力!AB3"]
["AccessImport_0","C91","=試験区分入力!AJ3"]
["AccessImport_0","C92","=試験区分_備考欄"]
["AccessImport_0","C93","=事務局用メニュー!B6"]
["AccessImport_0","D2","-"]
["AccessImport_0","D3","-"]
["AccessImport_0","D4","=表紙!P11"]
["AccessImport_0","D5","=表紙!P13"]
["AccessImport_0","D6","=表紙!P15"]
["AccessImport_0","D7","=表紙!P17"]
["AccessImport_0","D8","=表紙!P19"]
["AccessImport_0","D9","-"]
["AccessImport_0","D10","-"]
["AccessImport_0","D11","=表紙!O27"]
["AccessImport_0","D12","-"]
["AccessImport_0","D13","-"]
["AccessImport_0","D14","=表紙!O33"]
["AccessImport_0","D15","-"]
["AccessImport_0","D16","-"]
["AccessImport_0","D17","-"]
["AccessImport_0","D18","-"]
["AccessImport_0","D19","-"]
["AccessImport_0","D20","-"]
["AccessImport_0","D21","=IF(表紙!AA52=\"\",\"\",表紙!AA52)"]
["AccessImport_0","D22","=IF(表紙!AA60=\"\",\"\",表紙!AA60)"]
["AccessImport_0","D23","=IF(表紙!AA68=\"\",\"\",表紙!AA68)"]
["AccessImport_0","D24","=IF(表紙!AA76=\"\",\"\",表紙!AA76)"]
["AccessImport_0","D25","=IF(表紙!AA84=\"\",\"\",表紙!AA84)"]
["AccessImport_0","D26","=IF(表紙!AA92=\"\",\"\",表紙!AA92)"]
["AccessImport_0","D27","=IF(表紙!AA100=\"\",\"\",表紙!AA100)"]
["AccessImport_0","D28","=IF(表紙!AA108=\"\",\"\",表紙!AA108)"]
["AccessImport_0","D29","=IF(表紙!AA116=\"\",\"\",表紙!AA116)"]
["AccessImport_0","D30","=IF(表紙!AA124=\"\",\"\",表紙!AA124)"]
["AccessImport_0","D31","=IF(表紙!AA52=\"\",\"\",表紙!AA52)"]
["AccessImport_0","D32","=IF(表紙!AA60=\"\",\"\",表紙!AA60)"]
["AccessImport_0","D33","=IF(表紙!AA68=\"\",\"\",表紙!AA68)"]
["AccessImport_0","D34","=IF(表紙!AA76=\"\",\"\",表紙!AA76)"]
["AccessImport_0","D35","=IF(表紙!AA84=\"\",\"\",表紙!AA84)"]
["AccessImport_0","D36","=IF(表紙!AA92=\"\",\"\",表紙!AA92)"]
["AccessImport_0","D37","=IF(表紙!AA100=\"\",\"\",表紙!AA100)"]
["AccessImport_0","D38","=IF(表紙!AA108=\"\",\"\",表紙!AA108)"]
["AccessImport_0","D39","=IF(表紙!AA116=\"\",\"\",表紙!AA116)"]
["AccessImport_0","D40","=IF(表紙!AA124=\"\",\"\",表紙!AA124)"]
["AccessImport_0","D41","=表紙!H55"]
["AccessImport_0","D42","=表紙!H63"]
["AccessImport_0","D43","=表紙!H71"]
["AccessImport_0","D44","=表紙!H79"]
["AccessImport_0","D45","=表紙!H87"]
["AccessImport_0","D46","=表紙!H95"]
["AccessImport_0","D47","=表紙!H103"]
["AccessImport_0","D48","=表紙!H111"]
["AccessImport_0","D49","=表紙!H119"]
["AccessImport_0","D50","=表紙!H127"]
["AccessImport_0","D51","-"]
["AccessImport_0","D52","-"]
["AccessImport_0","D53","-"]
["AccessImport_0","D54","-"]
["AccessImport_0","D55","-"]
["AccessImport_0","D56","-"]
["AccessImport_0","D57","-"]
["AccessImport_0","D58","-"]
["AccessImport_0","D59","-"]
["AccessImport_0","D60","-"]
["AccessImport_0","D61","-"]
["AccessImport_0","D62","-"]
["AccessImport_0","D63","=IF(基本情報入力!Y3=\"\",\"\",基本情報入力!Y3)"]
["AccessImport_0","D64","=基本情報入力!F6"]
["AccessImport_0","D65","-"]
["AccessImport_0","D67","-"]
["AccessImport_0","D68","-"]
["AccessImport_0","D69","-"]
["AccessImport_0","D70","-"]
["AccessImport_0","D71","-"]
["AccessImport_0","D72","=基本情報入力!W70"]
["AccessImport_0","D73","-"]
["AccessImport_0","D75","-"]
["AccessImport_0","D76","-"]
["AccessImport_0","D77","-"]
["AccessImport_0","D78","-"]
["AccessImport_0","D79","-"]
["AccessImport_0","D80","-"]
["AccessImport_0","D81","-"]
["AccessImport_0","D82","-"]
["AccessImport_0","D83","-"]
["AccessImport_0","D84","-"]
["AccessImport_0","D87","1"]
["AccessImport_0","D88"]
["AccessImport_0","D89"]
["AccessImport_0","D90"]
["AccessImport_0","D91"]
["AccessImport_0","D92"]
["AccessImport_0","D93"]
["AccessImport_0","D94"]

{"sheet":"AccessImport_0","index":10,"n_rows":94,"n_cols":4,"rows_kept":94,"cut":false,"hidden":true,"merged":[]}
["シート名","項目","値_1","値_2"]
["表紙","申請日",{"$f":"表紙!W2&\"/\"&表紙!AB2&\"/\"&表紙!AE2","v":"//"},"-"]
["表紙","申請種別_新規",false,"-"]
["表紙","申請種別_更新",false,{"$f":"表紙!P11","v":0}]
["表紙","申請種別_拡大",false,{"$f":"表紙!P13","v":0}]
["表紙","申請種別_変更",false,{"$f":"表紙!P15","v":0}]
["表紙","申請種別_初サーベイランス",false,{"$f":"表紙!P17","v":0}]
["表紙","申請種別_サーベイランス",false,{"$f":"表紙!P19","v":0}]
["表紙","試験所名称",{"$f":"表紙!K25","v":0},"-"]
["表紙","試験所所在地",{"$f":"表紙!S27","v":0},"-"]
["表紙","試験所郵便番号",{"$f":"表紙!L27","v":0},{"$f":"表紙!O27","v":0}]
["表紙","代表者の所属",{"$f":"表紙!K29","v":0},"-"]
["表紙","代表者氏名",{"$f":"表紙!K31","v":0},"-"]
["表紙","連絡担当者郵便番号",{"$f":"表紙!L33","v":0},{"$f":"表紙!O33","v":0}]
["表紙","連絡担当者所在地",{"$f":"表紙!S33","v":0},"-"]
["表紙","連絡担当者所属",{"$f":"表紙!K35","v":0},"-"]
["表紙","連絡担当者氏名",{"$f":"表紙!K37","v":0},"-"]
["表紙","連絡担当者電話番号",{"$f":"表紙!K39","v":0},"-"]
["表紙","連絡担当者FAX番号",{"$f":"表紙!K41","v":0},"-"]
["表紙","連絡担当者Email",{"$f":"表紙!K43","v":0},"-"]
["表紙","試験場_1_主試験場",false,{"$f":"IF(表紙!AA52=\"\",\"\",表紙!AA52)","v":""}]
["表紙","試験場_2_主試験場",false,{"$f":"IF(表紙!AA60=\"\",\"\",表紙!AA60)","v":""}]
["表紙","試験場_3_主試験場",false,{"$f":"IF(表紙!AA68=\"\",\"\",表紙!AA68)","v":""}]
["表紙","試験場_4_主試験場",false,{"$f":"IF(表紙!AA76=\"\",\"\",表紙!AA76)","v":""}]
["表紙","試験場_5_主試験場",false,{"$f":"IF(表紙!AA84=\"\",\"\",表紙!AA84)","v":""}]
["表紙","試験場_6_主試験場",false,{"$f":"IF(表紙!AA92=\"\",\"\",表紙!AA92)","v":""}]
["表紙","試験場_7_主試験場",false,{"$f":"IF(表紙!AA100=\"\",\"\",表紙!AA100)","v":""}]
["表紙","試験場_8_主試験場",false,{"$f":"IF(表紙!AA108=\"\",\"\",表紙!AA108)","v":""}]
["表紙","試験場_9_主試験場",false,{"$f":"IF(表紙!AA116=\"\",\"\",表紙!AA116)","v":""}]
["表紙","試験場_10_主試験場",false,{"$f":"IF(表紙!AA124=\"\",\"\",表紙!AA124)","v":""}]
["表紙","試験場_1_名称",{"$f":"表紙!E52","v":0},{"$f":"IF(表紙!AA52=\"\",\"\",表紙!AA52)","v":""}]
["表紙","試験場_2_名称",{"$f":"表紙!E60","v":0},{"$f":"IF(表紙!AA60=\"\",\"\",表紙!AA60)","v":""}]
["表紙","試験場_3_名称",{"$f":"表紙!E68","v":0},{"$f":"IF(表紙!AA68=\"\",\"\",表紙!AA68)","v":""}]
["表紙","試験場_4_名称",{"$f":"表紙!E76","v":0},{"$f":"IF(表紙!AA76=\"\",\"\",表紙!AA76)","v":""}]
["表紙","試験場_5_名称",{"$f":"表紙!E84","v":0},{"$f":"IF(表紙!AA84=\"\",\"\",表紙!AA84)","v":""}]
["表紙","試験場_6_名称",{"$f":"表紙!E92","v":0},{"$f":"IF(表紙!AA92=\"\",\"\",表紙!AA92)","v":""}]
["表紙","試験場_7_名称",{"$f":"表紙!E100","v":0},{"$f":"IF(表紙!AA100=\"\",\"\",表紙!AA100)","v":""}]
["表紙","試験場_8_名称",{"$f":"表紙!E108","v":0},{"$f":"IF(表紙!AA108=\"\",\"\",表紙!AA108)","v":""}]
["表紙","試験場_9_名称",{"$f":"表紙!E116","v":0},{"$f":"IF(表紙!AA116=\"\",\"\",表紙!AA116)","v":""}]
["表紙","試験場_10_名称",{"$f":"表紙!E124","v":0},{"$f":"IF(表紙!AA124=\"\",\"\",表紙!AA124)","v":""}]
["表紙","試験場_1_郵便番号",{"$f":"表紙!E55","v":0},{"$f":"表紙!H55","v":0}]
["表紙","試験場_2_郵便番号",{"$f":"表紙!E63","v":0},{"$f":"表紙!H63","v":0}]
["表紙","試験場_3_郵便番号",{"$f":"表紙!E71","v":0},{"$f":"表紙!H71","v":0}]
["表紙","試験場_4_郵便番号",{"$f":"表紙!E79","v":0},{"$f":"表紙!H79","v":0}]
["表紙","試験場_5_郵便番号",{"$f":"表紙!E87","v":0},{"$f":"表紙!H87","v":0}]
["表紙","試験場_6_郵便番号",{"$f":"表紙!E95","v":0},{"$f":"表紙!H95","v":0}]
["表紙","試験場_7_郵便番号",{"$f":"表紙!E103","v":0},{"$f":"表紙!H103","v":0}]
["表紙","試験場_8_郵便番号",{"$f":"表紙!E111","v":0},{"$f":"表紙!H111","v":0}]
["表紙","試験場_9_郵便番号",{"$f":"表紙!E119","v":0},{"$f":"表紙!H119","v":0}]
["表紙","試験場_10_郵便番号",{"$f":"表紙!E127","v":0},{"$f":"表紙!H127","v":0}]
["表紙","試験場_1_住所",{"$f":"表紙!E57","v":0},"-"]
["表紙","試験場_2_住所",{"$f":"表紙!E65","v":0},"-"]
["表紙","試験場_3_住所",{"$f":"表紙!E73","v":0},"-"]
["表紙","試験場_4_住所",{"$f":"表紙!E81","v":0},"-"]
["表紙","試験場_5_住所",{"$f":"表紙!E89","v":0},"-"]
["表紙","試験場_6_住所",{"$f":"表紙!E97","v":0},"-"]
["表紙","試験場_7_住所",{"$f":"表紙!E105","v":0},"-"]
["表紙","試験場_8_住所",{"$f":"表紙!E113","v":0},"-"]
["表紙","試験場_9_住所",{"$f":"表紙!E121","v":0},"-"]
["表紙","試験場_10_住所",{"$f":"表紙!E129","v":0},"-"]
["表紙","試験場数",{"$f":"COUNTIF(C31:C40,\"<>0\")","v":0},"-"]
["表紙","主試験場枝番号",{"$f":"IF(試験場_1_主試験場,D21,IF(試験場_2_主試験場,D22,IF(試験場_3_主試験場,D23,IF(試験場_4_主試験場,D24,IF(試験場_5_主試験場,D25,IF(試験場_6_主試験場,D26,IF(試験場_7_主試験場,D27,IF(試験場_8_主試験場,D28,IF(試験場_9_主試験場,D29,IF(試験場_10_主試験場,D30,\"\"))))))))))","v":""},"-"]
["基本情報入力","試験場_名称",{"$f":"基本情報入力!C3","v":0},{"$f":"IF(基本情報入力!Y3=\"\",\"\",基本情報入力!Y3)","v":""}]
["基本情報入力","試験場_郵便番号",{"$f":"基本情報入力!C6","v":0},{"$f":"基本情報入力!F6","v":0}]
["基本情報入力","試験場_住所",{"$f":"基本情報入力!C7","v":0},"-"]
["基本情報入力","英文認定証要否",{"$f":"IF(D66=1,TRUE,FALSE)","v":true},1]
["基本情報入力","VLAC記入欄_受付日",{"$f":"IF(基本情報入力!E68<>\"\",CONCATENATE(YEAR(基本情報入力!E68),\"/\",MONTH(基本情報入力!E68),\"/\",DAY(基本情報入力!E68)),\"\")","v":""},"-"]
["基本情報入力","VLAC記入欄_受付番号",{"$f":"基本情報入力!J68","v":0},"-"]
["基本情報入力","VLAC記入欄_管理費区分",{"$f":"基本情報入力!N68","v":0},"-"]
["基本情報入力","VLAC記入欄_基本単位",{"$f":"基本情報入力!Q68","v":0},"-"]
["基本情報入力","VLAC記入欄_追加単位",{"$f":"基本情報入力!T68","v":0},"-"]
["基本情報入力","VLAC記入欄_内部校正",{"$f":"IF(D72=\"有\",TRUE,FALSE)","v":false},{"$f":"基本情報入力!W68","v":0}]
["基本情報入力","VLAC記入欄_認定範囲の品質システム",{"$f":"基本情報入力!Z68","v":0},"-"]
["基本情報入力","VLAC記入欄_現地調査有無",{"$f":"IF(D74=1,1,0)","v":1},1]
["基本情報入力","VLAC記入欄_審査員数",{"$f":"基本情報入力!S71","v":0},"-"]
["基本情報入力","VLAC記入欄_審査日数",{"$f":"基本情報入力!AA71","v":0},"-"]
["基本情報入力","VLAC記入欄_備考",{"$f":"基本情報入力!AE68","v":0},"-"]
["英文名称入力","英文試験所名称",{"$f":"英文名称入力!B5","v":0},"-"]
["英文名称入力","英文試験所所在地",{"$f":"英文名称入力!B8","v":0},"-"]
["英文名称入力","英文試験場名称",{"$f":"英文名称入力!B11","v":0},"-"]
["英文名称入力","英文試験場所在地",{"$f":"英文名称入力!B14","v":0},"-"]
["英文名称入力","英文試験所責任者名",{"$f":"英文名称入力!B17","v":0},"-"]
["英文名称入力","英文試験所責任者職責タイトル",{"$f":"英文名称入力!B20","v":0},"-"]
["英文名称入力","試験所責任者メールアドレス",{"$f":"英文名称入力!B23","v":0},"-"]
["英文名称入力","外部への試験業務サービス",{"$f":"IF(D85=1,TRUE,FALSE)","v":false},2]
["英文名称入力","FCC試験所登録を希望する",{"$f":"IF(D86=1,TRUE,FALSE)","v":false},2]
["試験区分入力","試験場名称",{"$f":"試験区分入力!A3","v":0},1]
["試験区分入力","試験場管理責任者名",{"$f":"試験区分入力!U3","v":0}]
["試験区分入力","試験場管理責任者_所属",{"$f":"試験区分入力!U4","v":0}]
["試験区分入力","試験場管理責任者_Email",{"$f":"試験区分入力!AB3","v":0}]
["試験区分入力","試験場管理責任者_電話番号",{"$f":"試験区分入力!AJ3","v":0}]
["試験区分入力","備考欄",{"$f":"試験区分_備考欄","v":""}]
["事務局用メニュー","VF100バージョン",{"$f":"事務局用メニュー!B6","v":1}]
["試験規格入力","試験規格_備考欄",{"$f":"試験規格_備考欄","v":""}]

{"sheet":"AccessImport_1","index":11,"n_rows":7,"n_cols":3,"rows_kept":7,"cut":false,"hidden":true,"merged":[]}
["項番","階層","試験項目コード"]
[1,1,"項目_エミ"]
[2,2,"項目_エミ_放射妨害波"]
[4,1,"項目_イミ"]
[5,2,"項目_イミ_静電気"]
[44,1,"項目_環境"]
[45,2,"項目_環境_国際エネルギースタープログラム"]

{"sheet":"AccessImport_2","index":12,"n_rows":8,"n_cols":5,"rows_kept":8,"cut":false,"hidden":true,"merged":[]}
["項番","階層","試験区分コード","測定周波数範囲最小","測定周波数範囲最大"]
[1,1,"区分_エミ"]
[2,2,"区分_エミ_放射_エンク"]
[3,3,"区分_エミ_放射_エンク_妨害電界"]
[4,4,"区分_エミ_放射_エンク_妨害電界_基準"]
[6,5,"区分_エミ_放射_エンク_妨害電界_基準_測定周波数範囲","20 MHz","1 GHz"]
[14,3,"区分_エミ_放射_エンク_妨害磁界"]
[15,4,"区分_エミ_放射_エンク_妨害磁界_ループアンテナ"]

{"sheet":"AccessImport_3","index":13,"n_rows":94,"n_cols":4,"rows_kept":94,"cut":false,"hidden":true,"merged":[]}
["シート名","項目","値_1","値_2"]
["表紙","申請日","2022/5/18","-"]
["表紙","申請種別_新規",true,"-"]
["表紙","申請種別_更新",false,0]
["表紙","申請種別_拡大",false,0]
["表紙","申請種別_変更",false,0]
["表紙","申請種別_初サーベイランス",false,0]
["表紙","申請種別_サーベイランス",false,0]
["表紙","試験所名称","株式会社アイセル","-"]
["表紙","試験所所在地","東京都台東区上野3-24-6","-"]
["表紙","試験所郵便番号","110","0005"]
["表紙","代表者の所属","ERP部","-"]
["表紙","代表者氏名","アイセル太郎","-"]
["表紙","連絡担当者郵便番号","110","0005"]
["表紙","連絡担当者所在地","東京都台東区上野3-24-6","-"]
["表紙","連絡担当者所属","ERP部","-"]
["表紙","連絡担当者氏名","アイセル太郎","-"]
["表紙","連絡担当者電話番号","0356525236","-"]
["表紙","連絡担当者FAX番号","0356525247","-"]
["表紙","連絡担当者Email","test@aisel.ne.jp","-"]
["表紙","試験場_1_主試験場",true,""]
["表紙","試験場_2_主試験場",false,""]
["表紙","試験場_3_主試験場",false,""]
["表紙","試験場_4_主試験場",false,""]
["表紙","試験場_5_主試験場",false,""]
["表紙","試験場_6_主試験場",false,""]
["表紙","試験場_7_主試験場",false,""]
["表紙","試験場_8_主試験場",false,""]
["表紙","試験場_9_主試験場",false,""]
["表紙","試験場_10_主試験場",false,""]
["表紙","試験場_1_名称","上野フロンティアタワー",""]
["表紙","試験場_2_名称",0,""]
["表紙","試験場_3_名称",0,""]
["表紙","試験場_4_名称",0,""]
["表紙","試験場_5_名称",0,""]
["表紙","試験場_6_名称",0,""]
["表紙","試験場_7_名称",0,""]
["表紙","試験場_8_名称",0,""]
["表紙","試験場_9_名称",0,""]
["表紙","試験場_10_名称",0,""]
["表紙","試験場_1_郵便番号","110","0005"]
["表紙","試験場_2_郵便番号",0,0]
["表紙","試験場_3_郵便番号",0,0]
["表紙","試験場_4_郵便番号",0,0]
["表紙","試験場_5_郵便番号",0,0]
["表紙","試験場_6_郵便番号",0,0]
["表紙","試験場_7_郵便番号",0,0]
["表紙","試験場_8_郵便番号",0,0]
["表紙","試験場_9_郵便番号",0,0]
["表紙","試験場_10_郵便番号",0,0]
["表紙","試験場_1_住所","東京都台東区上野3-24-6","-"]
["表紙","試験場_2_住所",0,"-"]
["表紙","試験場_3_住所",0,"-"]
["表紙","試験場_4_住所",0,"-"]
["表紙","試験場_5_住所",0,"-"]
["表紙","試験場_6_住所",0,"-"]
["表紙","試験場_7_住所",0,"-"]
["表紙","試験場_8_住所",0,"-"]
["表紙","試験場_9_住所",0,"-"]
["表紙","試験場_10_住所",0,"-"]
["表紙","試験場数",1,"-"]
["表紙","主試験場枝番号","","-"]
["基本情報入力","試験場_名称","上野フロンティアタワー",""]
["基本情報入力","試験場_郵便番号","110","0005"]
["基本情報入力","試験場_住所","東京都台東区上野3-24-6","-"]
["基本情報入力","英文認定証要否",true,1]
["基本情報入力","VLAC記入欄_受付日","","-"]
["基本情報入力","VLAC記入欄_受付番号",0,"-"]
["基本情報入力","VLAC記入欄_管理費区分",0,"-"]
["基本情報入力","VLAC記入欄_基本単位",0,"-"]
["基本情報入力","VLAC記入欄_追加単位",0,"-"]
["基本情報入力","VLAC記入欄_内部校正",false,0]
["基本情報入力","VLAC記入欄_認定範囲の品質システム",0,"-"]
["基本情報入力","VLAC記入欄_現地調査有無",1,1]
["基本情報入力","VLAC記入欄_審査員数",0,"-"]
["基本情報入力","VLAC記入欄_審査日数",0,"-"]
["基本情報入力","VLAC記入欄_備考",0,"-"]
["英文名称入力","英文試験所名称","Aisel Corp.","-"]
["英文名称入力","英文試験所所在地","Tokyo","-"]
["英文名称入力","英文試験場名称","Ueno Frontier Tower","-"]
["英文名称入力","英文試験場所在地","Tokyo","-"]
["英文名称入力","英文試験所責任者名","Taro Aisel","-"]
["英文名称入力","英文試験所責任者職責タイトル","Manager","-"]
["英文名称入力","試験所責任者メールアドレス","test@aisel.ne.jp","-"]
["英文名称入力","外部への試験業務サービス",false,2]
["英文名称入力","FCC試験所登録を希望する",false,2]
["試験区分入力","試験場名称","上野フロンティアタワー",1]
["試験区分入力","試験場管理責任者名","アイセル太郎"]
["試験区分入力","試験場管理責任者_所属","ERP部"]
["試験区分入力","試験場管理責任者_Email","test@aisel.ne.jp"]
["試験区分入力","試験場管理責任者_電話番号","03-5652-5236"]
["試験区分入力","備考欄",""]
["事務局用メニュー","VF100バージョン",1]
["試験規格入力","試験規格_備考欄",""]

{"sheet":"AccessImport","index":14,"n_rows":8,"n_cols":9,"rows_kept":8,"cut":false,"hidden":true,"merged":[]}
["項番","階層","試験規格コード","日本語文言","英語文言","親試験規格","枝番","新規格フラグ","下位試験規格コード"]
[1,1,"規格_エミッション"]
[14,2,"規格_エミッション_Aisel Certified|2021","Aisel Certified","Aisel Certified","規格_エミッション",null,null,"規格_イミュニティ"]
[14,2,"規格_エミッション_Aisel Certified|2022","Aisel Certified","Aisel Certified","規格_エミッション",null,null,"規格_イミュニティ"]
[80,1,"規格_環境"]
[81,2,"規格_環境_国際"]
[82,2,"規格_環境_国際_TEST製品","TEST製品","TEST Product","規格_環境_国際",null,null,"規格_環境_米国"]
[82,2,"規格_環境_国際_TEST製品2","TEST製品2","TEST Product2","規格_環境_国際",null,null,"規格_環境_米国"]

{"sheet":"設定_試験項目","index":15,"n_rows":64,"n_cols":10,"rows_kept":64,"cut":false,"hidden":true,"merged":[]}
[]
[]
[]
["項番","タイトル","階層","表示非表示","表示タイプ","枝番入力","親試験項目フラグ","試験項目コード","表示順","備考"]
[1,"エミッション",1,0,0,null,1,"項目_エミ",1]
[2,"放射妨害波（FCC、CISPR11関連規格の1 GHz超試験を含む）",2,0,0,null,0,"項目_エミ_放射妨害波",2]
[3,"伝導妨害波",2,0,0,null,0,"項目_エミ_伝導妨害波",3]
[4,"イミュニティ",1,0,0,null,1,"項目_イミ",4]
[5,"静電気",2,0,0,null,0,"項目_イミ_静電気",5]
[6,"放射電磁界",2,0,0,null,0,"項目_イミ_放射電磁界",6]
[7,"電気的過度バースト",2,0,0,null,0,"項目_イミ_電気的過渡バースト",7]
[8,"サージ",2,0,0,null,0,"項目_イミ_サージ",8]
[9,"無線周波伝導妨害波",2,0,0,null,0,"項目_イミ_無線周波伝導妨害",9]
[10,"放射磁界",2,0,0,null,0,"項目_イミ_放射磁界",10]
[11,"電源電圧変動",2,0,0,null,0,"項目_イミ_電源電圧変動",11]
[12,"1 GHz超放射妨害波エミッション(CISPR32関連規格, VCCI技術基準による1 GHz超の試験）",1,0,0,null,1,"項目_1GHz超放射妨害波エミ",12]
[13,"放送受信機イミュニティ",1,1,0,null,1,"項目_放送受信機イミ",13]
[14,"アンテナ端子",2,1,0,null,0,"項目_放送受信機イミ_アンテナ端子",14]
[15,"電源端子無線周波伝導妨害波",2,1,0,null,0,"項目_放送受信機イミ_電源端子",15]
[16,"筐体放射電磁界",2,1,0,null,0,"項目_放送受信機イミ_筺体放射電磁界",16]
[17,"放送受信機エミッション",1,1,0,null,1,"項目_放送受信機エミ",17]
[18,"放射妨害波",2,1,0,null,0,"項目_放送受信機エミ_放射妨害波",18]
[19,"伝導妨害波",2,1,0,null,0,"項目_放送受信機エミ_伝導妨害波",19]
[20,"電力送電機器イミュニティ",1,0,0,null,1,"項目_電力送電機器イミ",20,"生成後、AL列に「※試験区分入力シートの6.8項を参照　(r22)」を右寄せで設定"]
[21,"減衰振動波",2,1,0,null,0,"項目_電力送電機器イミ_減衰振動波",21]
[22,"リング振動波",2,1,0,null,0,"項目_電力送電機器イミ_リング振動波",22]
[23,"直流入力ポートリップル印加",2,1,0,null,0,"項目_電力送電機器イミ_直流入力ポートリップル印加",23]
[24,"電源高調波",1,0,0,null,1,"項目_電源高調波",24]
[25,"高調波電流",2,0,0,null,0,"項目_電源高調波_高調波電流",25]
[26,"電源電圧動揺",2,0,0,null,0,"項目_電源高調波_電源電圧動揺",26]
[27,"音響(空気伝搬騒音)",1,0,0,null,1,"項目_空気伝搬騒音",27]
[28,"通信機器性能１",1,0,0,null,1,"項目_通信機器1",28]
[29,"FCC",2,0,0,null,0,"項目_通信機器1_FCC",29]
[30,"カナダ",2,0,0,null,0,"項目_通信機器1_カナダ",30]
[31,"欧州",2,0,0,null,0,"項目_通信機器1_欧州",31]
[32,"電波法",2,0,0,null,0,"項目_通信機器1_電波法",32]
[33,"その他",2,0,0,null,0,"項目_通信機器1_その他",33]
[34,"通信機器性能2",1,0,0,null,1,"項目_通信機器2",34]
[35,"電磁界ばく露(局所比吸収率)",2,0,0,null,0,"項目_通信機器2_電磁界ばく露_局所比吸収率",35]
[36,"電磁界ばく露(磁界強度)",2,0,0,null,0,"項目_通信機器2_電磁界ばく露_磁界強度",36]
[37,"通信機器性能3",1,0,0,null,1,"項目_通信機器3",37]
[38,"公衆回線接続通信端末機器試験",2,0,0,null,0,"項目_通信機器3_有線通信機器",38]
[39,"製品安全",1,0,0,null,1,"項目_製品安全",39]
[40,"家電製品",2,0,0,null,0,"項目_製品安全_家電製品",40]
[41,"マルチメディア",2,0,0,null,0,"項目_製品安全_IT機器",41]
[42,"医用電気機器",2,0,0,null,0,"項目_製品安全_医用電気機器",42]
[43,"制御機器・計測機器",2,0,0,null,0,"項目_製品安全_制御機器計測機器",43]
[44,"環境（消費電力）",1,0,0,null,1,"項目_環境",44]
[45,"国際エネルギースタープログラム",2,0,0,null,0,"項目_環境_国際エネルギースタープログラム",45]
[46,"米国エネルギースタープログラム",2,0,0,null,0,"項目_環境_米国エネルギースタープログラム",46]
[47,"消費電力",2,0,0,null,0,"項目_環境_消費電力",47]
[48,"環境（環境試験）",1,0,0,null,1,"項目_環境-環境試験",48]
[49,"船級試験",2,0,0,null,0,"項目_環境-環境試験_船級試験",49]
[50,"自動車・車載機器",1,0,0,null,1,"項目_自動車車載機器",50]
[51,"ESA(車載部品)イミュニティ",2,0,0,null,0,"項目_自動車車載機器_ESA(車載部品)イミュニティ",51]
[52,"ESA(車載部品)エミッション",2,0,0,null,0,"項目_自動車車載機器_ESA(車載部品)エミッション",52]
[53,"自動車イミュニティ",2,0,0,null,0,"項目_自動車車載機器_自動車イミュニティ",53]
[54,"自動車エミッション",2,0,0,null,0,"項目_自動車車載機器_自動車エミッション",54]
[55,"防衛・宇宙・航空",1,0,0,null,1,"項目_防衛・宇宙・航空",55]
[56,"防衛・宇宙・航空イミュニティ",2,0,0,null,0,"項目_防衛・宇宙・航空_防衛・宇宙・航空イミュニティ",56]
[57,"防衛・宇宙・航空エミッション",2,0,0,null,0,"項目_防衛・宇宙・航空_防衛・宇宙・航空エミッション",57]
[58,"設置現場/製造現場での試験に対して認定シンボル付き試験報告書を発行する。",1,0,0,null,1,"項目_設置現場・製造現場での試験",58,"生成後、基本情報シートに出力された「タイトル」値のフォントサイズを8ptにする。"]
[59,"エミッション",2,0,0,null,0,"項目_設置現場・製造現場での試験_エミ",59]
[60,"イミュニティ",2,0,0,null,0,"項目_設置現場・製造現場での試験_イミ",60]

{"sheet":"設定_試験区分","index":16,"n_rows":202,"n_cols":16,"rows_kept":202,"cut":false,"hidden":true,"merged":[]}
[]
[]
[]
["項番","タイトル","階層","表示非表示","表示タイプ","測定周波数範囲","親試験区分フラグ","試験区分コード","表示順","備考","検査用VLOOKUP用","付属書","要付属書","文字入力列","入力文字","車載"]
[1,"5．試験区分－電磁両立性 エミッション",1,0,0,null,1,"区分_エミ"]
[2,"5.1．放射妨害波 （エンクロージャーポート）",2,0,0,null,0,"区分_エミ_放射_エンク",null,null,null,"(ﾒﾓ)周波数上限は、CISPR -18GHz, FCC -40GHz(SVSWRは18GHz迄)、"]
[3,"放射妨害波電界強度試験",3,0,0,null,0,"区分_エミ_放射_エンク_妨害電界",null,null,null,"CISPR 16-2-3, ANSI C63.4"]
[4,"基準大地面上",4,0,0,null,0,"区分_エミ_放射_エンク_妨害電界_基準",null,null,null,"（付属書VF102 or 103）","要付属書","M","：（電波半無響室またはオープンサイト）","◆車載含む"]
[5,"CISPR11関連の1 GHz超試験も含む",5,0,1,null,0,"",null,null,null,"(ﾒﾓ)CISPR11は磁界9kHz-30MHz,電界30MHz-1GHz、ETSI EN 302 608は9 kHz～が必要"]
[6,"測定周波数範囲 ：",5,0,4,"@[M-5]@～@[S-5]@",0,"区分_エミ_放射_エンク_妨害電界_基準_測定周波数範囲",null,null,null,"(ﾒﾓ)IEC60945は～2GHzの場合あり、[註]タイムドメイン(30MHz-1GHz)は上限出力が5dB下がる場合あり"]
[7,"基準大地面上",4,0,0,null,0,"区分_エミ_放射_エンク_妨害電界_基準_車載機器",null,null,null,"（付属書VF170）","要付属書","M","：車載機器試験(1m法)","◆車載専用"]
[8,"測定周波数範囲 ：",5,0,4,"@[M-5]@～@[S-5]@",0,"区分_エミ_放射_エンク_妨害電界_基準_車載機器_測定周波数範囲",null,null,null,"(ﾒﾓ)MIL規格も車載と同様の試験あり"]
[9,"準自由空間",4,0,0,null,0,"区分_エミ_放射_エンク_妨害電界_準自由_VF152",null,null,null,"（付属書VF152）","要付属書","M","：（電波半無響室またはオープンサイト）"]
[10,"VCCI-CISPR 32、CISPR 32関連規格、ANSI C63.4:2014/2017を含む場合に適用",5,0,1,null,0,"",null,null,null,"(ﾒﾓ)ANSI C63.4:2014 12項_ITE以外の装置、5.5.1項_1GHz超に試験設備、Annex D_NSA測定、"]
[11,"測定周波数範囲 ：",5,0,4,"@[M-5]@～@[S-5]@",0,"区分_エミ_放射_エンク_妨害電界_準自由_VF152_1GHz",null,null,null,"(ﾒﾓ)ANSI C63.4:2014：衛星室外機を含む放送受信機能の測定は除く（⇒衛星室外機とFM受信機(＜1GHz)の両方を除く）"]
[12,"準自由空間",4,0,0,null,0,"区分_エミ_放射_エンク_妨害電界_準自由_VF153",null,null,null,"（付属書VF153）","要付属書","M","：（全電波無響室）"]
[13,"測定周波数範囲 ：",5,0,4,"@[M-5]@～@[S-5]@",0,"区分_エミ_放射_エンク_妨害電界_準自由_VF153_測定周波数範囲"]
[14,"放射妨害波磁界強度試験",3,0,0,null,0,"区分_エミ_放射_エンク_妨害磁界"]
[15,"ループアンテナ",4,0,0,null,0,"区分_エミ_放射_エンク_妨害磁界_ループアンテナ"]
[16,"3軸ループ（ラージループ）",4,0,0,null,0,"区分_エミ_放射_エンク_妨害磁界_3軸ループ"]
[17,"等方性プローブ",4,0,0,null,0,"区分_エミ_放射_エンク_妨害磁界_等方性プローブ"]
[18,"その他の放射妨害波試験",3,0,0,null,0,"区分_エミ_放射_エンク_その他放射妨害波試験",null,"生成後\n・U列に右寄せで「試験名・周波数範囲：」、V:AH列を結合・左寄せ・下罫線、セルのロック解除で入力欄を作成　（※認定Sysには取り込まない）",null,"(ﾒﾓ)車載_CISPR 36(150kHz-30MHz)、防衛_???","要付属書","U|right","試験名・周波数範囲：","◆車載含む"]
[19,"妨害波電力試験（AC電源ポート）",3,0,0,null,0,"区分_エミ_放射_エンク_妨害電力",null,null,null,"CISPR 16-2-2(→測定方法)、(英訳)Absorbing clamp（誤用：Absorption clamp）"]
[20,"吸収クランプ",4,0,0,null,0,"区分_エミ_放射_エンク_妨害電力_CMAD_クランプ",null,null,null,"(ﾒﾓ)CMAD：CISPR16-1-3はAbsorbing Clamp, 同16-1-4はコモンモードAbsorbing Clamp"]
[21,"5.2．AC電源ポート伝導妨害波試験",2,0,0,null,0,"区分_エミ_伝導_AC電源",null,null,null,"（付属書VF104）","要付属書"]
[22,"妨害波電圧試験",3,0,0,null,0,"区分_エミ_伝導_AC電源_妨害電圧",null,null,null,"CISPR 16-2-1, ANSI C63.4"]
[23,"AMN",4,0,0,null,0,"区分_エミ_伝導_AC電源_妨害電圧_AMN",null,null,null,"(ﾒﾓ)擬似電源回路網(Artifical Mains Network),LISＮとも呼ぶ"]
[24,"高インピーダンスプローブ",4,0,0,null,0,"区分_エミ_伝導_AC電源_妨害電圧_高インピーダンスプローブ",null,null,null,"(ﾒﾓ)High Impedanse Probeは電流が大きくてAMNが使えない場合に使う。"]
[25,"5.3．通信ポート伝導妨害波試験",2,0,0,null,0,"区分_エミ_伝導_通信",null,null,null,"（付属書VF117）","要付属書"]
[26,"妨害波電圧試験",3,0,0,null,0,"区分_エミ_伝導_通信_妨害電圧",null,null,null,"↓(ﾒﾓ)CISPR22⇒AMN, ISN"]
[27,"AAN",4,0,0,null,0,"区分_エミ_伝導_通信_妨害電圧_AAN",null,null,null,"(ﾒﾓ)CISPR32⇒不平衡擬似回路網(Asymmetric Artifical Network),擬似通信回路網(ISN)"]
[28,"容量性電圧プローブ",4,0,0,null,0,"区分_エミ_伝導_通信_妨害電圧_容量性電圧プローブ",null,null,null,"(ﾒﾓ)容量性電圧プローブは最近は使わない"]
[29,"妨害波電流試験",3,0,0,null,0,"区分_エミ_伝導_通信_妨害電流"]
[30,"電流プローブ",4,0,0,null,0,"区分_エミ_伝導_通信_妨害電流_電流プローブ"]
[31,"5.4．DC電源ポート伝導妨害波試験 ",2,0,0,null,0,"区分_エミ_伝導_DC電源",null,null,null,"（付属書VF171）CISPR11は要求あり、CISPR14-1は要求なし","要付属書"]
[32,"妨害波電圧試験",3,0,0,null,0,"区分_エミ_伝導_DC電源_妨害電圧",null,null,null,"CISPR 16-2-1"]
[33,"AMN",4,0,0,null,0,"区分_エミ_伝導_DC電源_妨害電圧_AMN"]
[34,"高インピーダンスプローブ",4,0,0,null,0,"区分_エミ_伝導_DC電源_妨害電圧_高インピーダンスプローブ"]
[35,"車載機器伝導妨害波試験",3,0,0,null,0,"区分_エミ_伝導_DC電源_車載機器",null,null,null,"ISO 7637-2 （CDN）、(英訳)Conductive interference test against in-vehicle equipment ",null,null,null,"◆車載専用"]
[36,"電源線上の過渡妨害のエミッション",3,0,0,null,0,"区分_エミ_伝導_DC電源_電源線上の過渡妨害のエミッション",null,null,null,"[2023.2.15]「(英訳)Electrical transient conduction along supply lines」を追記",null,null,null,"◆車載専用"]
[37,"遮蔽された高電圧電源線上の過渡妨害のエミッション",3,0,0,null,0,"区分_エミ_伝導_DC電源_遮蔽高圧電源線過度妨害エミ",null,null,null,null,null,null,null,"◆車載専用"]
[38,"5.5．PLCポート伝導妨害波試験",2,0,0,null,0,"区分_エミ_伝導_PLC"]
[39,"妨害波電流試験",3,0,0,null,0,"区分_エミ_伝導_PLC_妨害電流"]
[40,"電流プローブ",4,0,0,null,0,"区分_エミ_伝導_PLC_妨害電流_電流プローブ"]
[41,"5.6．アンテナポート、RFモジュレーター出力ポート、チューナポート、ファイバーポート伝導妨害波試験",2,0,0,null,0,"区分_エミ_アンテナ",null,null,null,"（付属書VF117）","要付属書"]
[42,"妨害波電圧試験",3,0,0,null,0,"区分_エミ_アンテナ_妨害電圧"]
[43,"AAN",4,0,0,null,0,"区分_エミ_アンテナ_妨害電圧_AAN"]
[44,"容量性電圧プローブ",4,0,0,null,0,"区分_エミ_アンテナ_妨害電圧_容量性電圧プローブ"]
[45,"妨害波電流試験",3,0,0,null,0,"区分_エミ_アンテナ_妨害電流"]
[46,"電流プローブ",4,0,0,null,0,"区分_エミ_アンテナ_妨害電流_妨害電流_電流プローブ"]
[47,"希望信号電圧および妨害波端子電圧試験",3,0,0,null,0,"区分_エミ_アンテナ_希望信号電圧および妨害端子電圧試験"]
[48,"選択性高周波電圧計",4,0,0,null,0,"区分_エミ_アンテナ_希望信号電圧および妨害端子電圧試験_選択性高周波電圧計"]
[49,"屋外ユニット局部発振放射電力試験",3,0,0,null,0,"区分_エミ_アンテナ_屋外ユニット局部発振放射電力試験"]
[50,"5.7. 補助ポート伝導妨害波試験",2,0,0,null,0,"区分_エミ_補助ポート伝導妨害波",null,null,null,"CISPR14-1,CISPR25、(英訳)5.7. Conducted disturbance Measurement: Auxiliary ports",null,null,null,"◆車載含む"]
[51,"妨害波電圧試験",3,0,0,null,0,"区分_エミ_補助ポート伝導妨害波_妨害電圧",null,null,null,"（英訳)Voltage measurement"]
[52,"高インピーダンスプローブ",4,0,0,null,0,"区分_エミ_補助ポート伝導妨害波_妨害電圧_高インピーダンスプローブ",null,null,null,"（英訳)High impedance probe"]
[53,"妨害波電流試験",3,0,0,null,0,"区分_エミ_補助ポート伝導妨害波_妨害電流",null,null,null,"（英訳)Current measurement"]
[54,"電流プローブ",4,0,0,null,0,"区分_エミ_補助ポート伝導妨害波_妨害電流_電流プローブ",null,null,null,"（英訳)Current probe"]
[55,"6．試験区分－電磁両立性イミュニティ",1,0,0,null,1,"区分_イミ"]
[56,"6.1．静電気",2,0,0,null,0,"区分_イミ_静電気",null,null,null,"（付属書VF128A）","要付属書"]
[57,"静電気放電試験",3,0,0,null,0,"区分_イミ_静電気_静電気放電",null,null,null,"IEC 61000-4-2/EN 61000-4-2"]
[58,"車載用機器",3,0,0,null,0,"区分_イミ_静電気_車載用機器",null,null,null,"ISO 10605",null,null,null,"◆車載専用"]
[59,"6.2．放射電磁界",2,0,0,null,0,"区分_イミ_放射電磁界"]
[60,"放射電磁界イミュニティ試験(擬似自由空間アンテナ放射) ",3,0,0,null,0,"区分_イミ_放射電磁界_放射電磁界イミ_疑似自由空間アンテナ放射",null,null,null,"（付属書VF128B）","要付属書"]
[61,"電波暗室",4,0,4,"@[W-5]@～@[AC-5]@",0,"区分_イミ_放射電磁界_放射電磁界イミ_疑似自由空間アンテナ放射_電波暗室",null,null,null,"IEC 61000-4-3/EN 61000-4-3",null,"Q","測定周波数範囲 ："]
[62,"FARによる試験",4,0,4,"@[W-5]@～@[AC-5]@",0,"区分_イミ_放射電磁界_放射電磁界イミ_疑似自由空間アンテナ放射_FARによる試験",null,null,null,"IEC 61000-4-22/EN 61000-4-22",null,"Q","測定周波数範囲 ："]
[63,"車両",4,0,4,"@[W-5]@～@[AC-5]@",0,"区分_イミ_放射電磁界_放射電磁界イミ_疑似自由空間アンテナ放射_車両",null,null,null,"ISO 11451-2",null,"Q","測定周波数範囲 ：","◆車載専用"]
[64,"車載用機器",4,0,4,"@[W-5]@～@[AC-5]@",0,"区分_イミ_放射電磁界_放射電磁界イミ_疑似自由空間アンテナ放射_車載用機器",null,null,null,"ISO 11451-2、ISO 11452-2、Max 2.5GHz、",null,"Q","測定周波数範囲 ：","◆車載専用"]
[65,"近接電磁界イミュニティ試験",4,0,4,"@[W-5]@～@[AC-5]@",0,"区分_イミ_放射電磁界_放射電磁界イミ_疑似自由空間アンテナ放射_近接電磁界イミュニティ試験",null,null,null,"IEC 61000-4-39、(英訳)Radiated fields in closeproximity、(帯域)9kHz-150kHz, 150kHz-26MHz, 380KHz-6GHz",null,"Q","測定周波数範囲 ："]
[66,"近接電磁界イミュニティ試験（車載）",4,0,4,"@[W-5]@～@[AC-5]@",0,"区分_イミ_放射電磁界_放射電磁界イミ_疑似自由空間アンテナ放射_近接電磁界イミ(車載)",null,null,null,"可搬型送信機法：[2023.8.4]ISO 11452-9 (380MHz－5GHz)、[2023.12.xx]ISO 11452-3 (1.8MHz－5.85GHz)",null,"Q","測定周波数範囲 ：","◆車載専用"]
[67,"放射電磁界イミュニティ試験（TEMセル、ストリップライン、トリプレート）",3,0,0,null,0,"区分_イミ_放射電磁界_放射電磁界イミ_TEMセル",null,null,null,"（付属書VF128B-TEM）、[2023.2.15]トリプレート（Tri-plate line）を追記","要付属書"]
[68,"TEMセル",4,0,4,"@[W-5]@～@[AC-5]@",0,"区分_イミ_放射電磁界_放射電磁界イミ_TEMセル_TEMセル",null,null,null,"ISO 11452-3(→TEMセル)、",null,"Q","測定周波数範囲 ：","◆車載専用"]
[69,"ストリップライン",4,0,4,"@[W-5]@～@[AC-5]@",0,"区分_イミ_放射電磁界_放射電磁界イミ_TEMセル_ストリップライン",null,null,null,"ISO 11452-5",null,"Q","測定周波数範囲 ：","◆車載専用"]
[70,"トリプレート",4,0,4,"@[W-5]@～@[AC-5]@",0,"区分_イミ_放射電磁界_放射電磁界イミ_TEMセル_トリプレート",null,null,null,"IEC/EN 61000-4-20(→ﾄﾘﾌﾟﾚｰﾄﾗｲﾝ tri-plate line)、SAE J1113-25",null,"Q","測定周波数範囲 ：","◆車載専用"]
[71,"放射電磁界イミュニティ試験（反射箱）",3,0,0,null,0,"区分_イミ_放射電磁界_放射電磁界イミ_反射箱",null,null,null,"（付属書VF128B-RVC）","要付属書"]
[72,"リバプレーションチャンバー",4,0,4,"@[W-5]@～@[AC-5]@",0,"区分_イミ_放射電磁界_放射電磁界イミ_反射箱_IEC_61000_4_21",null,null,null,"IEC 61000-4-21, ISO 11451-5,  ISO 11452-11(Reverberation chamber)",null,"Q","測定周波数範囲 ："]
[73,"6.3．電気的過渡バースト ",2,0,0,null,0,"区分_イミ_電気的過渡バースト",null,null,null,"（付属書VF128C）","要付属書"]
[74,"電源ポート伝導イミュニティ試験",3,0,0,null,0,"区分_イミ_電気的過渡バースト_電源ポート伝導イミ",null,null,null,"IEC 61000-4-4、同4-13(高調波低周波イミュニティ試験)、同4-14(電源電圧変動イミュニティ試験)"]
[75,"通信／信号ポート伝導イミュニティ試験",3,0,0,null,0,"区分_イミ_電気的過渡バースト_通信_信号ポート伝導イミ",null,null,null,"IEC 61000-4-4、同-4-28(電源周波数変動イミュニティ試験)"]
[76,"電源線上の過渡妨害へのイミュニティ",3,0,0,null,0,"区分_イミ_電気的過渡バースト_電源線上の過渡妨害のエミッション",null,null,null,"←＆↓(英訳)Immunity to transient disturbances conducted along supply lines / other than supply lines",null,null,null,"◆車載専用"]
[77,"電源線以外の線の上の過渡妨害へのイミュニティ",3,0,0,null,0,"区分_イミ_電気的過渡バースト_電源線以外の線の上の過渡妨害へのイミュニティ",null,null,null,"ISO 7637-3（容量性結合器）",null,null,null,"◆車載専用"]
[78,"6.4．サージ  ",2,0,0,null,0,"区分_イミ_サージ",null,null,null,"（付属書VF128D）","要付属書"]
[79,"電源ポートサージイミュニティ試験",3,0,0,null,0,"区分_イミ_サージ_電源ポートサージイミ",null,null,null,"IEC 61000-4-5、[2023.5.31]ISO 7637-2 :2011/2004"]
[80,"通信／信号ポートサージイミュニティ試験",3,0,0,null,0,"区分_イミ_サージ_通信_信号ポートサージイミ",null,null,null,"IEC 61000-4-5、[2023.5.31]ISO 7637-3 :2016/2007 (CCCのみ)"]
[81,"電源ポートサージイミュニティ試験",3,0,0,null,0,"区分_イミ_サージ_電源ポートサージイミ車載",null,null,null,"ISO 160752",null,null,null,"◆車載含む"]
[82,"電源ポートサージイミュニティ試験（高電圧部品用）",3,0,0,null,0,"区分_イミ_サージ_電源ポートサージイミ高電圧部品",null,null,null,"ISO/TS 7637-4",null,null,null,"◆車載含む"]
[83,"6.5．無線周波伝導妨害波",2,0,0,null,0,"区分_イミ_無線周波伝導妨害",null,null,null,"（付属書VF128E）　※伝導性高周波妨害イミュニティとも呼ぶ（例外：61000-4-16）　※BCI：Bulk current injection test","要付属書"]
[84,"電源ポート無線周波伝導イミュニティ試験",3,0,4,"@[Y-5]@～@[AE-5]@",0,"区分_イミ_無線周波伝導妨害_電源ポート無線周波伝導イミ",null,null,null,"IEC 61000-4-6　※CDN,クランプを含む",null,"S","測定周波数範囲 ："]
[85,"通信ポート無線周波伝導イミュニティ試験",3,0,4,"@[Y-5]@～@[AE-5]@",0,"区分_イミ_無線周波伝導妨害_通信ポート無線周波伝導イミュニティ試験",null,null,null,"IEC 61000-4-6、（CISPR 24）伝導性RF妨害",null,"S","測定周波数範囲 ："]
[86,"信号ポート無線周波伝導イミュニティ試験",3,0,4,"@[Y-5]@～@[AE-5]@",0,"区分_イミ_無線周波伝導妨害_信号ポート無線周波伝導イミュニティ試験",null,null,null,"IEC 61000-4-6、（CISPR 35）連続性誘導RF妨害",null,"S","測定周波数範囲 ："]
[87,"バルク電流注入（患者結合ポート）",3,0,4,"@[Y-5]@～@[AE-5]@",0,"区分_イミ_無線周波伝導妨害_バルク電流注入患者結合",null,null,null,"ISO 11451-4, ISO 11452-4 (BCI＆TWC)、IEC 60601-1-2(患者結合ポート)　※IEC 61000-4-6の電流注入法は意図外。",null,"S","測定周波数範囲 ："]
[88,"バルク電流注入（車載）",3,0,4,"@[Y-5]@～@[AE-5]@",0,"区分_イミ_無線周波伝導妨害_バルク電流注入車載",null,null,null,"ISO-11451-4",null,"S","測定周波数範囲 ：","◆車載専用"]
[89,"無線周波電源の直接注入　",3,0,4,"@[Y-5]@～@[AE-5]@",0,"区分_イミ_無線周波伝導妨害_無線周波電源直接注入",null,null,null,"ISO 11452-7",null,"S","測定周波数範囲 ：","◆車載専用"]
[90,"路上走行車-ポータブル送信アンテナ",3,0,4,"@[Y-5]@～@[AE-5]@",0,"区分_イミ_無線周波伝導妨害_ポータブル送信アンテナ",null,null,null,"ISO 11452-9 (Road vehicles - Portable transmitters)　※近接電磁界に対するイミュニティ",null,"S","測定周波数範囲 ：","◆車載専用"]
[91,"拡張オーディオ周波数範囲における伝導妨害へのイミュニティ",3,0,0,null,0,"区分_イミ_無線周波伝導妨害_拡張オーディオ伝導妨害イミ",null,null,null,"ISO 11452-10",null,null,null,"◆車載専用"]
[92,"測定周波数範囲 ：",4,0,4,"@[Y-5]@～@[AE-5]@",0,"区分_イミ_無線周波伝導妨害_拡張オーディオ伝導妨害イミ_測定周波数範囲"]
[93,"伝導低周波コモンモード",3,0,4,"@[Y-5]@～@[AE-5]@",0,"区分_イミ_無線周波伝導妨害_伝導低周波コモンモード",null,null,null,"IEC 61000-4-16、(英訳)Conducted Common mode disturbances",null,"S","測定周波数範囲 ："]
[94,"6.6．放射磁界 ",2,0,0,null,0,"区分_イミ_放射磁界",null,null,null,"（付属書VF128F）","要付属書"]
[95,"磁界イミュニティ試験（ループコイル、ヘルムホルツコイル）",3,0,0,null,0,"区分_イミ_放射磁界_電源周波数磁界イミ"]
[96,"電源周波数磁界イミュニティ",4,0,0,null,0,"区分_イミ_放射磁界_電源周波数磁界イミ_電源周波数磁界イミュニティ",null,null,null,"IEC 61000-4-8"]
[97,"パルス磁界イミュニティ",4,0,0,null,0,"区分_イミ_放射磁界_電源周波数磁界イミ_パルス磁界イミュニティ",null,null,null,"IEC 61000-4-9"]
[98,"減衰振動波磁界イミュニティ",4,0,0,null,0,"区分_イミ_放射磁界_電源周波数磁界イミ_減衰振動波磁界イミュニティ",null,null,null,"IEC 61000-4-10　(英訳)Oscillatory immnunity test"]
[99,"車載用機器",4,0,0,null,0,"区分_イミ_放射磁界_電源周波数磁界イミ_車載用機器",null,null,null,"ISO 11452-8、ISO 11452-10（現6.6項のみ⇒新6.5項＆6.6項）　⇒後述の【車載備忘録】を参照",null,null,null,"◆車載専用"]
[100,"6.7．電源電圧変動",2,0,0,null,0,"区分_イミ_電源電圧変動",null,null,null,"（付属書VF128G）","要付属書"]
[101,"電源電圧ディップ・瞬停試験",3,0,0,null,0,"区分_イミ_電源電圧変動_電源電圧ディップ瞬停",null,null,null,"IEC 61000-4-11(16A以下)"]
[102,"電源電圧ディップ・瞬停試験（DC電源端子）",3,0,0,null,0,"区分_イミ_電源電圧変動_電源電圧ディップ・瞬停試験（DC電源端子）",null,null,null,"IEC 61000-4-29(DC)、-4-34(16A超)、IACS VR E10 Rev.7 No4、ISO 16750-2、"]
[103,"6.8．放送受信機イミュニティ",2,1,0,null,0,"区分_イミ_放送受信機イミ"]
[104,"2信号または3信号特性試験（S1）",3,1,0,null,0,"区分_イミ_放送受信機イミ_アンテナ端子_2信号または3信号特性"]
[105,"電源ポート無線周波伝導妨害波試験（S2）",3,1,0,null,0,"区分_イミ_放送受信機イミ_電源端子無線周波伝導妨害_電源ポート"]
[106,"電磁界イミュニティ試験（オープンストリップライン）（S3）",3,1,0,null,0,"区分_イミ_放送受信機イミ_放射電磁界_電磁界イミ_オープンストリップライン"]
[107,"同軸遮蔽減衰量試験（S4）",3,1,0,null,0,"区分_イミ_放送受信機イミ_アンテナ端子_同軸遮蔽減衰量"]
[108,"6.8．電力送電機器イミュニティ",2,0,0,null,0,"区分_イミ_電力送電機器イミュニティ",null,null,null,"(ﾒﾓ)審査員：田中嶋,寺井,五十嵐,峯松,五十嵐、[2023.2.15]基本情報入力shtは「電力送電機器イミュニティ」もCheck要す。"]
[109,"減衰振動波",3,0,0,null,0,"区分_イミ_電力送電機器イミュニティ_減衰振動波",null,null,null,"IEC 61000-4-18"]
[110,"リング振動波",3,0,0,null,0,"区分_イミ_電力送電機器イミュニティ_リング振動波",null,null,null,"IEC 61000-4-12"]
[111,"直流入力ポートリップル印加",3,0,0,null,0,"区分_イミ_電力送電機器イミュニティ_直流入力ポートリップル印加",null,null,null,"IEC 61000-4-17,直流入力端子におけるリプルに対するイミュニティ試験, (英訳)Ripple on d.c. input power port Imunity test"]
[112,"AC電源高調波イミュニティ",3,0,0,null,0,"区分_イミ_電力送電機器イミュニティ_AC電源高調波イミュニティ",null,null,null,"IEC 61000-4-13,電源高調波に対するイミュニティ, (英訳)Low frequency immunity／Mains Harmonics and Interharmonics"]
[113,"7．試験区分－電源高調波",1,0,0,null,1,"区分_電源高調波"]
[114,"7.1．電源高調波歪",2,0,0,null,0,"区分_電源高調波_電源高調波歪",null,null,null,"IEC 61000-6-4は高調波は要求なし"]
[115,"高調波電流試験",3,0,0,null,0,"区分_電源高調波_電源高調波歪_高調波電流",null,null,null,"<高調波>IEC 61000-3-2(220-240V,<16A)、同-3-12(同,16-75A)"]
[116,"7.2．電源電圧動揺",2,0,0,null,0,"区分_電源高調波_電源電圧動揺",null,null,null,"<電圧変動・フリッカ>IEC 61000-3-3(220-250V,<16A)、同-3-11(同,≦75A)"]
[117,"フリッカー試験",3,0,0,null,0,"区分_電源高調波_電源電圧動揺_フリッカー"]
[118,"8．試験区分－音響",1,0,0,null,1,"区分_音響",null,null,null,"<注>（項7-8の間に）自動車・車載機器(Vehicle /In-vehicle equipment test)が抜けている為、項13aを追加（2021/2/15）"]
[119,"8.1．空気伝搬騒音",2,0,0,null,0,"区分_音響_空気伝搬騒音"]
[120,"空気伝搬騒音試験",3,0,0,null,0,"区分_音響_空気伝搬騒音_空気伝搬騒音",null,null,null,"（付属書VF154）","要付属書"]
[121,"9．試験区分－通信機器性能 １",1,0,0,null,1,"区分_通信機器性能",null,null,null,"無線通信"]
[122,"9.1.FCC",2,0,0,null,0,"区分_通信機器性能_FCC"]
[123,"Intentional Radiators (FCC Part 15 Subpart C)",3,0,0,null,0,"区分_通信機器性能_FCC_Intentional Radiators (FCC Part 15 Subpart C)",null,null,null,"【EMC備忘録】"]
[124,"UPCS (FCC Part 15, Subpart D) ",3,0,0,null,0,"区分_通信機器性能_FCC_UPCS (FCC Part 15, Subpart D) ",null,null,null,"<ﾒﾓ：廃止or失効した規格、後継規格>"]
[125,"Unlicensed Personal Communication Systems devices ",5,0,1,null,0,"",null,null,null,"・2020.12.1廃止：J55001, J55013, J55022。・2022.9.16失効：EN55024:2010、・(旧)JIS C 1806-1→(新)JIS C 61326-1、"]
[126,"U-NII without DFS International Radiators (FCC Part 15 Subpart E)",3,0,0,null,0,"区分_通信機器性能_FCC_U-NII without DFS International Radiators (FCC Part 15 Subpart E)",null,null,null,"・[EMI]AS/NZS CISPR 11/14.1/15→AS CISPR 11/14.1/15、AS CISPR 14.1:2018→AS/NZS CISPR 14.1:2021"]
[127,"Unlicensed National Information Infrastructure Devices (U-NII without DFS)",5,0,1,null,0,"",null,null,null,"・[EMI]AS/NZS 3200.1.2→AS IEC 60601.1.2"]
[128,"U-NII with DFS International Radiators (FCC Part 15 Subpart E)",3,0,0,null,0,"区分_通信機器性能_FCC_U-NII with DFS International Radiators (FCC Part 15 Subpart E)",null,null,null,"<ﾒﾓ：IEC 61000-4シリーズ>"]
[129,"Unlicensed National Information Infrastructure U-NII) Devices with Dynamic Frequency Selection (DFS)",5,0,1,null,0,"",null,null,null,"・IEC 61000-4-4の類似規格：DL-160G, ISO 11452-10, MIL STD 461G CS101"]
[130,"UWB Intentional Radiators (FCC Part 15, Subpart F) ",3,0,0,null,0,"区分_通信機器性能_FCC_UWB Intentional Radiators (FCC Part 15, Subpart F) ",null,null,null,"・IEC 61000-4-39の類似規格：ISO 11452-8, MIL STD 461G RS101、"]
[131,"Ultra-wideband Operation ",5,0,1,null,0,"",null,null,null,"<ﾒﾓ：IEC 61000-6シリーズ>"]
[132,"BPL Intentional Radiators (FCC Part 15, Subpart G) ",3,0,0,null,0,"区分_通信機器性能_FCC_BPL Intentional Radiators (FCC Part 15, Subpart G) ",null,null,null,"・IEC61000-6-1 住宅･商工業ｲﾐｭﾆﾃｨ、同-6-2 工業環境ｲﾐｭﾆﾃｨ、"]
[133,"Access Broadband Over Power Line (Access BPL) ",5,0,1,null,0,"",null,null,null,"・IEC61000-6-3 住宅環境ｴﾐｯｼｮﾝ（→2020.7分離：同-6-8 商工業ｴﾐｯｼｮﾝ(業務装置限定)）、同-6-4 工業環境ｴﾐｯｼｮﾝ、"]
[134,"White Space Device Intentional Radiators (FCC Part 15, Subpart H) ",3,0,0,null,0,"区分_通信機器性能_FCC_White Space Device Intentional Radiators (FCC Part 15, Subpart H) ",null,null,null,"・IEC/TS 61000-6-5 発電所･変電所環境ｲﾐｭﾆﾃｨ、IEC61000-6-6 屋内機器におけるHEMPｲﾐｭﾆﾃｨ、"]
[135,"White Space Devices ",5,0,1,null,0,"",null,null,null,"・IEC61000-6-7 工業環境における機能安全性に関連する装置･ｼｽﾃﾑに対するｲﾐｭﾆﾃｨ、"]
[136,"Commercial Mobile Services (FCC Licensed Radio Service Equipment)",3,0,0,null,0,"区分_通信機器性能_FCC_Commercial Mobile Services (FCC Licensed Radio Service Equipment)",null,null,null,"<ﾒﾓ：IEC 60601シリーズ>"]
[137,"Part 22 (cellular)",5,0,1,null,0,"",null,null,null,"・IEC 60601-1-2 Ed.4.1(:2014+A1:2020)<2020.9>は、Ed.4.0<2014.2>に対し、8.11項にIEC 61000-4-39を追加。"]
[138,"Part 24",5,0,1,null,0,"",null,null,null,"・"]
[139,"Part 25 (below 3 GHz)",5,0,1,null,0,"",null,null,null,"<ﾒﾓ：製品規格、他>"]
[140,"Part 27",5,0,1,null,0,"",null,null,null,"・鉄道：IEC62236-3-2/-4, EN50121-3-2/-4、・"]
[141,"General Mobile Radio Services (FCC Licensed Radio Service Equipment)",3,0,0,null,0,"区分_通信機器性能_FCC_General Mobile Radio Services (FCC Licensed Radio Service Equipment)",null,null,null,"・BT decisions D154/009 and D159/013（https://boss.cenelec.eu/media/4dij213u/en_iecreferencing.pdf）"]
[142,"Part 22 (non-cellular)",5,0,1,null,0,""]
[143,"Part 90 (below 3 GHz )",5,0,1,null,0,"",null,null,null,"<ﾒﾓ：放送受信機>"]
[144,"Part 95 (below 3 GHz )",5,0,1,null,0,"",null,null,null,"・旧6.8項 放送受信器イミュニティ(CISPR 20, EN 55020)：2021.2.15に試験区分サブScopeから外し、2022.2.15に削除。"]
[145,"Part 97 (below 3 GHz )",5,0,1,null,0,""]
[146,"Part 101 (below 3 GHz )",5,0,1,null,0,"",null,null,null,"【車載 備忘録】　"]
[147,"Citizens Broadband Radio Services (FCC Licensed Radio Service Equipment)",3,0,0,null,0,"区分_通信機器性能_FCC_Citizens Broadband Radio Services (FCC Licensed Radio Service Equipment)",null,null,null,"<ﾒﾓ：IEC 11452シリーズ>"]
[148,"Part 96",5,0,1,null,0,"",null,null,null,"・ISO 11452-1 試験一般(共通事項）、同-2 無響室法(アンテナ照射法 or ALSE法)⇒6.2項、・同-3 TEMセル法⇒6.2項、"]
[149,"Maritime and Aviation Radio Services (FCC Licensed Radio Service Equipment)",3,0,0,null,0,"区分_通信機器性能_FCC_Maritime and Aviation Radio Services (FCC Licensed Radio Service Equipment)",null,null,null,"・ISO 11452-4 ﾊｰﾈｽ励起法 100kHz-3GHz⇒6.5項 バルク電流注入"]
[150,"Part 80",5,0,1,null,0,"",null,null,null,"　(BCI法 1M-400MHz, TWC法 400M-3GHz) (略語)TWC=Tubular wave coupler、"]
[151,"Part 87",5,0,1,null,0,"",null,null,null,"・ISO 11452-5 ｽﾄﾘｯﾌﾟﾗｲﾝ⇒6.2項、"]
[152,"Microwave and Millimeter Wave Bands Radio Services (FCC Licensed Radio Service Equipment)",3,0,0,null,0,"区分_通信機器性能_FCC_Microwave and Millimeter Wave Bands Radio Services (FCC Licensed Radio Service Equipment)",null,null,null,"・ISO 11452-7 BANを用いた直接注入(コンデンサ注入)⇒6.5項、・同-9 可搬型送信機近接照射試験、　　"]
[153,"Part 25",5,0,1,null,0,"",null,null,null,"・ISO 11452-8 低周波磁界(狭帯域電磁妨害)⇒6.6項、"]
[154,"Part 30",5,0,1,null,0,"",null,null,null,"・ISO 11452-9 可搬型送信機法(狭帯域電磁妨害-ﾎﾟｰﾀﾌﾞﾙ送信機)⇒6.5項、"]
[155,"Part 74",5,0,1,null,0,"",null,null,null,"・ISO 11452-10 低周波伝導⇒6.5項 "]
[156,"Part 90 (above 3 GHz)",5,0,1,null,0,"",null,null,null,"　（路上走行車-低周波磁界に対するイミュニティ、（英訳）Road vehicles - Immunity to magnetic fields）"]
[157,"Part 95 (above 3 GHz)",5,0,1,null,0,"",null,null,null,"　（拡張オーディオ周波数範囲における伝導妨害へのイミュニティ）"]
[158,"Part 97 (above 3 GHz)",5,0,1,null,0,"",null,null,null,"・ISO 11452-11リバプレーションチャンバ法⇒6.2項 "]
[159,"Part 101 (above 3 GHz)",5,0,1,null,0,""]
[160,"Broadcast Radio Services (FCC Licensed Radio Service Equipment) ",3,0,0,null,0,"区分_通信機器性能_FCC_Broadcast Radio Services (FCC Licensed Radio Service Equipment) ",null,null,null,"<ﾒﾓ：ISO 7637シリーズ、他>"]
[161,"Part 73 ",5,0,1,null,0,"",null,null,null,"・[2023.2.15]「ISO 7637-1 路上走行車-伝導及び結合による電気的妨害」は試験一般（試験規格ではない）。"]
[162,"Part 74 (below 3 GHz) ",5,0,1,null,0,"",null,null,null,"・ISO 7637-2 過渡電圧, 電源変動、・ISO 7637-3 過渡電圧、・ISO/TS 7637-4 高電圧部品用、⇒全て6.4項"]
[163,"Hearing Aid Compatibility (Part 20) ",3,0,0,null,0,"区分_通信機器性能_FCC_Hearing Aid Compatibility (Part 20) ",null,null,null,"・ISO 10605 静電気⇒6.1項"]
[164,"HAC for Commercial mobile services ",5,0,1,null,0,"",null,null,null,"・SAE J1113-25 トリプレート ⇒6.2項 放射電磁界イミュニティ試験（トリプレート）"]
[165,"Signal Boosters (Part 20) ",3,0,0,null,0,"区分_通信機器性能_FCC_Signal Boosters (Part 20) "]
[166,"Wideband Consumer signal boosters ",5,0,1,null,0,"",null,null,null,"【電源高調波　備忘録】"]
[167,"Provider-specific signal boosters ",5,0,1,null,0,"",null,null,null,"(ﾒﾓ) IEC 61000-6-4は高調波要求なし、"]
[168,"Industrial signal boosters",5,0,1,null,0,"",null,null,null,"(ﾒﾓ) AS/NZS 61000.6.3/.6.4も(IEC61000-6-3/-6-4 Ed.2.1 参照の為)要求なし　(前述IECは最新Ed.3)"]
[169,"Signal Boosters (Section 90.219) ",5,0,1,null,0,"",null,null,null,"(ﾒﾓ) JIS 62326-1はクラスBのみに電源高調波の要求あり。"]
[170,"9.2．カナダ",2,0,0,null,0,"区分_通信機器性能_カナダ",null,null,null,"(ﾒﾓ) IEC61000-6-3:2020(Ed.3.0)はΔ-ANあり、EN61000-6-3:2007+A1:2010はΔ-ANなし (出典)2020.9.18 ダイキンより"]
[171,"9.3．欧州",2,0,0,null,0,"区分_通信機器性能_欧州"]
[172,"9.4．電波法",2,0,0,null,0,"区分_通信機器性能_電波法",null,null,null,"【欧州】ETSI EN301：通信機器のEMC規格、ETSI EN300：通信機能の規格、"]
[173,"9.5．その他",2,0,0,null,0,"区分_通信機器性能_その他",null,null,null,"（↑試験方法だけでなくEUTの動作にも気を使うこと。泉、田中嶋、五十嵐、川田はEUTの動作に言及できる）"]
[174,"（注：本項の申請をする場合は、備考欄に詳細を記載ください。）",4,0,1,null,0,""]
[175,"10．試験区分－通信機器性能 ２",1,0,0,null,1,"区分_通信機器性能2",null,null,null,"SAR、人体に対する電磁界暴露"]
[176,"10.1．電磁界ばく露",2,0,0,null,0,"区分_通信機器性能2_電磁界ばく露",null,null,null,"(ﾒﾓ)EMF試験（人体曝露）"]
[177,"局所吸収率 (SAR)",3,0,0,null,0,"区分_通信機器性能2_電磁界ばく露_局所比吸収率",null,null,null,"（付属書VF119）　※FCCの「RF Exposure」はSARを指す。","要付属書"]
[178,"磁界強度（磁界プローブ）",3,0,0,null,0,"区分_通信機器性能2_電磁界ばく露_磁界強度_磁界プローブ",null,null,null,"（付属書VF105D）"]
[179,"電界強度（電界プローブ）",3,0,0,null,0,"区分_通信機器性能2_電磁界ばく露_低周波磁界密度_等方性プローブ",null,null,null,"(ﾒﾓ)電界強度は無線モジュール搭載時に試験する。無線モジュール搭載なければ磁界強度のみでよい。"]
[180,"空中線電力測定",3,0,0,null,0,"区分_通信機器性能2_電磁界ばく露_空中線電力測定",null,null,null,"(ﾒﾓ)TELECが空中線電力測定、放射電力測定をScope追加済。"]
[181,"放射電力測定",3,0,0,null,0,"区分_通信機器性能2_電磁界ばく露_放射電力測定"]
[182,"11．試験区分－通信機器性能 ３",1,0,0,null,1,"区分_通信機器性能3",null,null,null,"有線通信端末"]
[183,"11.1．公衆回線接続通信端末機器試験",2,0,0,null,0,"区分_通信機器性能3_有線通信機器"]
[184,"12．試験区分－製品安全試験　　（注：本項を申請する場合は、事前にVLACにご相談ください。）",1,0,0,null,1,"区分_製品安全"]
[185,"12.1．製品安全試験",2,0,0,null,0,"区分_製品安全_IEC"]
[186,"家電製品",3,0,0,null,0,"区分_製品安全_IEC_家電製品"]
[187,"マルチメディア",3,0,0,null,0,"区分_製品安全_IEC_IT機器"]
[188,"医用電気機器",3,0,0,null,0,"区分_製品安全_IEC_医用電気機器"]
[189,"制御機器・計測機器",3,0,0,null,0,"区分_製品安全_IEC_制御機器計測機器"]
[190,"13．試験区分－環境（消費電力／環境試験）　（注：本項を申請する場合は、事前にVLACにご相談ください。）",1,0,0,null,1,"区分_環境"]
[191,"13.1．消費電力",2,0,0,null,0,"区分_環境_消費電力"]
[192,"標準消費電力量 (TEC)法",3,0,0,null,0,"区分_環境_消費電力_標準消費電力量 (TEC)法"]
[193,"動作モード (OM)法",3,0,0,null,0,"区分_環境_消費電力_動作モード_OM法"]
[194,"家庭用電気冷蔵庫及び電気冷凍庫の特性及び試験",3,0,0,null,0,"区分_環境_消費電力_家庭用電気冷蔵庫及び電気冷凍庫の特性及び試験"]
[195,"13.2．環境試験",2,0,0,null,0,"区分_環境_環境試験",null,null,null,"[2023.2.15]船用電機設備（環境条件に対する耐久性）_JQA記載例：外観検査、作動試験及び性能試験、"]
[196,"船級試験",3,0,0,null,0,"区分_環境_環境試験_船級試験",null,null,null,"絶縁抵抗試験、、耐電圧試験、乾燥高温試験、温湿度試験、振動試験、傾斜試験、低温試験、難燃性試験、"]
[197,"13a．試験区分－自動車・車載機器",1,0,0,null,1,"区分_自動車・車載機器",null,"生成後、AQ列に右寄せで、「（注：5項,6項への記述に加えて、｢別紙(車載試験区分)｣も提出して下さい。）」を記載",null,null,null,"AQ|right","（注：5項,6項への記述に加えて、｢別紙(車載試験区分)｣も提出して下さい。）"]
[198,"13b．試験区分－防衛・宇宙・航空",1,0,0,null,1,"区分_防衛・宇宙・航空",null,null,null,null,null,"AQ|right","（注：本項を申請する場合は、事前にVLACにご相談ください。）"]

{"sheet":"設定_試験規格","index":17,"n_rows":86,"n_cols":13,"rows_kept":86,"cut":false,"hidden":true,"merged":[]}
[]
[]
[]
["項番","タイトル","階層","表示非表示","表示タイプ","枝番入力","親試験規格フラグ","試験規格コード","表示順","備考","検査用VLOOKUP用","検査用VLOOKUP用","管理者のみ表示"]
[1,"14．試験規格－電磁両立性エミッション",1,0,0,null,1,"規格_エミッション"]
[2,"VCCI技術基準 VCCI-CISPR 32",2,1,0,null,0,"規格_エミッション_VCCI-CISPR 32"]
[3,"ANSI C63.4-2014　　　※この項にチェックする場合は、申請書の【英文名称入力】シートを入力して下さい。",2,1,0,null,0,"規格_エミッション_ANSI_63_4_2014"]
[4,"（試験区分：Unintentional Radiators (FCC Part 15, Subpart B) ）",3,1,1,null,0,""]
[5,"FCC MP-5 (February 1986)　　※この項にチェックする場合は、申請書の【英文名称入力】シートを入力して下さい。",2,1,0,null,0,"規格_エミッション_FCC MP-5"]
[6,"（試験区分：Industrial, Scientific, and Medical Equipment (FCC Part 18)  ･Consumer ISM equipment ）",3,1,1,null,0,""]
[7,"CISPR11",2,1,0,null,0,"規格_エミッション_CISPR11"]
[8,"CISPR14-1",2,1,0,null,0,"規格_エミッション_CISPR14-1"]
[9,"CISPR32",2,1,0,null,0,"規格_エミッション_CISPR32"]
[10,"EN 55011",2,1,0,null,0,"規格_エミッション_EN55011"]
[11,"EN 55014-1",2,1,0,null,0,"規格_エミッション_EN55014-1"]
[12,"EN 55032",2,1,0,null,0,"規格_エミッション_EN55032"]
[13,"EN 55103-1",2,1,0,null,0,"規格_エミッション_EN55103-1"]
[14,"他の試験規格もご希望の場合は追加記述欄にご記入ください。",2,0,2,null,0,""]
[15,"15．試験規格－電磁両立性イミュニティ",1,0,0,null,1,"規格_イミュニティ"]
[16,"CISPR 35",2,1,0,null,0,"規格_イミュニティ_CISPR 35"]
[17,"IEC 61000-4-2",2,1,0,null,0,"規格_イミュニティ_IEC61000-4-2"]
[18,"IEC 61000-4-3",2,1,0,null,0,"規格_イミュニティ_IEC61000-4-3"]
[19,"IEC 61000-4-4",2,1,0,null,0,"規格_イミュニティ_IEC61000-4-4"]
[20,"IEC 61000-4-5",2,1,0,null,0,"規格_イミュニティ_IEC61000-4-5"]
[21,"IEC 61000-4-6",2,1,0,null,0,"規格_イミュニティ_IEC61000-4-6"]
[22,"IEC 61000-4-8",2,1,0,null,0,"規格_イミュニティ_IEC61000-4-8"]
[23,"IEC 61000-4-11",2,1,0,null,0,"規格_イミュニティ_IEC61000-4-11"]
[24,"他の試験規格もご希望の場合は追加記述欄にご記入ください。",2,0,2,null,0,""]
[25,"16．試験規格－電源高調波",1,0,0,null,1,"規格_電源高調波"]
[26,"IEC 61000-3-2",2,1,0,null,0,"規格_電源高調波_IEC61000-3-2"]
[27,"IEC 61000-3-3",2,1,0,null,0,"規格_電源高調波_IEC61000-3-3"]
[28,"EN 61000-3-2",2,1,0,null,0,"規格_電源高調波_EN61000-3-2"]
[29,"EN 61000-3-3",2,1,0,null,0,"規格_電源高調波_EN61000-3-3"]
[30,"他の試験規格もご希望の場合は追加記述欄にご記入ください。",2,0,2,null,0,""]
[31,"17．試験規格－自動車・車載機器",1,0,0,null,1,"規格_自動車車載機器"]
[32,"EU Directive 72/245/EEC",2,1,0,null,0,"規格_自動車車載機器_EU_Directive_72_245_EEC"]
[33,"EU Directive 2004/104/EC, Annex I, 6.5, 6.6, 6.8, 6.9章",2,1,0,null,0,"規格_自動車車載機器_EU_Directive_2004_104_EC"]
[34,"ECE R-10, 6.5, 6.6, 6.8, 6.9章",2,1,0,null,0,"規格_自動車車載機器_ECE_R-10"]
[35,"他の試験規格もご希望の場合は追加記述欄にご記入ください。",2,0,2,null,0,""]
[36,"18．試験規格－音響",1,0,0,null,1,"規格_空気伝搬騒音"]
[37,"ISO 7779",2,1,0,null,0,"規格_空気伝搬騒音_ISO7779"]
[38,"ECMA-74",2,1,0,null,0,"規格_空気伝搬騒音_ECMA-74"]
[39,"German BlueAngel",2,1,0,null,0,"規格_空気伝搬騒音_ブルーエンジェルマーク"]
[40,"日本環境協会エコマーク商品類型",2,1,0,null,0,"規格_空気伝搬騒音_日本環境協会エコマーク商品類型"]
[41,"他の試験規格もご希望の場合は追加記述欄にご記入ください。",2,0,2,null,0,""]
[42,"19．試験規格－通信機器性能 １",1,0,0,null,1,"規格_通信機器性能",null,null,null,null,"（※無線通信）"]
[43,"ANSI C63.10-2013",2,1,0,null,0,"規格_通信機器性能_ANSI C63.10-2013"]
[44,"ANSI C63.17-2013",2,1,0,null,0,"規格_通信機器性能_ANSI C63.17-2013"]
[45,"ANSI C63.19-2011",2,1,0,null,0,"規格_通信機器性能_ANSI C63.19-2011"]
[46,"ANSI C63.26-2015",2,1,0,null,0,"規格_通信機器性能_ANSI C63.26-2015"]
[47,"ANSI/TIA-603-E-2016",2,1,0,null,0,"規格_通信機器性能_ANSI/TIA-603-E-2016"]
[48,"ANSI/TIA-102.CAAA-E-2016",2,1,0,null,0,"規格_通信機器性能_ANSI/TIA-102.CAAA-E-2016"]
[49,"FCC KDB Publication 905462 D02 U-NII DFS Compliance Procedures New Rules v02 (April 8, 2016)",2,1,0,null,0,"規格_通信機器性能_FCC_KDB_PUB"]
[50,"IEEE Std 1528™-2013 ",2,1,0,null,0,"規格_通信機器性能_IEEE_Std_1528™-2013 "]
[51,"他の試験規格もご希望の場合は追加記述欄にご記入ください。",2,0,2,null,0,""]
[52,"20．試験規格－通信機器性能 ２",1,0,0,null,1,"規格_通信機器性能2",null,null,null,null,"（※SAR、人体に対する電磁界暴露）"]
[53,"IEC 62209 Part 1",2,1,0,null,0,"規格_通信機器性能2_IEC62209_Part1"]
[54,"IEC 62209 Part 2 ",2,1,0,null,0,"規格_通信機器性能2_IEC62209_Part2"]
[55,"IEC 62311",2,1,0,null,0,"規格_通信機器性能2_IEC62311"]
[56,"IEC 62369-1",2,1,0,null,0,"規格_通信機器性能2_IEC62369-1"]
[57,"IEC 62233",2,1,0,null,0,"規格_通信機器性能2_IEC62233"]
[58,"他の試験規格もご希望の場合は追加記述欄にご記入ください。",2,0,2,null,0,""]
[59,"21．試験規格－通信機器性能 ３",1,0,0,null,1,"規格_通信機器性能3",null,null,null,null,"（※有線通信端末）"]
[60,"FCC Part68",2,1,0,null,0,"規格_通信機器性能3_FCC_Part68"]
[61,"他の試験規格もご希望の場合は追加記述欄にご記入ください。",2,0,2,null,0,""]
[62,"22．試験規格－製品安全",1,0,0,null,1,"規格_製品安全試験"]
[63,"家電製品",2,0,0,null,1,"規格_製品安全試験_IEC_家電製品"]
[65,"試験規格を追加記述欄にご記入ください。",2,0,2,null,0,""]
[66,"マルチメディア",2,0,0,null,1,"規格_製品安全試験_IEC_IT機器"]
[67,"IEC 62368-1",3,1,0,null,0,"規格_製品安全試験_IEC_IT機器_IEC62368-1"]
[68,"他の試験規格もご希望の場合は追加記述欄にご記入ください。",2,0,2,null,0,""]
[72,"医用電気機器",2,0,0,null,1,"規格_製品安全試験_IEC_医用電気機器"]
[75,"試験規格を追加記述欄にご記入ください。",2,0,2,null,0,""]
[76,"制御機器・計測機器",2,0,0,null,1,"規格_製品安全試験_IEC_制御機器計測機器"]
[79,"試験規格を追加記述欄にご記入ください。",2,0,2,null,0,""]
[80,"23．試験規格－環境（消費電力）",1,0,0,null,1,"規格_環境"]
[81,"国際エネルギースタープログラム運用細則",2,0,0,null,1,"規格_環境_国際"]
[82,"対象となる製品カテゴリを追加記述欄にご記入ください。",2,0,3,null,0,""]
[83,"米国エネルギースタープログラム",2,0,0,null,1,"規格_環境_米国"]
[84,"対象となる製品カテゴリを追加記述欄にご記入ください。",2,0,3,null,0]
[85,"消費電力",2,0,0,null,1,"規格_環境_消費電力"]
[86,"試験規格を追加記述欄にご記入ください。",2,0,2,null,0,""]
[87,"24．試験規格－環境（環境試験）",1,0,0,null,1,"規格_環境（環境試験）"]
[88,"試験規格を追加記述欄にご記入ください。",2,0,2,null,0]
[89,"25．試験規格－防衛・航空・宇宙",1,0,0,null,1,"規格_防衛・航空・宇宙"]
[90,"試験規格を追加記述欄にご記入ください。",2,0,2,null,0,""]

{"sheet":"事務局用メニュー","index":18,"n_rows":6,"n_cols":2,"rows_kept":6,"cut":false,"hidden":true,"merged":[]}
[]
[null,"事務局用メニュー"]
[]
[]
[]
["Version",1]

{"sheet":"【テンプレート】新規格入力","index":19,"n_rows":23,"n_cols":55,"rows_kept":23,"cut":false,"hidden":true,"merged":[[20,2,20,14],[21,2,21,14],[21,15,21,22],[3,44,3,45],[4,44,4,45],[5,44,5,45],[6,44,6,45],[7,44,7,45],[8,44,8,45],[19,15,19,22],[20,15,20,22],[20,23,20,35],[20,36,20,43],[21,23,21,35],[21,36,21,43],[8,36,8,43],[16,2,16,14],[17,2,17,14],[18,2,18,14],[19,2,19,14],[16,23,16,35],[19,23,19,35],[16,36,16,43],[17,23,17,35],[17,36,17,43],[18,23,18,35],[18,36,18,43],[19,36,19,43],[16,15,16,22],[17,15,17,22],[18,15,18,22],[2,2,2,22],[2,23,2,43],[7,2,7,14],[8,2,8,14],[7,15,7,22],[8,15,8,22],[7,23,7,35],[8,23,8,35],[7,36,7,43],[5,2,5,14],[6,2,6,14],[5,15,5,22],[6,15,6,22],[5,23,5,35],[6,23,6,35],[5,36,5,43],[6,36,6,43],[3,36,3,43],[4,36,4,43],[3,2,3,14],[4,2,4,14],[3,15,3,22],[4,15,4,22],[3,23,3,35],[4,23,4,35]]}
[]
[null,null,"試験規格を下記記述欄にご記入ください。"]
[null,null,"-----------------  認定証（和文）表記  ---------------",null,null,null,null,null,null,null,null,null,null,null,null,null,null,null,null,null,null,null,null,"-----------------  認定証（英文）表記  ---------------"]
[null,null,"規格番号",null,null,null,null,null,null,null,null,null,null,null,null,"版/発行年",null,null,null,null,null,null,null,"規格番号",null,null,null,null,null,null,null,null,null,null,null,null,"版/発行年",null,null,null,null,null,null,null,"最新"]
[]
[]
[]
[]
[]
[null,null,"行追加",null,null,"<注>一旦追加した行は削除できません。",null,null,null,null,null,null,null,null,null,null,null,null,null,null,null,null,null,null,null,null,null,null,null,null,null,null,null,null,null,null,null,null,null,null,null,null,null,null,null,"（注：上記に記入した規格番号及び表記が認定証に記載されます。）",null,null,null,null,null,null,110,2,1]
[]
[]
[]
[]
[]
[null,null,"対象となる製品カテゴリはプログラムごとにご記入ください。"]
[null,null,"和文認定証_製品カテゴリ",null,null,null,null,null,null,null,null,null,null,null,null,"備考",null,null,null,null,null,null,null,"英文認定証_製品カテゴリ",null,null,null,null,null,null,null,null,null,null,null,null,"備考",null,null,null,null,null,null,null,null,null,null,null,null,null,null,null,null,null,true]
[]
[]
[]
[]
[]
[null,null,"行追加",null,null,"<注>一旦追加した行は削除できません。",null,null,null,null,null,null,null,null,null,null,null,null,null,null,null,null,null,null,null,null,null,null,null,null,null,null,null,null,null,null,null,null,null,null,null,null,null,null,null,"（注：上記に記入した規格番号及び表記が認定証に記載されます。）",null,null,null,null,null,null,110,2,1]